PublisherLabel,PublisherURI,"Body name","Body","Service area","Service division","Responsible unit","Expenses type","Date","Transaction","Amount","Supplier name"
"Bracknell Forest Council","http://opendatacommunities.org/id/unitary-authority/bracknell-forest","Bracknell Forest Council","00MA","Recreation, Sports and Leisure","Golf Courses","Leisure DSO - Downshire Catering","Cost of Goods Sold",29/04/2014 00:00:00,"30244282",75.09,"3663"
"Bracknell Forest Council","http://opendatacommunities.org/id/unitary-authority/bracknell-forest","Bracknell Forest Council","00MA","Recreation, Sports and Leisure","Indoor Sports & Recreation Facilities","Leisure Centre - Catering General","Cost of Goods Sold",12/05/2014 00:00:00,"30244282",25.11,"3663"
"Bracknell Forest Council","http://opendatacommunities.org/id/unitary-authority/bracknell-forest","Bracknell Forest Council","00MA","Recreation, Sports and Leisure","Golf Courses","Leisure DSO - Downshire Catering","Cost of Goods Sold",13/05/2014 00:00:00,"30244282",703.29,"3663"
"Bracknell Forest Council","http://opendatacommunities.org/id/unitary-authority/bracknell-forest","Bracknell Forest Council","00MA","Recreation, Sports and Leisure","Golf Courses","Leisure DSO - Downshire Catering","Cost of Goods Sold",13/05/2014 00:00:00,"30244282",115.67,"3663"
"Bracknell Forest Council","http://opendatacommunities.org/id/unitary-authority/bracknell-forest","Bracknell Forest Council","00MA","Short Term Support Other","Short Term Support Other","Bridgewell Unit","Cost of Goods Sold",14/05/2014 00:00:00,"30244282",345.02,"3663"
"Bracknell Forest Council","http://opendatacommunities.org/id/unitary-authority/bracknell-forest","Bracknell Forest Council","00MA","Short Term Support Other","Short Term Support Other","Bridgewell Unit","Cost of Goods Sold",14/05/2014 00:00:00,"30244282",19,"3663"
"Bracknell Forest Council","http://opendatacommunities.org/id/unitary-authority/bracknell-forest","Bracknell Forest Council","00MA","Older People (65+)","Internal Services","Heathlands EPH","Cost of Goods Sold",14/05/2014 00:00:00,"30244282",691.77,"3663"
"Bracknell Forest Council","http://opendatacommunities.org/id/unitary-authority/bracknell-forest","Bracknell Forest Council","00MA","Older People (65+)","Internal Services","Heathlands EPH","Cost of Goods Sold",14/05/2014 00:00:00,"30244282",59.18,"3663"
"Bracknell Forest Council","http://opendatacommunities.org/id/unitary-authority/bracknell-forest","Bracknell Forest Council","00MA","Older People (65+)","Internal Services","Heathlands EPH","Cost of Goods Sold",21/05/2014 00:00:00,"30244556",413.64,"3663"
"Bracknell Forest Council","http://opendatacommunities.org/id/unitary-authority/bracknell-forest","Bracknell Forest Council","00MA","Older People (65+)","Internal Services","Heathlands EPH","Cost of Goods Sold",21/05/2014 00:00:00,"30244556",50.19,"3663"
"Bracknell Forest Council","http://opendatacommunities.org/id/unitary-authority/bracknell-forest","Bracknell Forest Council","00MA","Older People (65+)","Internal Services","Heathlands EPH","Cost of Goods Sold",21/05/2014 00:00:00,"30244556",18.08,"3663"
"Bracknell Forest Council","http://opendatacommunities.org/id/unitary-authority/bracknell-forest","Bracknell Forest Council","00MA","Older People (65+)","Internal Services","Heathlands EPH","Cost of Goods Sold",23/05/2014 00:00:00,"30244556",-1.82,"3663"
"Bracknell Forest Council","http://opendatacommunities.org/id/unitary-authority/bracknell-forest","Bracknell Forest Council","00MA","Short Term Support Other","Short Term Support Other","Bridgewell Unit","Cost of Goods Sold",21/05/2014 00:00:00,"30244556",200.41,"3663"
"Bracknell Forest Council","http://opendatacommunities.org/id/unitary-authority/bracknell-forest","Bracknell Forest Council","00MA","Short Term Support Other","Short Term Support Other","Bridgewell Unit","Cost of Goods Sold",21/05/2014 00:00:00,"30244556",30.67,"3663"
"Bracknell Forest Council","http://opendatacommunities.org/id/unitary-authority/bracknell-forest","Bracknell Forest Council","00MA","Business Support","Premises Development","Easthampstead Park Centre - Catering","Cleaning materials",24/04/2014 00:00:00,"30243353",12.6,"ALLIANCE DISPOSABLES LTD"
"Bracknell Forest Council","http://opendatacommunities.org/id/unitary-authority/bracknell-forest","Bracknell Forest Council","00MA","Business Support","Premises Development","Easthampstead Park Centre - Catering","Cleaning materials",20/02/2014 00:00:00,"30244282",1185.73,"ALLIANCE DISPOSABLES LTD"
"Bracknell Forest Council","http://opendatacommunities.org/id/unitary-authority/bracknell-forest","Bracknell Forest Council","00MA","Business Support","Premises Development","Easthampstead Park Centre - Catering","Cleaning materials",24/02/2014 00:00:00,"30244282",17.1,"ALLIANCE DISPOSABLES LTD"
"Bracknell Forest Council","http://opendatacommunities.org/id/unitary-authority/bracknell-forest","Bracknell Forest Council","00MA","Business Support","Premises Development","Easthampstead Park Centre - Catering","Cleaning materials",25/02/2014 00:00:00,"30244282",49.29,"ALLIANCE DISPOSABLES LTD"
"Bracknell Forest Council","http://opendatacommunities.org/id/unitary-authority/bracknell-forest","Bracknell Forest Council","00MA","Business Support","Premises Development","Easthampstead Park Centre - Catering","Cleaning materials",26/02/2014 00:00:00,"30244282",101.43,"ALLIANCE DISPOSABLES LTD"
"Bracknell Forest Council","http://opendatacommunities.org/id/unitary-authority/bracknell-forest","Bracknell Forest Council","00MA","Central Support Services - COF","Finance","Insurance Premiums Holding Account","Insurance Premiums",01/04/2014 00:00:00,"6548834",10181.93,"ALLIANZ INSURANCE PLC"
"Bracknell Forest Council","http://opendatacommunities.org/id/unitary-authority/bracknell-forest","Bracknell Forest Council","00MA","Central Support Services - COF","Finance","Insurance Premiums Holding Account","Insurance Premiums",01/04/2014 00:00:00,"6548834",2156.53,"ALLIANZ INSURANCE PLC"
"Bracknell Forest Council","http://opendatacommunities.org/id/unitary-authority/bracknell-forest","Bracknell Forest Council","00MA","Vehicles &  Plant","Vehicles and Plant Summary Account","Fuel Card Holding Account","Petrol",30/04/2014 00:00:00,"6548549",5419.72,"ALLSTAR BUSINESS SOLUTIONS LTD"
"Bracknell Forest Council","http://opendatacommunities.org/id/unitary-authority/bracknell-forest","Bracknell Forest Council","00MA","Older People (65+)","Long Term Support - Nursing","MC Older People 65+ Long Term Support - Nursing","Contracted Services",05/05/2014 00:00:00,"30243192",2803.62,"AMBERBROOK MANAGEMENT LTD"
"Bracknell Forest Council","http://opendatacommunities.org/id/unitary-authority/bracknell-forest","Bracknell Forest Council","00MA","Adults (18-64)","Long Term Support - Nursing","MH Adults 18-64 Long Term Support - Nursing","Contracted Services",05/05/2014 00:00:00,"30243192",2803.62,"AMBERBROOK MANAGEMENT LTD"
"Bracknell Forest Council","http://opendatacommunities.org/id/unitary-authority/bracknell-forest","Bracknell Forest Council","00MA","Older People (65+)","Long term Support - Residential","PS Older People 65+ Long Term Support - Residential","Contracted Services",05/05/2014 00:00:00,"30243192",1936.12,"AMBERBROOK MANAGEMENT LTD"
"Bracknell Forest Council","http://opendatacommunities.org/id/unitary-authority/bracknell-forest","Bracknell Forest Council","00MA","Older People (65+)","Long Term Support - Nursing","PS Older People 65+ Long Term Support - Nursing","Contracted Services",05/05/2014 00:00:00,"30243192",2505.38,"AMBERBROOK MANAGEMENT LTD"
"Bracknell Forest Council","http://opendatacommunities.org/id/unitary-authority/bracknell-forest","Bracknell Forest Council","00MA","Older People (65+)","Long Term Support - Nursing","PS Older People 65+ Long Term Support - Nursing","Contracted Services",05/05/2014 00:00:00,"30243192",2505.38,"AMBERBROOK MANAGEMENT LTD"
"Bracknell Forest Council","http://opendatacommunities.org/id/unitary-authority/bracknell-forest","Bracknell Forest Council","00MA","Older People (65+)","Long Term Support - Nursing","MH Older People 65+ Long Term Support - Nursing","Contracted Services",05/05/2014 00:00:00,"30243192",5309,"AMBERBROOK MANAGEMENT LTD"
"Bracknell Forest Council","http://opendatacommunities.org/id/unitary-authority/bracknell-forest","Bracknell Forest Council","00MA","Older People (65+)","Long Term Support - Nursing","MC Older People 65+ Long Term Support - Nursing","Contracted Services",05/05/2014 00:00:00,"30243192",2803.58,"AMBERBROOK MANAGEMENT LTD"
"Bracknell Forest Council","http://opendatacommunities.org/id/unitary-authority/bracknell-forest","Bracknell Forest Council","00MA","Older People (65+)","Long Term Support - Nursing","PS Older People 65+ Long Term Support - Nursing","Contracted Services",05/05/2014 00:00:00,"30243192",2505.38,"AMBERBROOK MANAGEMENT LTD"
"Bracknell Forest Council","http://opendatacommunities.org/id/unitary-authority/bracknell-forest","Bracknell Forest Council","00MA","Older People (65+)","Long Term Support - Nursing","PS Older People 65+ Long Term Support - Nursing","Contracted Services",05/05/2014 00:00:00,"30243192",2505.38,"AMBERBROOK MANAGEMENT LTD"
"Bracknell Forest Council","http://opendatacommunities.org/id/unitary-authority/bracknell-forest","Bracknell Forest Council","00MA","Older People (65+)","Long Term Support - Nursing","MC Older People 65+ Long Term Support - Nursing","Contracted Services",05/05/2014 00:00:00,"30243192",2505.38,"AMBERBROOK MANAGEMENT LTD"
"Bracknell Forest Council","http://opendatacommunities.org/id/unitary-authority/bracknell-forest","Bracknell Forest Council","00MA","Older People (65+)","Long Term Support - Nursing","PS Older People 65+ Long Term Support - Nursing","Contracted Services",05/05/2014 00:00:00,"30243192",2505.38,"AMBERBROOK MANAGEMENT LTD"
"Bracknell Forest Council","http://opendatacommunities.org/id/unitary-authority/bracknell-forest","Bracknell Forest Council","00MA","Older People (65+)","Long Term Support - Nursing","MC Older People 65+ Long Term Support - Nursing","Contracted Services",05/05/2014 00:00:00,"30243192",2505.38,"AMBERBROOK MANAGEMENT LTD"
"Bracknell Forest Council","http://opendatacommunities.org/id/unitary-authority/bracknell-forest","Bracknell Forest Council","00MA","Older People (65+)","Long Term Support - Nursing","MC Older People 65+ Long Term Support - Nursing","Contracted Services",05/05/2014 00:00:00,"30243192",2505.38,"AMBERBROOK MANAGEMENT LTD"
"Bracknell Forest Council","http://opendatacommunities.org/id/unitary-authority/bracknell-forest","Bracknell Forest Council","00MA","Older People (65+)","Long Term Support - Nursing","MH Older People 65+ Long Term Support - Nursing","Contracted Services",05/05/2014 00:00:00,"30243192",4314.22,"ASCOT NURSING HOME LTD"
"Bracknell Forest Council","http://opendatacommunities.org/id/unitary-authority/bracknell-forest","Bracknell Forest Council","00MA","Adults (18-64)","Long Term Support - Nursing","PS Adults 18-64 Long Term Support - Nursing","Contracted Services",03/06/2014 00:00:00,"30244953",4431.84,"ASCOT NURSING HOME LTD"
"Bracknell Forest Council","http://opendatacommunities.org/id/unitary-authority/bracknell-forest","Bracknell Forest Council","00MA","Older People (65+)","Long Term Support - Nursing","MH Older People 65+ Long Term Support - Nursing","Contracted Services",03/06/2014 00:00:00,"30244953",4311.08,"ASCOT NURSING HOME LTD"
"Bracknell Forest Council","http://opendatacommunities.org/id/unitary-authority/bracknell-forest","Bracknell Forest Council","00MA","Adults (18-64)","Long Term Support - Nursing","MH Adults 18-64 Long Term Support - Nursing","Contracted Services",03/06/2014 00:00:00,"30244953",2652.92,"ASCOT NURSING HOME LTD"
"Bracknell Forest Council","http://opendatacommunities.org/id/unitary-authority/bracknell-forest","Bracknell Forest Council","00MA","Older People (65+)","Long Term Support - Nursing","PS Older People 65+ Long Term Support - Nursing","Contracted Services",05/05/2014 00:00:00,"30243192",3293.3,"ASCOT RESIDENTIAL HOMES LTD"
"Bracknell Forest Council","http://opendatacommunities.org/id/unitary-authority/bracknell-forest","Bracknell Forest Council","00MA","Older People (65+)","Long Term Support - Nursing","PS Older People 65+ Long Term Support - Nursing","Contracted Services",05/05/2014 00:00:00,"30243192",3293.3,"ASCOT RESIDENTIAL HOMES LTD"
"Bracknell Forest Council","http://opendatacommunities.org/id/unitary-authority/bracknell-forest","Bracknell Forest Council","00MA","Older People (65+)","Long Term Support - Nursing","PS Older People 65+ Long Term Support - Nursing","Contracted Services",05/05/2014 00:00:00,"30243192",3293.3,"ASCOT RESIDENTIAL HOMES LTD"
"Bracknell Forest Council","http://opendatacommunities.org/id/unitary-authority/bracknell-forest","Bracknell Forest Council","00MA","Older People (65+)","Long term Support - Residential","MC Older People 65+ Long Term Support - Residential","Contracted Services",05/05/2014 00:00:00,"30243192",2820.32,"ASCOT RESIDENTIAL HOMES LTD"
"Bracknell Forest Council","http://opendatacommunities.org/id/unitary-authority/bracknell-forest","Bracknell Forest Council","00MA","Older People (65+)","Long term Support - Residential","MC Older People 65+ Long Term Support - Residential","Contracted Services",03/06/2014 00:00:00,"30244953",3400,"ASCOT RESIDENTIAL HOMES LTD"
"Bracknell Forest Council","http://opendatacommunities.org/id/unitary-authority/bracknell-forest","Bracknell Forest Council","00MA","Older People (65+)","Long Term Support - Nursing","PS Older People 65+ Long Term Support - Nursing","Contracted Services",03/06/2014 00:00:00,"30244953",3290.16,"ASCOT RESIDENTIAL HOMES LTD"
"Bracknell Forest Council","http://opendatacommunities.org/id/unitary-authority/bracknell-forest","Bracknell Forest Council","00MA","Older People (65+)","Long Term Support - Nursing","PS Older People 65+ Long Term Support - Nursing","Contracted Services",03/06/2014 00:00:00,"30244953",3290.16,"ASCOT RESIDENTIAL HOMES LTD"
"Bracknell Forest Council","http://opendatacommunities.org/id/unitary-authority/bracknell-forest","Bracknell Forest Council","00MA","Older People (65+)","Long term Support - Residential","PS Older People 65+ Long Term Support - Residential","Contracted Services",03/06/2014 00:00:00,"30244953",6841.52,"ASCOT RESIDENTIAL HOMES LTD"
"Bracknell Forest Council","http://opendatacommunities.org/id/unitary-authority/bracknell-forest","Bracknell Forest Council","00MA","Older People (65+)","Long Term Support - Nursing","PS Older People 65+ Long Term Support - Nursing","Contracted Services",03/06/2014 00:00:00,"30244953",3290.16,"ASCOT RESIDENTIAL HOMES LTD"
"Bracknell Forest Council","http://opendatacommunities.org/id/unitary-authority/bracknell-forest","Bracknell Forest Council","00MA","Older People (65+)","Long Term Support - Nursing","PS Older People 65+ Long Term Support - Nursing","Contracted Services",03/06/2014 00:00:00,"30244953",1326.43,"ASCOT RESIDENTIAL HOMES LTD"
"Bracknell Forest Council","http://opendatacommunities.org/id/unitary-authority/bracknell-forest","Bracknell Forest Council","00MA","Management and Support Services - CYPL","Holding Codes - net nil","Education Library Service - Resources","Audio/Visual materials",21/04/2014 00:00:00,"6548160",947.16,"ASKEWS & HOLTS LIBRARY SERVICE"
"Bracknell Forest Council","http://opendatacommunities.org/id/unitary-authority/bracknell-forest","Bracknell Forest Council","00MA","Management and Support Services - CYPL","Holding Codes - net nil","Education Library Service - Resources","Audio/Visual materials",28/04/2014 00:00:00,"6548161",815.72,"ASKEWS & HOLTS LIBRARY SERVICE"
"Bracknell Forest Council","http://opendatacommunities.org/id/unitary-authority/bracknell-forest","Bracknell Forest Council","00MA","Libraries","Stock Ordering, Cataloguing & Distribution","Library Book Fund","Audio/Visual materials",12/05/2014 00:00:00,"6548881",970.87,"ASKEWS & HOLTS LIBRARY SERVICE"
"Bracknell Forest Council","http://opendatacommunities.org/id/unitary-authority/bracknell-forest","Bracknell Forest Council","00MA","Libraries","Stock Ordering, Cataloguing & Distribution","Library Book Fund","Audio/Visual materials",28/04/2014 00:00:00,"6548882",2155.95,"ASKEWS & HOLTS LIBRARY SERVICE"
"Bracknell Forest Council","http://opendatacommunities.org/id/unitary-authority/bracknell-forest","Bracknell Forest Council","00MA","Libraries","Stock Ordering, Cataloguing & Distribution","Library Book Fund","Audio/Visual materials",28/04/2014 00:00:00,"6548882",1055.52,"ASKEWS & HOLTS LIBRARY SERVICE"
"Bracknell Forest Council","http://opendatacommunities.org/id/unitary-authority/bracknell-forest","Bracknell Forest Council","00MA","Libraries","Stock Ordering, Cataloguing & Distribution","Library Book Fund","Audio/Visual materials",28/04/2014 00:00:00,"6548882",1043.1,"ASKEWS & HOLTS LIBRARY SERVICE"
"Bracknell Forest Council","http://opendatacommunities.org/id/unitary-authority/bracknell-forest","Bracknell Forest Council","00MA","Libraries","Library Management & Administration","Library Administration","Office Stationery",28/05/2014 00:00:00,"30244609",57.35,"BANNER"
"Bracknell Forest Council","http://opendatacommunities.org/id/unitary-authority/bracknell-forest","Bracknell Forest Council","00MA","Libraries","Library Management & Administration","Library Administration","Office Stationery",28/05/2014 00:00:00,"30244609",4.68,"BANNER"
"Bracknell Forest Council","http://opendatacommunities.org/id/unitary-authority/bracknell-forest","Bracknell Forest Council","00MA","Services to Young People","Other Services to Young People","Great Hollands Youth Centre","Office Stationery",28/05/2014 00:00:00,"30244609",58.96,"BANNER"
"Bracknell Forest Council","http://opendatacommunities.org/id/unitary-authority/bracknell-forest","Bracknell Forest Council","00MA","Services to Young People","Other Services to Young People","Great Hollands Youth Centre","Office Stationery",28/05/2014 00:00:00,"30244609",18.72,"BANNER"
"Bracknell Forest Council","http://opendatacommunities.org/id/unitary-authority/bracknell-forest","Bracknell Forest Council","00MA","Service Management & Support Services","Service Management & Support Services","Departmental Office Services","Office Stationery",28/05/2014 00:00:00,"30244609",1,"BANNER"
"Bracknell Forest Council","http://opendatacommunities.org/id/unitary-authority/bracknell-forest","Bracknell Forest Council","00MA","Service Management & Support Services","Service Management & Support Services","Departmental Office Services","Office Stationery",28/05/2014 00:00:00,"30244609",0.99,"BANNER"
"Bracknell Forest Council","http://opendatacommunities.org/id/unitary-authority/bracknell-forest","Bracknell Forest Council","00MA","Service Management & Support Services","Service Management & Support Services","Departmental Office Services","Office Stationery",28/05/2014 00:00:00,"30244609",72.8,"BANNER"
"Bracknell Forest Council","http://opendatacommunities.org/id/unitary-authority/bracknell-forest","Bracknell Forest Council","00MA","Service Management & Support Services","Service Management & Support Services","Departmental Office Services","Office Stationery",28/05/2014 00:00:00,"30244609",8.74,"BANNER"
"Bracknell Forest Council","http://opendatacommunities.org/id/unitary-authority/bracknell-forest","Bracknell Forest Council","00MA","Service Management & Support Services","Service Management & Support Services","Departmental Office Services","Office Stationery",28/05/2014 00:00:00,"30244609",17.32,"BANNER"
"Bracknell Forest Council","http://opendatacommunities.org/id/unitary-authority/bracknell-forest","Bracknell Forest Council","00MA","Management and Support Services - CYPL","Unallocated Schools Budget Related Expenditure","Primary Resource Centre","Office Stationery",28/05/2014 00:00:00,"30244609",9.87,"BANNER"
"Bracknell Forest Council","http://opendatacommunities.org/id/unitary-authority/bracknell-forest","Bracknell Forest Council","00MA","Management and Support Services - CYPL","Unallocated Schools Budget Related Expenditure","Primary Resource Centre","Office Stationery",28/05/2014 00:00:00,"30244609",-37.54,"BANNER"
"Bracknell Forest Council","http://opendatacommunities.org/id/unitary-authority/bracknell-forest","Bracknell Forest Council","00MA","Conducting Elections","Other Elections","Elections - European","Office Stationery",28/05/2014 00:00:00,"30244609",141.8,"BANNER"
"Bracknell Forest Council","http://opendatacommunities.org/id/unitary-authority/bracknell-forest","Bracknell Forest Council","00MA","Early Years","Children's Centres","GSSG The Sycamores Children's Centre","Office Stationery",28/05/2014 00:00:00,"30244609",8.32,"BANNER"
"Bracknell Forest Council","http://opendatacommunities.org/id/unitary-authority/bracknell-forest","Bracknell Forest Council","00MA","Early Years","Children's Centres","GSSG The Sycamores Children's Centre","Office Stationery",28/05/2014 00:00:00,"30244609",7.87,"BANNER"
"Bracknell Forest Council","http://opendatacommunities.org/id/unitary-authority/bracknell-forest","Bracknell Forest Council","00MA","Early Years","Children's Centres","GSSG The Sycamores Children's Centre","Office Stationery",28/05/2014 00:00:00,"30244609",19.36,"BANNER"
"Bracknell Forest Council","http://opendatacommunities.org/id/unitary-authority/bracknell-forest","Bracknell Forest Council","00MA","Early Years","Children's Centres","GSSG The Sycamores Children's Centre","Office Stationery",28/05/2014 00:00:00,"30244609",17.82,"BANNER"
"Bracknell Forest Council","http://opendatacommunities.org/id/unitary-authority/bracknell-forest","Bracknell Forest Council","00MA","Early Years","Children's Centres","GSSG The Sycamores Children's Centre","Office Stationery",28/05/2014 00:00:00,"30244609",14.17,"BANNER"
"Bracknell Forest Council","http://opendatacommunities.org/id/unitary-authority/bracknell-forest","Bracknell Forest Council","00MA","Early Years","Children's Centres","GSSG The Sycamores Children's Centre","Office Stationery",28/05/2014 00:00:00,"30244609",6.06,"BANNER"
"Bracknell Forest Council","http://opendatacommunities.org/id/unitary-authority/bracknell-forest","Bracknell Forest Council","00MA","Early Years","Children's Centres","GSSG The Sycamores Children's Centre","Office Stationery",28/05/2014 00:00:00,"30244609",5.66,"BANNER"
"Bracknell Forest Council","http://opendatacommunities.org/id/unitary-authority/bracknell-forest","Bracknell Forest Council","00MA","Central Support Services - COF","Valuers","Property Services","Office Stationery",28/05/2014 00:00:00,"30244609",6.51,"BANNER"
"Bracknell Forest Council","http://opendatacommunities.org/id/unitary-authority/bracknell-forest","Bracknell Forest Council","00MA","Central Support Services - COF","Valuers","Property Services","Office Stationery",28/05/2014 00:00:00,"30244609",4.37,"BANNER"
"Bracknell Forest Council","http://opendatacommunities.org/id/unitary-authority/bracknell-forest","Bracknell Forest Council","00MA","Management & Administration","Management & Administration","Directorate","Office Stationery",28/05/2014 00:00:00,"30244609",5.3,"BANNER"
"Bracknell Forest Council","http://opendatacommunities.org/id/unitary-authority/bracknell-forest","Bracknell Forest Council","00MA","Management & Administration","Management & Administration","Directorate","Office Stationery",28/05/2014 00:00:00,"30244609",0.99,"BANNER"
"Bracknell Forest Council","http://opendatacommunities.org/id/unitary-authority/bracknell-forest","Bracknell Forest Council","00MA","Management & Administration","Management & Administration","Directorate","Office Stationery",28/05/2014 00:00:00,"30244609",187.2,"BANNER"
"Bracknell Forest Council","http://opendatacommunities.org/id/unitary-authority/bracknell-forest","Bracknell Forest Council","00MA","Miscellaneous Public Health Services","Public Health Teams","Public Health - Berkshire Shared Team","Office Stationery",28/05/2014 00:00:00,"30244609",4.08,"BANNER"
"Bracknell Forest Council","http://opendatacommunities.org/id/unitary-authority/bracknell-forest","Bracknell Forest Council","00MA","Miscellaneous Public Health Services","Public Health Teams","Public Health - Berkshire Shared Team","Office Stationery",28/05/2014 00:00:00,"30244609",13.91,"BANNER"
"Bracknell Forest Council","http://opendatacommunities.org/id/unitary-authority/bracknell-forest","Bracknell Forest Council","00MA","Libraries","Library Management & Administration","Library Administration","Office Stationery",28/05/2014 00:00:00,"30244609",9.94,"BANNER"
"Bracknell Forest Council","http://opendatacommunities.org/id/unitary-authority/bracknell-forest","Bracknell Forest Council","00MA","Libraries","Library Management & Administration","Library Administration","Office Stationery",28/05/2014 00:00:00,"30244609",4.53,"BANNER"
"Bracknell Forest Council","http://opendatacommunities.org/id/unitary-authority/bracknell-forest","Bracknell Forest Council","00MA","Management & Administration","Management & Administration","Directorate","Office Stationery",28/05/2014 00:00:00,"30244609",7,"BANNER"
"Bracknell Forest Council","http://opendatacommunities.org/id/unitary-authority/bracknell-forest","Bracknell Forest Council","00MA","Management & Administration","Management & Administration","Directorate","Office Stationery",28/05/2014 00:00:00,"30244609",1.68,"BANNER"
"Bracknell Forest Council","http://opendatacommunities.org/id/unitary-authority/bracknell-forest","Bracknell Forest Council","00MA","Management & Administration","Management & Administration","Directorate","Office Stationery",28/05/2014 00:00:00,"30244609",4.37,"BANNER"
"Bracknell Forest Council","http://opendatacommunities.org/id/unitary-authority/bracknell-forest","Bracknell Forest Council","00MA","Management & Administration","Management & Administration","Directorate","Office Stationery",28/05/2014 00:00:00,"30244609",3.62,"BANNER"
"Bracknell Forest Council","http://opendatacommunities.org/id/unitary-authority/bracknell-forest","Bracknell Forest Council","00MA","Management & Administration","Management & Administration","Directorate","Office Stationery",28/05/2014 00:00:00,"30244609",2.42,"BANNER"
"Bracknell Forest Council","http://opendatacommunities.org/id/unitary-authority/bracknell-forest","Bracknell Forest Council","00MA","Management & Administration","Management & Administration","Directorate","Office Stationery",28/05/2014 00:00:00,"30244609",1.53,"BANNER"
"Bracknell Forest Council","http://opendatacommunities.org/id/unitary-authority/bracknell-forest","Bracknell Forest Council","00MA","Management & Administration","Management & Administration","Directorate","Office Stationery",28/05/2014 00:00:00,"30244609",99.84,"BANNER"
"Bracknell Forest Council","http://opendatacommunities.org/id/unitary-authority/bracknell-forest","Bracknell Forest Council","00MA","Management & Administration","Management & Administration","Directorate","Office Stationery",28/05/2014 00:00:00,"30244609",26.7,"BANNER"
"Bracknell Forest Council","http://opendatacommunities.org/id/unitary-authority/bracknell-forest","Bracknell Forest Council","00MA","Management & Administration","Management & Administration","Directorate","Office Stationery",28/05/2014 00:00:00,"30244609",145.6,"BANNER"
"Bracknell Forest Council","http://opendatacommunities.org/id/unitary-authority/bracknell-forest","Bracknell Forest Council","00MA","Central Support Services - COF","Personnel","Personnel Services","Office Stationery",28/05/2014 00:00:00,"30244609",40.47,"BANNER"
"Bracknell Forest Council","http://opendatacommunities.org/id/unitary-authority/bracknell-forest","Bracknell Forest Council","00MA","Central Support Services - COF","Personnel","Personnel Services","Office Stationery",28/05/2014 00:00:00,"30244609",10.8,"BANNER"
"Bracknell Forest Council","http://opendatacommunities.org/id/unitary-authority/bracknell-forest","Bracknell Forest Council","00MA","Central Support Services - COF","Policy Unit","Chief Executive's Office","Office Stationery",28/05/2014 00:00:00,"30244609",37.44,"BANNER"
"Bracknell Forest Council","http://opendatacommunities.org/id/unitary-authority/bracknell-forest","Bracknell Forest Council","00MA","Central Support Services - COF","Policy Unit","Chief Executive's Office","Office Stationery",28/05/2014 00:00:00,"30244609",87.36,"BANNER"
"Bracknell Forest Council","http://opendatacommunities.org/id/unitary-authority/bracknell-forest","Bracknell Forest Council","00MA","Central Support Services - COF","Policy Unit","Chief Executive's Office","Office Stationery",28/05/2014 00:00:00,"30244609",10.78,"BANNER"
"Bracknell Forest Council","http://opendatacommunities.org/id/unitary-authority/bracknell-forest","Bracknell Forest Council","00MA","Management and Support Services - CYPL","Holding Codes - net nil","Education Library Service","Office Stationery",28/05/2014 00:00:00,"30244609",1.08,"BANNER"
"Bracknell Forest Council","http://opendatacommunities.org/id/unitary-authority/bracknell-forest","Bracknell Forest Council","00MA","Management and Support Services - CYPL","Holding Codes - net nil","Education Library Service","Office Stationery",28/05/2014 00:00:00,"30244609",0.99,"BANNER"
"Bracknell Forest Council","http://opendatacommunities.org/id/unitary-authority/bracknell-forest","Bracknell Forest Council","00MA","Management and Support Services - CYPL","Holding Codes - net nil","Education Library Service","Office Stationery",28/05/2014 00:00:00,"30244609",42.24,"BANNER"
"Bracknell Forest Council","http://opendatacommunities.org/id/unitary-authority/bracknell-forest","Bracknell Forest Council","00MA","Management and Support Services - CYPL","Holding Codes - net nil","Education Library Service","Office Stationery",28/05/2014 00:00:00,"30244609",26.31,"BANNER"
"Bracknell Forest Council","http://opendatacommunities.org/id/unitary-authority/bracknell-forest","Bracknell Forest Council","00MA","Management and Support Services - CYPL","Holding Codes - net nil","Education Library Service","Office Stationery",28/05/2014 00:00:00,"30244609",19.07,"BANNER"
"Bracknell Forest Council","http://opendatacommunities.org/id/unitary-authority/bracknell-forest","Bracknell Forest Council","00MA","Management and Support Services - CYPL","Holding Codes - net nil","Education Library Service","Office Stationery",28/05/2014 00:00:00,"30244609",17.54,"BANNER"
"Bracknell Forest Council","http://opendatacommunities.org/id/unitary-authority/bracknell-forest","Bracknell Forest Council","00MA","Management and Support Services - CYPL","Holding Codes - net nil","Education Library Service","Office Stationery",28/05/2014 00:00:00,"30244609",13.91,"BANNER"
"Bracknell Forest Council","http://opendatacommunities.org/id/unitary-authority/bracknell-forest","Bracknell Forest Council","00MA","Service Management & Support Services","Service Management & Support Services","Departmental Office Services","Office Stationery",28/05/2014 00:00:00,"30244609",0.75,"BANNER"
"Bracknell Forest Council","http://opendatacommunities.org/id/unitary-authority/bracknell-forest","Bracknell Forest Council","00MA","Service Management & Support Services","Service Management & Support Services","Departmental Office Services","Office Stationery",28/05/2014 00:00:00,"30244609",0.75,"BANNER"
"Bracknell Forest Council","http://opendatacommunities.org/id/unitary-authority/bracknell-forest","Bracknell Forest Council","00MA","Service Management & Support Services","Service Management & Support Services","Departmental Office Services","Office Stationery",28/05/2014 00:00:00,"30244609",0.64,"BANNER"
"Bracknell Forest Council","http://opendatacommunities.org/id/unitary-authority/bracknell-forest","Bracknell Forest Council","00MA","Service Management & Support Services","Service Management & Support Services","Departmental Office Services","Office Stationery",28/05/2014 00:00:00,"30244609",3.39,"BANNER"
"Bracknell Forest Council","http://opendatacommunities.org/id/unitary-authority/bracknell-forest","Bracknell Forest Council","00MA","Service Management & Support Services","Service Management & Support Services","Departmental Office Services","Office Stationery",28/05/2014 00:00:00,"30244609",1.8,"BANNER"
"Bracknell Forest Council","http://opendatacommunities.org/id/unitary-authority/bracknell-forest","Bracknell Forest Council","00MA","Service Management & Support Services","Service Management & Support Services","Departmental Office Services","Office Stationery",28/05/2014 00:00:00,"30244609",1.2,"BANNER"
"Bracknell Forest Council","http://opendatacommunities.org/id/unitary-authority/bracknell-forest","Bracknell Forest Council","00MA","Libraries","Library Management & Administration","Library Administration","Office Stationery",28/05/2014 00:00:00,"30244609",9.94,"BANNER"
"Bracknell Forest Council","http://opendatacommunities.org/id/unitary-authority/bracknell-forest","Bracknell Forest Council","00MA","Libraries","Library Management & Administration","Library Administration","Office Stationery",28/05/2014 00:00:00,"30244609",57.35,"BANNER"
"Bracknell Forest Council","http://opendatacommunities.org/id/unitary-authority/bracknell-forest","Bracknell Forest Council","00MA","Libraries","Library Management & Administration","Library Administration","Office Stationery",28/05/2014 00:00:00,"30244609",20.55,"BANNER"
"Bracknell Forest Council","http://opendatacommunities.org/id/unitary-authority/bracknell-forest","Bracknell Forest Council","00MA","Libraries","Library Management & Administration","Library Administration","Office Stationery",28/05/2014 00:00:00,"30244609",18.02,"BANNER"
"Bracknell Forest Council","http://opendatacommunities.org/id/unitary-authority/bracknell-forest","Bracknell Forest Council","00MA","Libraries","Library Management & Administration","Library Administration","Office Stationery",28/05/2014 00:00:00,"30244609",6.2,"BANNER"
"Bracknell Forest Council","http://opendatacommunities.org/id/unitary-authority/bracknell-forest","Bracknell Forest Council","00MA","Libraries","Library Management & Administration","Library Administration","Office Stationery",28/05/2014 00:00:00,"30244609",4.4,"BANNER"
"Bracknell Forest Council","http://opendatacommunities.org/id/unitary-authority/bracknell-forest","Bracknell Forest Council","00MA","Miscellaneous Public Health Services","Public Health Teams","Public Health - Berkshire Shared Team","Office Stationery",28/05/2014 00:00:00,"30244609",11.63,"BANNER"
"Bracknell Forest Council","http://opendatacommunities.org/id/unitary-authority/bracknell-forest","Bracknell Forest Council","00MA","Miscellaneous Public Health Services","Public Health Teams","Public Health - Berkshire Shared Team","Office Stationery",28/05/2014 00:00:00,"30244609",170,"BANNER"
"Bracknell Forest Council","http://opendatacommunities.org/id/unitary-authority/bracknell-forest","Bracknell Forest Council","00MA","Miscellaneous Public Health Services","Public Health Teams","Public Health - Berkshire Shared Team","Office Stationery",28/05/2014 00:00:00,"30244609",21.08,"BANNER"
"Bracknell Forest Council","http://opendatacommunities.org/id/unitary-authority/bracknell-forest","Bracknell Forest Council","00MA","Miscellaneous Public Health Services","Public Health Teams","Public Health - Berkshire Shared Team","Office Stationery",28/05/2014 00:00:00,"30244609",4.41,"BANNER"
"Bracknell Forest Council","http://opendatacommunities.org/id/unitary-authority/bracknell-forest","Bracknell Forest Council","00MA","Miscellaneous Public Health Services","Public Health Teams","Public Health - Berkshire Shared Team","Office Stationery",28/05/2014 00:00:00,"30244609",12.79,"BANNER"
"Bracknell Forest Council","http://opendatacommunities.org/id/unitary-authority/bracknell-forest","Bracknell Forest Council","00MA","Service Management & Support Services","Service Management & Support Services","Departmental Office Services","Office Stationery",28/05/2014 00:00:00,"30244609",49.92,"BANNER"
"Bracknell Forest Council","http://opendatacommunities.org/id/unitary-authority/bracknell-forest","Bracknell Forest Council","00MA","Service Management & Support Services","Service Management & Support Services","Departmental Office Services","Office Stationery",28/05/2014 00:00:00,"30244609",10.78,"BANNER"
"Bracknell Forest Council","http://opendatacommunities.org/id/unitary-authority/bracknell-forest","Bracknell Forest Council","00MA","Management & Administration","Management & Administration","Directorate","Office Stationery",28/05/2014 00:00:00,"30244609",0.35,"BANNER"
"Bracknell Forest Council","http://opendatacommunities.org/id/unitary-authority/bracknell-forest","Bracknell Forest Council","00MA","Management & Administration","Management & Administration","Directorate","Office Stationery",28/05/2014 00:00:00,"30244609",60.71,"BANNER"
"Bracknell Forest Council","http://opendatacommunities.org/id/unitary-authority/bracknell-forest","Bracknell Forest Council","00MA","Management & Administration","Management & Administration","Directorate","Office Stationery",28/05/2014 00:00:00,"30244609",47.03,"BANNER"
"Bracknell Forest Council","http://opendatacommunities.org/id/unitary-authority/bracknell-forest","Bracknell Forest Council","00MA","Management & Administration","Management & Administration","Directorate","Office Stationery",28/05/2014 00:00:00,"30244609",5.3,"BANNER"
"Bracknell Forest Council","http://opendatacommunities.org/id/unitary-authority/bracknell-forest","Bracknell Forest Council","00MA","Early Years","Children's Centres","GSSG The Sycamores Children's Centre","Office Stationery",28/05/2014 00:00:00,"30244609",6.96,"BANNER"
"Bracknell Forest Council","http://opendatacommunities.org/id/unitary-authority/bracknell-forest","Bracknell Forest Council","00MA","Management & Administration","Management & Administration","Directorate","Office Stationery",28/05/2014 00:00:00,"30244609",1.26,"BANNER"
"Bracknell Forest Council","http://opendatacommunities.org/id/unitary-authority/bracknell-forest","Bracknell Forest Council","00MA","Management & Administration","Management & Administration","Directorate","Office Stationery",28/05/2014 00:00:00,"30244609",27.12,"BANNER"
"Bracknell Forest Council","http://opendatacommunities.org/id/unitary-authority/bracknell-forest","Bracknell Forest Council","00MA","Management & Administration","Management & Administration","Directorate","Office Stationery",28/05/2014 00:00:00,"30244609",15.57,"BANNER"
"Bracknell Forest Council","http://opendatacommunities.org/id/unitary-authority/bracknell-forest","Bracknell Forest Council","00MA","Management & Administration","Management & Administration","Directorate","Office Stationery",28/05/2014 00:00:00,"30244609",8.66,"BANNER"
"Bracknell Forest Council","http://opendatacommunities.org/id/unitary-authority/bracknell-forest","Bracknell Forest Council","00MA","Management & Administration","Management & Administration","Directorate","Office Stationery",28/05/2014 00:00:00,"30244609",5.36,"BANNER"
"Bracknell Forest Council","http://opendatacommunities.org/id/unitary-authority/bracknell-forest","Bracknell Forest Council","00MA","Management & Administration","Management & Administration","Directorate","Office Stationery",28/05/2014 00:00:00,"30244609",5.36,"BANNER"
"Bracknell Forest Council","http://opendatacommunities.org/id/unitary-authority/bracknell-forest","Bracknell Forest Council","00MA","Management & Administration","Management & Administration","Directorate","Office Stationery",28/05/2014 00:00:00,"30244609",5.36,"BANNER"
"Bracknell Forest Council","http://opendatacommunities.org/id/unitary-authority/bracknell-forest","Bracknell Forest Council","00MA","Management & Administration","Management & Administration","Directorate","Office Stationery",28/05/2014 00:00:00,"30244609",5.36,"BANNER"
"Bracknell Forest Council","http://opendatacommunities.org/id/unitary-authority/bracknell-forest","Bracknell Forest Council","00MA","Central Support Services - COF","Valuers","Property Services","Office Stationery",28/05/2014 00:00:00,"30244609",0.8,"BANNER"
"Bracknell Forest Council","http://opendatacommunities.org/id/unitary-authority/bracknell-forest","Bracknell Forest Council","00MA","Central Support Services - COF","Valuers","Property Services","Office Stationery",28/05/2014 00:00:00,"30244609",42.66,"BANNER"
"Bracknell Forest Council","http://opendatacommunities.org/id/unitary-authority/bracknell-forest","Bracknell Forest Council","00MA","Central Support Services - COF","Valuers","Property Services","Office Stationery",28/05/2014 00:00:00,"30244609",29.93,"BANNER"
"Bracknell Forest Council","http://opendatacommunities.org/id/unitary-authority/bracknell-forest","Bracknell Forest Council","00MA","Central Support Services - COF","Valuers","Property Services","Office Stationery",28/05/2014 00:00:00,"30244609",24.96,"BANNER"
"Bracknell Forest Council","http://opendatacommunities.org/id/unitary-authority/bracknell-forest","Bracknell Forest Council","00MA","Central Support Services - COF","Valuers","Property Services","Office Stationery",28/05/2014 00:00:00,"30244609",76.16,"BANNER"
"Bracknell Forest Council","http://opendatacommunities.org/id/unitary-authority/bracknell-forest","Bracknell Forest Council","00MA","Service Management & Support Services","Service Management & Support Services","Departmental Office Services","Office Stationery",28/05/2014 00:00:00,"30244609",0.96,"BANNER"
"Bracknell Forest Council","http://opendatacommunities.org/id/unitary-authority/bracknell-forest","Bracknell Forest Council","00MA","Service Management & Support Services","Service Management & Support Services","Departmental Office Services","Office Stationery",28/05/2014 00:00:00,"30244609",0.45,"BANNER"
"Bracknell Forest Council","http://opendatacommunities.org/id/unitary-authority/bracknell-forest","Bracknell Forest Council","00MA","Management & Administration","Management & Administration","Directorate","Office Stationery",28/05/2014 00:00:00,"30244609",5.36,"BANNER"
"Bracknell Forest Council","http://opendatacommunities.org/id/unitary-authority/bracknell-forest","Bracknell Forest Council","00MA","Service Management & Support Services","Service Management & Support Services","Departmental Office Services","Office Stationery",28/05/2014 00:00:00,"30244609",6.82,"BANNER"
"Bracknell Forest Council","http://opendatacommunities.org/id/unitary-authority/bracknell-forest","Bracknell Forest Council","00MA","Service Management & Support Services","Service Management & Support Services","Departmental Office Services","Office Stationery",28/05/2014 00:00:00,"30244609",3.55,"BANNER"
"Bracknell Forest Council","http://opendatacommunities.org/id/unitary-authority/bracknell-forest","Bracknell Forest Council","00MA","Service Management & Support Services","Service Management & Support Services","Departmental Office Services","Office Stationery",28/05/2014 00:00:00,"30244609",1.8,"BANNER"
"Bracknell Forest Council","http://opendatacommunities.org/id/unitary-authority/bracknell-forest","Bracknell Forest Council","00MA","Service Management & Support Services","Service Management & Support Services","Departmental Office Services","Office Stationery",28/05/2014 00:00:00,"30244609",1.04,"BANNER"
"Bracknell Forest Council","http://opendatacommunities.org/id/unitary-authority/bracknell-forest","Bracknell Forest Council","00MA","Service Management & Support Services","Service Management & Support Services","Departmental Office Services","Office Stationery",28/05/2014 00:00:00,"30244609",1.04,"BANNER"
"Bracknell Forest Council","http://opendatacommunities.org/id/unitary-authority/bracknell-forest","Bracknell Forest Council","00MA","Services to Young People","Adult and Community Learning","Community Learning","Office Stationery",28/05/2014 00:00:00,"30244609",11.47,"BANNER"
"Bracknell Forest Council","http://opendatacommunities.org/id/unitary-authority/bracknell-forest","Bracknell Forest Council","00MA","Services to Young People","Adult and Community Learning","Community Learning","Office Stationery",28/05/2014 00:00:00,"30244609",7.77,"BANNER"
"Bracknell Forest Council","http://opendatacommunities.org/id/unitary-authority/bracknell-forest","Bracknell Forest Council","00MA","Services to Young People","Adult and Community Learning","Community Learning","Office Stationery",28/05/2014 00:00:00,"30244609",2.24,"BANNER"
"Bracknell Forest Council","http://opendatacommunities.org/id/unitary-authority/bracknell-forest","Bracknell Forest Council","00MA","Early Years","Children's Centres","GSSG The Sycamores Children's Centre","Office Stationery",28/05/2014 00:00:00,"30244609",46.05,"BANNER"
"Bracknell Forest Council","http://opendatacommunities.org/id/unitary-authority/bracknell-forest","Bracknell Forest Council","00MA","Short Term Support Other","Short Term Support Other","Bridgewell Unit","Office Stationery",28/05/2014 00:00:00,"30244609",20.43,"BANNER"
"Bracknell Forest Council","http://opendatacommunities.org/id/unitary-authority/bracknell-forest","Bracknell Forest Council","00MA","Short Term Support Other","Short Term Support Other","Bridgewell Unit","Office Stationery",28/05/2014 00:00:00,"30244609",9,"BANNER"
"Bracknell Forest Council","http://opendatacommunities.org/id/unitary-authority/bracknell-forest","Bracknell Forest Council","00MA","Internal Services","Internal Services","Emergency Duty Services","Office Stationery",28/05/2014 00:00:00,"30244609",1.68,"BANNER"
"Bracknell Forest Council","http://opendatacommunities.org/id/unitary-authority/bracknell-forest","Bracknell Forest Council","00MA","Youth Justice","Youth Offender Teams","YJB Core Funding","Office Stationery",28/05/2014 00:00:00,"30244609",114.7,"BANNER"
"Bracknell Forest Council","http://opendatacommunities.org/id/unitary-authority/bracknell-forest","Bracknell Forest Council","00MA","Commissioning and Social Work","Commissioning and Social Work","Administration Running Costs","Office Stationery",28/05/2014 00:00:00,"30244609",29.44,"BANNER"
"Bracknell Forest Council","http://opendatacommunities.org/id/unitary-authority/bracknell-forest","Bracknell Forest Council","00MA","Commissioning and Social Work","Commissioning and Social Work","Administration Running Costs","Office Stationery",28/05/2014 00:00:00,"30244609",21.18,"BANNER"
"Bracknell Forest Council","http://opendatacommunities.org/id/unitary-authority/bracknell-forest","Bracknell Forest Council","00MA","Commissioning and Social Work","Commissioning and Social Work","Administration Running Costs","Office Stationery",28/05/2014 00:00:00,"30244609",15.81,"BANNER"
"Bracknell Forest Council","http://opendatacommunities.org/id/unitary-authority/bracknell-forest","Bracknell Forest Council","00MA","Commissioning and Social Work","Commissioning and Social Work","Administration Running Costs","Office Stationery",28/05/2014 00:00:00,"30244609",13.5,"BANNER"
"Bracknell Forest Council","http://opendatacommunities.org/id/unitary-authority/bracknell-forest","Bracknell Forest Council","00MA","Commissioning and Social Work","Commissioning and Social Work","Administration Running Costs","Office Stationery",28/05/2014 00:00:00,"30244609",6.98,"BANNER"
"Bracknell Forest Council","http://opendatacommunities.org/id/unitary-authority/bracknell-forest","Bracknell Forest Council","00MA","Short Term Support Other","Short Term Support Other","Bridgewell Unit","Office Stationery",28/05/2014 00:00:00,"30244609",22.1,"BANNER"
"Bracknell Forest Council","http://opendatacommunities.org/id/unitary-authority/bracknell-forest","Bracknell Forest Council","00MA","Short Term Support Other","Short Term Support Other","Bridgewell Unit","Office Stationery",28/05/2014 00:00:00,"30244609",12.48,"BANNER"
"Bracknell Forest Council","http://opendatacommunities.org/id/unitary-authority/bracknell-forest","Bracknell Forest Council","00MA","Short Term Support Other","Short Term Support Other","Bridgewell Unit","Office Stationery",28/05/2014 00:00:00,"30244609",70.11,"BANNER"
"Bracknell Forest Council","http://opendatacommunities.org/id/unitary-authority/bracknell-forest","Bracknell Forest Council","00MA","Short Term Support Other","Short Term Support Other","Bridgewell Unit","Office Stationery",28/05/2014 00:00:00,"30244609",25.1,"BANNER"
"Bracknell Forest Council","http://opendatacommunities.org/id/unitary-authority/bracknell-forest","Bracknell Forest Council","00MA","Commissioning and Social Work","Commissioning and Social Work","Administration Running Costs","Office Stationery",28/05/2014 00:00:00,"30244609",5.39,"BANNER"
"Bracknell Forest Council","http://opendatacommunities.org/id/unitary-authority/bracknell-forest","Bracknell Forest Council","00MA","Commissioning and Social Work","Commissioning and Social Work","Administration Running Costs","Office Stationery",28/05/2014 00:00:00,"30244609",4.84,"BANNER"
"Bracknell Forest Council","http://opendatacommunities.org/id/unitary-authority/bracknell-forest","Bracknell Forest Council","00MA","Commissioning and Social Work","Commissioning and Social Work","Administration Running Costs","Office Stationery",28/05/2014 00:00:00,"30244609",4.04,"BANNER"
"Bracknell Forest Council","http://opendatacommunities.org/id/unitary-authority/bracknell-forest","Bracknell Forest Council","00MA","Social Support - Substance Misuse Support","Social Support - Substance Misuse Support","SM New Hope Running Costs","Office Stationery",28/05/2014 00:00:00,"30244609",48.24,"BANNER"
"Bracknell Forest Council","http://opendatacommunities.org/id/unitary-authority/bracknell-forest","Bracknell Forest Council","00MA","Internal Services","Internal Services","Emergency Duty Services","Office Stationery",28/05/2014 00:00:00,"30244609",3.16,"BANNER"
"Bracknell Forest Council","http://opendatacommunities.org/id/unitary-authority/bracknell-forest","Bracknell Forest Council","00MA","Internal Services","Internal Services","Emergency Duty Services","Office Stationery",28/05/2014 00:00:00,"30244609",421.45,"BANNER"
"Bracknell Forest Council","http://opendatacommunities.org/id/unitary-authority/bracknell-forest","Bracknell Forest Council","00MA","Youth Justice","Youth Offender Teams","YJB Core Funding","Office Stationery",28/05/2014 00:00:00,"30244609",3.01,"BANNER"
"Bracknell Forest Council","http://opendatacommunities.org/id/unitary-authority/bracknell-forest","Bracknell Forest Council","00MA","Youth Justice","Youth Offender Teams","YJB Core Funding","Office Stationery",28/05/2014 00:00:00,"30244609",31.28,"BANNER"
"Bracknell Forest Council","http://opendatacommunities.org/id/unitary-authority/bracknell-forest","Bracknell Forest Council","00MA","Youth Justice","Youth Offender Teams","YJB Core Funding","Office Stationery",28/05/2014 00:00:00,"30244609",11.62,"BANNER"
"Bracknell Forest Council","http://opendatacommunities.org/id/unitary-authority/bracknell-forest","Bracknell Forest Council","00MA","Youth Justice","Youth Offender Teams","YJB Core Funding","Office Stationery",28/05/2014 00:00:00,"30244609",9.85,"BANNER"
"Bracknell Forest Council","http://opendatacommunities.org/id/unitary-authority/bracknell-forest","Bracknell Forest Council","00MA","Youth Justice","Youth Offender Teams","YJB Core Funding","Office Stationery",28/05/2014 00:00:00,"30244609",0.8,"BANNER"
"Bracknell Forest Council","http://opendatacommunities.org/id/unitary-authority/bracknell-forest","Bracknell Forest Council","00MA","Commissioning and Social Work","Commissioning and Social Work","Administration Running Costs","Office Stationery",28/05/2014 00:00:00,"30244609",32.22,"BANNER"
"Bracknell Forest Council","http://opendatacommunities.org/id/unitary-authority/bracknell-forest","Bracknell Forest Council","00MA","Commissioning and Social Work","Commissioning and Social Work","Administration Running Costs","Office Stationery",28/05/2014 00:00:00,"30244609",31.41,"BANNER"
"Bracknell Forest Council","http://opendatacommunities.org/id/unitary-authority/bracknell-forest","Bracknell Forest Council","00MA","Recreation, Sports and Leisure","Indoor Sports & Recreation Facilities","Leisure DSO - Coral Reef","Office Stationery",28/05/2014 00:00:00,"30244609",6.8,"BANNER"
"Bracknell Forest Council","http://opendatacommunities.org/id/unitary-authority/bracknell-forest","Bracknell Forest Council","00MA","Recreation, Sports and Leisure","Indoor Sports & Recreation Facilities","Leisure DSO - Coral Reef","Office Stationery",28/05/2014 00:00:00,"30244609",3.83,"BANNER"
"Bracknell Forest Council","http://opendatacommunities.org/id/unitary-authority/bracknell-forest","Bracknell Forest Council","00MA","Other Welfare Services","Other Welfare Services","Forestcare - Operational","Office Stationery",28/05/2014 00:00:00,"30244609",3.49,"BANNER"
"Bracknell Forest Council","http://opendatacommunities.org/id/unitary-authority/bracknell-forest","Bracknell Forest Council","00MA","Other Welfare Services","Other Welfare Services","Forestcare - Operational","Office Stationery",28/05/2014 00:00:00,"30244609",3.26,"BANNER"
"Bracknell Forest Council","http://opendatacommunities.org/id/unitary-authority/bracknell-forest","Bracknell Forest Council","00MA","Other Welfare Services","Other Welfare Services","Forestcare - Operational","Office Stationery",28/05/2014 00:00:00,"30244609",2.02,"BANNER"
"Bracknell Forest Council","http://opendatacommunities.org/id/unitary-authority/bracknell-forest","Bracknell Forest Council","00MA","Other Welfare Services","Other Welfare Services","Forestcare - Operational","Office Stationery",28/05/2014 00:00:00,"30244609",0.21,"BANNER"
"Bracknell Forest Council","http://opendatacommunities.org/id/unitary-authority/bracknell-forest","Bracknell Forest Council","00MA","Other Welfare Services","Other Welfare Services","Forestcare - Operational","Office Stationery",28/05/2014 00:00:00,"30244609",39.96,"BANNER"
"Bracknell Forest Council","http://opendatacommunities.org/id/unitary-authority/bracknell-forest","Bracknell Forest Council","00MA","Central Support Services - COF","Customer Service Centre","Customer Services","Office Stationery",28/05/2014 00:00:00,"30244609",25.56,"BANNER"
"Bracknell Forest Council","http://opendatacommunities.org/id/unitary-authority/bracknell-forest","Bracknell Forest Council","00MA","Central Support Services - COF","Customer Service Centre","Customer Services","Office Stationery",28/05/2014 00:00:00,"30244609",13.61,"BANNER"
"Bracknell Forest Council","http://opendatacommunities.org/id/unitary-authority/bracknell-forest","Bracknell Forest Council","00MA","Central Support Services - COF","Customer Service Centre","Customer Services","Office Stationery",28/05/2014 00:00:00,"30244609",2.02,"BANNER"
"Bracknell Forest Council","http://opendatacommunities.org/id/unitary-authority/bracknell-forest","Bracknell Forest Council","00MA","Central Support Services - COF","Customer Service Centre","Cashiers Services","Office Stationery",28/05/2014 00:00:00,"30244609",36.1,"BANNER"
"Bracknell Forest Council","http://opendatacommunities.org/id/unitary-authority/bracknell-forest","Bracknell Forest Council","00MA","Central Support Services - COF","Customer Service Centre","Customer Services","Office Stationery",28/05/2014 00:00:00,"30244609",24.8,"BANNER"
"Bracknell Forest Council","http://opendatacommunities.org/id/unitary-authority/bracknell-forest","Bracknell Forest Council","00MA","Management and Support Services - CYPL","Strategy, Resources and Early Interventions","Reception & Office Services","Office Stationery",28/05/2014 00:00:00,"30244609",7.84,"BANNER"
"Bracknell Forest Council","http://opendatacommunities.org/id/unitary-authority/bracknell-forest","Bracknell Forest Council","00MA","Management and Support Services - CYPL","Strategy, Resources and Early Interventions","Reception & Office Services","Office Stationery",28/05/2014 00:00:00,"30244609",122.9,"BANNER"
"Bracknell Forest Council","http://opendatacommunities.org/id/unitary-authority/bracknell-forest","Bracknell Forest Council","00MA","Registration of Electors","Registration of Electors","Electoral Registration","Office Stationery",28/05/2014 00:00:00,"30244609",10.72,"BANNER"
"Bracknell Forest Council","http://opendatacommunities.org/id/unitary-authority/bracknell-forest","Bracknell Forest Council","00MA","Recreation, Sports and Leisure","Indoor Sports & Recreation Facilities","Leisure DSO - Leisure Centre","Office Stationery",28/05/2014 00:00:00,"30244609",44.6,"BANNER"
"Bracknell Forest Council","http://opendatacommunities.org/id/unitary-authority/bracknell-forest","Bracknell Forest Council","00MA","Services to Young People","Other Services to Young People","Portman Close Running Costs","Office Stationery",28/05/2014 00:00:00,"30244609",124.8,"BANNER"
"Bracknell Forest Council","http://opendatacommunities.org/id/unitary-authority/bracknell-forest","Bracknell Forest Council","00MA","Registration Births, Deaths & Marriages","Registration births, deaths and marriages","Registration  Births","Office Stationery",28/05/2014 00:00:00,"30244609",37.44,"BANNER"
"Bracknell Forest Council","http://opendatacommunities.org/id/unitary-authority/bracknell-forest","Bracknell Forest Council","00MA","Registration Births, Deaths & Marriages","Registration births, deaths and marriages","Registration  Births","Office Stationery",28/05/2014 00:00:00,"30244609",34.4,"BANNER"
"Bracknell Forest Council","http://opendatacommunities.org/id/unitary-authority/bracknell-forest","Bracknell Forest Council","00MA","Registration Births, Deaths & Marriages","Registration births, deaths and marriages","Registration  Births","Office Stationery",28/05/2014 00:00:00,"30244609",17.24,"BANNER"
"Bracknell Forest Council","http://opendatacommunities.org/id/unitary-authority/bracknell-forest","Bracknell Forest Council","00MA","Central Support Services - COF","Legal","Legal Services","Office Stationery",28/05/2014 00:00:00,"30244609",74.88,"BANNER"
"Bracknell Forest Council","http://opendatacommunities.org/id/unitary-authority/bracknell-forest","Bracknell Forest Council","00MA","Central Support Services - COF","Legal","Legal Services","Office Stationery",28/05/2014 00:00:00,"30244609",26.38,"BANNER"
"Bracknell Forest Council","http://opendatacommunities.org/id/unitary-authority/bracknell-forest","Bracknell Forest Council","00MA","Central Support Services - COF","Customer Service Centre","Cashiers Services","Office Stationery",28/05/2014 00:00:00,"30244609",35.58,"BANNER"
"Bracknell Forest Council","http://opendatacommunities.org/id/unitary-authority/bracknell-forest","Bracknell Forest Council","00MA","Recreation, Sports and Leisure","Indoor Sports & Recreation Facilities","Leisure DSO - Leisure Centre","Office Stationery",28/05/2014 00:00:00,"30244609",49.16,"BANNER"
"Bracknell Forest Council","http://opendatacommunities.org/id/unitary-authority/bracknell-forest","Bracknell Forest Council","00MA","Commissioning and Social Work","Commissioning and Social Work","Administration Running Costs","Office Stationery",28/05/2014 00:00:00,"30244609",0.66,"BANNER"
"Bracknell Forest Council","http://opendatacommunities.org/id/unitary-authority/bracknell-forest","Bracknell Forest Council","00MA","Commissioning and Social Work","Commissioning and Social Work","Administration Running Costs","Office Stationery",28/05/2014 00:00:00,"30244609",6.06,"BANNER"
"Bracknell Forest Council","http://opendatacommunities.org/id/unitary-authority/bracknell-forest","Bracknell Forest Council","00MA","Central Support Services - COF","Construction and Property","Easthampstead House","Office Stationery",28/05/2014 00:00:00,"30244609",5.16,"BANNER"
"Bracknell Forest Council","http://opendatacommunities.org/id/unitary-authority/bracknell-forest","Bracknell Forest Council","00MA","Central Support Services - COF","Construction and Property","Easthampstead House","Office Stationery",28/05/2014 00:00:00,"30244609",1.3,"BANNER"
"Bracknell Forest Council","http://opendatacommunities.org/id/unitary-authority/bracknell-forest","Bracknell Forest Council","00MA","Central Support Services - COF","Construction and Property","Easthampstead House","Office Stationery",28/05/2014 00:00:00,"30244609",0.66,"BANNER"
"Bracknell Forest Council","http://opendatacommunities.org/id/unitary-authority/bracknell-forest","Bracknell Forest Council","00MA","Commissioning and Social Work","Commissioning and Social Work","Administration Running Costs","Office Stationery",28/05/2014 00:00:00,"30244609",6.9,"BANNER"
"Bracknell Forest Council","http://opendatacommunities.org/id/unitary-authority/bracknell-forest","Bracknell Forest Council","00MA","Commissioning and Social Work","Commissioning and Social Work","Administration Running Costs","Office Stationery",28/05/2014 00:00:00,"30244609",5.8,"BANNER"
"Bracknell Forest Council","http://opendatacommunities.org/id/unitary-authority/bracknell-forest","Bracknell Forest Council","00MA","Internal Services","Internal Services","Emergency Duty Services","Office Stationery",28/05/2014 00:00:00,"30244609",6.12,"BANNER"
"Bracknell Forest Council","http://opendatacommunities.org/id/unitary-authority/bracknell-forest","Bracknell Forest Council","00MA","Internal Services","Internal Services","Emergency Duty Services","Office Stationery",28/05/2014 00:00:00,"30244609",6.12,"BANNER"
"Bracknell Forest Council","http://opendatacommunities.org/id/unitary-authority/bracknell-forest","Bracknell Forest Council","00MA","Internal Services","Internal Services","Emergency Duty Services","Office Stationery",28/05/2014 00:00:00,"30244609",6.12,"BANNER"
"Bracknell Forest Council","http://opendatacommunities.org/id/unitary-authority/bracknell-forest","Bracknell Forest Council","00MA","Internal Services","Internal Services","Emergency Duty Services","Office Stationery",28/05/2014 00:00:00,"30244609",4.7,"BANNER"
"Bracknell Forest Council","http://opendatacommunities.org/id/unitary-authority/bracknell-forest","Bracknell Forest Council","00MA","Internal Services","Internal Services","Emergency Duty Services","Office Stationery",28/05/2014 00:00:00,"30244609",4.46,"BANNER"
"Bracknell Forest Council","http://opendatacommunities.org/id/unitary-authority/bracknell-forest","Bracknell Forest Council","00MA","Management and Support Services - CYPL","Unallocated Schools Budget Related Expenditure","Primary Resource Centre","Office Stationery",01/05/2014 00:00:00,"6549219",660.67,"BANNER BUSINESS SERVICES LTD"
"Bracknell Forest Council","http://opendatacommunities.org/id/unitary-authority/bracknell-forest","Bracknell Forest Council","00MA","","","Owlsmoor Suitability","Construction - Other Direct Expenses",30/04/2014 00:00:00,"6549728",1195,"BANYARD CONSULTANTS"
"Bracknell Forest Council","http://opendatacommunities.org/id/unitary-authority/bracknell-forest","Bracknell Forest Council","00MA","Older People (65+)","Long Term Support - Nursing","PS Older People 65+ Long Term Support - Nursing","Contracted Services",05/05/2014 00:00:00,"30243192",2262.28,"BARCHESTER HEALTHCARE LTD"
"Bracknell Forest Council","http://opendatacommunities.org/id/unitary-authority/bracknell-forest","Bracknell Forest Council","00MA","Older People (65+)","Long Term Support - Nursing","PS Older People 65+ Long Term Support - Nursing","Contracted Services",05/05/2014 00:00:00,"30243192",2084.68,"BARCHESTER HEALTHCARE LTD"
"Bracknell Forest Council","http://opendatacommunities.org/id/unitary-authority/bracknell-forest","Bracknell Forest Council","00MA","Older People (65+)","Long Term Support - Nursing","PS Older People 65+ Long Term Support - Nursing","Contracted Services",05/05/2014 00:00:00,"30243192",2084.68,"BARCHESTER HEALTHCARE LTD"
"Bracknell Forest Council","http://opendatacommunities.org/id/unitary-authority/bracknell-forest","Bracknell Forest Council","00MA","Older People (65+)","Long Term Support - Nursing","MC Older People 65+ Long Term Support - Nursing","Contracted Services",05/05/2014 00:00:00,"30243192",2356.92,"BARCHESTER HEALTHCARE LTD"
"Bracknell Forest Council","http://opendatacommunities.org/id/unitary-authority/bracknell-forest","Bracknell Forest Council","00MA","Older People (65+)","Long Term Support - Nursing","PS Older People 65+ Long Term Support - Nursing","Contracted Services",03/06/2014 00:00:00,"30244953",2262.28,"BARCHESTER HEALTHCARE LTD"
"Bracknell Forest Council","http://opendatacommunities.org/id/unitary-authority/bracknell-forest","Bracknell Forest Council","00MA","Older People (65+)","Long Term Support - Nursing","PS Older People 65+ Long Term Support - Nursing","Contracted Services",03/06/2014 00:00:00,"30244953",2058.68,"BARCHESTER HEALTHCARE LTD"
"Bracknell Forest Council","http://opendatacommunities.org/id/unitary-authority/bracknell-forest","Bracknell Forest Council","00MA","Older People (65+)","Long Term Support - Nursing","PS Older People 65+ Long Term Support - Nursing","Contracted Services",03/06/2014 00:00:00,"30244953",2058.68,"BARCHESTER HEALTHCARE LTD"
"Bracknell Forest Council","http://opendatacommunities.org/id/unitary-authority/bracknell-forest","Bracknell Forest Council","00MA","Older People (65+)","Long Term Support - Nursing","MC Older People 65+ Long Term Support - Nursing","Contracted Services",03/06/2014 00:00:00,"30244953",2356.92,"BARCHESTER HEALTHCARE LTD"
"Bracknell Forest Council","http://opendatacommunities.org/id/unitary-authority/bracknell-forest","Bracknell Forest Council","00MA","Management & Administration","Management & Administration","MH Management & Administration","Agency",16/05/2014 00:00:00,"6549659",1000.37,"BEACON CARE SERVICES LTD"
"Bracknell Forest Council","http://opendatacommunities.org/id/unitary-authority/bracknell-forest","Bracknell Forest Council","00MA","Children Looked After","Fostering services","BFBC Fostering Allowances","Other Support to Clients",20/02/2014 00:00:00,"6548704",950,"BERKSHIRE ROOMS LTD"
"Bracknell Forest Council","http://opendatacommunities.org/id/unitary-authority/bracknell-forest","Bracknell Forest Council","00MA","Supporting People","Supporting People","Supporting People Payments","Transfer Payments - Supporting People",27/05/2014 00:00:00,"6549637",13198.82,"BERKSHIRE WOMEN'S AID"
"Bracknell Forest Council","http://opendatacommunities.org/id/unitary-authority/bracknell-forest","Bracknell Forest Council","00MA","Management and Support Services - CYPL","Holding Codes - net nil","Education Library Service","Other Fees for Bought-in Services",16/05/2014 00:00:00,"6549962",550,"BEV HUMPHREY"
"Bracknell Forest Council","http://opendatacommunities.org/id/unitary-authority/bracknell-forest","Bracknell Forest Council","00MA","","","Enabling More Affordable Homes ( Temp to Perm)","Loans  Advanced",06/05/2014 00:00:00,"6548473",36195.34,"BIRCHALL BLACKBURN LAW"
"Bracknell Forest Council","http://opendatacommunities.org/id/unitary-authority/bracknell-forest","Bracknell Forest Council","00MA","Older People (65+)","Long Term Support - Nursing","MC Older People 65+ Long Term Support - Nursing","Contracted Services",05/05/2014 00:00:00,"30243192",2803.62,"BIRDSGROVE NURSING HOME"
"Bracknell Forest Council","http://opendatacommunities.org/id/unitary-authority/bracknell-forest","Bracknell Forest Council","00MA","Older People (65+)","Long Term Support - Nursing","PS Older People 65+ Long Term Support - Nursing","Contracted Services",05/05/2014 00:00:00,"30243192",2803.62,"BIRDSGROVE NURSING HOME"
"Bracknell Forest Council","http://opendatacommunities.org/id/unitary-authority/bracknell-forest","Bracknell Forest Council","00MA","Older People (65+)","Long Term Support - Nursing","PS Older People 65+ Long Term Support - Nursing","Contracted Services",05/05/2014 00:00:00,"30243192",5309,"BIRDSGROVE NURSING HOME"
"Bracknell Forest Council","http://opendatacommunities.org/id/unitary-authority/bracknell-forest","Bracknell Forest Council","00MA","Older People (65+)","Long Term Support - Nursing","MH Older People 65+ Long Term Support - Nursing","Contracted Services",05/05/2014 00:00:00,"30243192",2505.38,"BIRDSGROVE NURSING HOME"
"Bracknell Forest Council","http://opendatacommunities.org/id/unitary-authority/bracknell-forest","Bracknell Forest Council","00MA","Older People (65+)","Long Term Support - Nursing","MC Older People 65+ Long Term Support - Nursing","Contracted Services",05/05/2014 00:00:00,"30243192",2965.42,"BIRDSGROVE NURSING HOME"
"Bracknell Forest Council","http://opendatacommunities.org/id/unitary-authority/bracknell-forest","Bracknell Forest Council","00MA","Older People (65+)","Long Term Support - Nursing","PS Older People 65+ Long Term Support - Nursing","Contracted Services",05/05/2014 00:00:00,"30243192",2505.38,"BIRDSGROVE NURSING HOME"
"Bracknell Forest Council","http://opendatacommunities.org/id/unitary-authority/bracknell-forest","Bracknell Forest Council","00MA","Older People (65+)","Long Term Support - Nursing","PS Older People 65+ Long Term Support - Nursing","Contracted Services",05/05/2014 00:00:00,"30243192",2505.38,"BIRDSGROVE NURSING HOME"
"Bracknell Forest Council","http://opendatacommunities.org/id/unitary-authority/bracknell-forest","Bracknell Forest Council","00MA","Older People (65+)","Long Term Support - Nursing","MC Older People 65+ Long Term Support - Nursing","Contracted Services",05/05/2014 00:00:00,"30243192",5607.24,"BIRDSGROVE NURSING HOME"
"Bracknell Forest Council","http://opendatacommunities.org/id/unitary-authority/bracknell-forest","Bracknell Forest Council","00MA","Older People (65+)","Long Term Support - Nursing","MC Older People 65+ Long Term Support - Nursing","Contracted Services",05/05/2014 00:00:00,"30243192",5607.24,"BIRDSGROVE NURSING HOME"
"Bracknell Forest Council","http://opendatacommunities.org/id/unitary-authority/bracknell-forest","Bracknell Forest Council","00MA","Older People (65+)","Long Term Support - Nursing","MC Older People 65+ Long Term Support - Nursing","Contracted Services",05/05/2014 00:00:00,"30243192",2803.62,"BIRDSGROVE NURSING HOME"
"Bracknell Forest Council","http://opendatacommunities.org/id/unitary-authority/bracknell-forest","Bracknell Forest Council","00MA","Older People (65+)","Long Term Support - Nursing","PS Older People 65+ Long Term Support - Nursing","Contracted Services",05/05/2014 00:00:00,"30243192",5010.76,"BIRDSGROVE NURSING HOME"
"Bracknell Forest Council","http://opendatacommunities.org/id/unitary-authority/bracknell-forest","Bracknell Forest Council","00MA","Older People (65+)","Long Term Support - Nursing","PS Older People 65+ Long Term Support - Nursing","Contracted Services",05/05/2014 00:00:00,"30243192",2505.38,"BIRDSGROVE NURSING HOME"
"Bracknell Forest Council","http://opendatacommunities.org/id/unitary-authority/bracknell-forest","Bracknell Forest Council","00MA","Older People (65+)","Long Term Support - Nursing","MC Older People 65+ Long Term Support - Nursing","Contracted Services",05/05/2014 00:00:00,"30243192",10618,"BIRDSGROVE NURSING HOME"
"Bracknell Forest Council","http://opendatacommunities.org/id/unitary-authority/bracknell-forest","Bracknell Forest Council","00MA","Older People (65+)","Long Term Support - Nursing","MC Older People 65+ Long Term Support - Nursing","Contracted Services",05/05/2014 00:00:00,"30243192",5010.76,"BIRDSGROVE NURSING HOME"
"Bracknell Forest Council","http://opendatacommunities.org/id/unitary-authority/bracknell-forest","Bracknell Forest Council","00MA","Older People (65+)","Long Term Support - Nursing","MC Older People 65+ Long Term Support - Nursing","Contracted Services",05/05/2014 00:00:00,"30243192",2505.38,"BIRDSGROVE NURSING HOME"
"Bracknell Forest Council","http://opendatacommunities.org/id/unitary-authority/bracknell-forest","Bracknell Forest Council","00MA","Older People (65+)","Long Term Support - Nursing","PS Older People 65+ Long Term Support - Nursing","Contracted Services",05/05/2014 00:00:00,"30243192",2505.38,"BIRDSGROVE NURSING HOME"
"Bracknell Forest Council","http://opendatacommunities.org/id/unitary-authority/bracknell-forest","Bracknell Forest Council","00MA","Management & Administration","Management & Administration","Grants & Donations","Grants and Donations",22/05/2014 00:00:00,"6549742",2000,"PARKINSON'S DISEASE SOCIETY OF THE UK"
"Bracknell Forest Council","http://opendatacommunities.org/id/unitary-authority/bracknell-forest","Bracknell Forest Council","00MA","Finance Team","Finance Team","Social Services Finance","Other Fees for Bought-in Services",09/05/2014 00:00:00,"6548690",1445,"PARSLEY PRODUCTIONS"
"Bracknell Forest Council","http://opendatacommunities.org/id/unitary-authority/bracknell-forest","Bracknell Forest Council","00MA","","","Time Square Data Cabling","IT Hardware",15/05/2014 00:00:00,"6549939",725.9,"PATCHSAVE SOLUTIONS LTD"
"Bracknell Forest Council","http://opendatacommunities.org/id/unitary-authority/bracknell-forest","Bracknell Forest Council","00MA","Special Schools","Centrally managed Expenditure - Special","Supporting SEN Pre 16","Voluntary Sector Service Providers",11/04/2014 00:00:00,"6548787",5750,"PATH HILL OUTDOORS"
"Bracknell Forest Council","http://opendatacommunities.org/id/unitary-authority/bracknell-forest","Bracknell Forest Council","00MA","Children Looked After","Fostering services","Independent Fostering (Non BFBC)","Contracted Services",29/04/2014 00:00:00,"6548347",616.42,"PATHWAY CARE (BRISTOL) LTD"
"Bracknell Forest Council","http://opendatacommunities.org/id/unitary-authority/bracknell-forest","Bracknell Forest Council","00MA","Children Looked After","Fostering services","Independent Fostering (Non BFBC)","Contracted Services",15/04/2014 00:00:00,"6548769",5957.1,"PATHWAY CARE (BRISTOL) LTD"
"Bracknell Forest Council","http://opendatacommunities.org/id/unitary-authority/bracknell-forest","Bracknell Forest Council","00MA","Management and Support Services - CSC","Others","Sec 28A - Day Centre Purchases","Voluntary Sector Service Providers",30/04/2014 00:00:00,"6548345",2897.6,"PAUL EGGETT LTD"
"Bracknell Forest Council","http://opendatacommunities.org/id/unitary-authority/bracknell-forest","Bracknell Forest Council","00MA","Early Years","PVI Providers","Grants for Flexibility","Grants and Donations",07/05/2014 00:00:00,"6548387",594,"PAVILION PRE-SCHOOL"
"Bracknell Forest Council","http://opendatacommunities.org/id/unitary-authority/bracknell-forest","Bracknell Forest Council","00MA","Environment, Safety & Routine Maintenance","Safety Maintenance (Principal Roads)","Traffic Signals","R&M - Planned",15/05/2014 00:00:00,"6550095",752,"PEEK TRAFFIC LTD"
"Bracknell Forest Council","http://opendatacommunities.org/id/unitary-authority/bracknell-forest","Bracknell Forest Council","00MA","Environmental Initiatives","Sustainable Development Strategies","Energy Management","Contracted Services",08/05/2014 00:00:00,"6548414",2000,"PETER HUNT"
"Bracknell Forest Council","http://opendatacommunities.org/id/unitary-authority/bracknell-forest","Bracknell Forest Council","00MA","Older People (65+)","Long term Support - Residential","PS Older People 65+ Long Term Support - Residential","Contracted Services",05/05/2014 00:00:00,"30243192",1936.12,"PINEHURST CARE LIMITED"
"Bracknell Forest Council","http://opendatacommunities.org/id/unitary-authority/bracknell-forest","Bracknell Forest Council","00MA","Older People (65+)","Long term Support - Residential","PS Older People 65+ Long Term Support - Residential","Contracted Services",05/05/2014 00:00:00,"30243192",1936.12,"PINEHURST CARE LIMITED"
"Bracknell Forest Council","http://opendatacommunities.org/id/unitary-authority/bracknell-forest","Bracknell Forest Council","00MA","Older People (65+)","Long term Support - Residential","PS Older People 65+ Long Term Support - Residential","Contracted Services",05/05/2014 00:00:00,"30243192",1936.12,"PINEHURST CARE LIMITED"
"Bracknell Forest Council","http://opendatacommunities.org/id/unitary-authority/bracknell-forest","Bracknell Forest Council","00MA","Older People (65+)","Long term Support - Residential","MC Older People 65+ Long Term Support - Residential","Contracted Services",05/05/2014 00:00:00,"30243192",1936.12,"PINEHURST CARE LIMITED"
"Bracknell Forest Council","http://opendatacommunities.org/id/unitary-authority/bracknell-forest","Bracknell Forest Council","00MA","Older People (65+)","Long Term Support - Nursing","PS Older People 65+ Long Term Support - Nursing","Contracted Services",05/05/2014 00:00:00,"30243192",2505.38,"BIRDSGROVE NURSING HOME"
"Bracknell Forest Council","http://opendatacommunities.org/id/unitary-authority/bracknell-forest","Bracknell Forest Council","00MA","Recreation, Sports and Leisure","Indoor Sports & Recreation Facilities","Coral Reef - Catering & Bar","Cost of Goods Sold",02/05/2014 00:00:00,"30243353",7,"BRAKE BROS FOODSERVICE LTD"
"Bracknell Forest Council","http://opendatacommunities.org/id/unitary-authority/bracknell-forest","Bracknell Forest Council","00MA","Recreation, Sports and Leisure","Indoor Sports & Recreation Facilities","Coral Reef - Catering & Bar","Cost of Goods Sold",29/04/2014 00:00:00,"30243353",352.38,"BRAKE BROS FOODSERVICE LTD"
"Bracknell Forest Council","http://opendatacommunities.org/id/unitary-authority/bracknell-forest","Bracknell Forest Council","00MA","Recreation, Sports and Leisure","Indoor Sports & Recreation Facilities","Coral Reef - Catering & Bar","Cost of Goods Sold",29/04/2014 00:00:00,"30243353",7,"BRAKE BROS FOODSERVICE LTD"
"Bracknell Forest Council","http://opendatacommunities.org/id/unitary-authority/bracknell-forest","Bracknell Forest Council","00MA","Business Support","Premises Development","Easthampstead Park Centre - Catering","Cost of Goods Sold",29/04/2014 00:00:00,"30243353",-4.85,"BRAKE BROS FOODSERVICE LTD"
"Bracknell Forest Council","http://opendatacommunities.org/id/unitary-authority/bracknell-forest","Bracknell Forest Council","00MA","Business Support","Premises Development","Easthampstead Park Centre - Catering","Cost of Goods Sold",29/04/2014 00:00:00,"30243353",19.4,"BRAKE BROS FOODSERVICE LTD"
"Bracknell Forest Council","http://opendatacommunities.org/id/unitary-authority/bracknell-forest","Bracknell Forest Council","00MA","Business Support","Premises Development","Easthampstead Park Centre - Catering","Cost of Goods Sold",06/05/2014 00:00:00,"30243830",250.57,"BRAKE BROS FOODSERVICE LTD"
"Bracknell Forest Council","http://opendatacommunities.org/id/unitary-authority/bracknell-forest","Bracknell Forest Council","00MA","Business Support","Premises Development","Easthampstead Park Centre - Catering","Cost of Goods Sold",06/05/2014 00:00:00,"30243830",2.45,"BRAKE BROS FOODSERVICE LTD"
"Bracknell Forest Council","http://opendatacommunities.org/id/unitary-authority/bracknell-forest","Bracknell Forest Council","00MA","Recreation, Sports and Leisure","Indoor Sports & Recreation Facilities","Coral Reef - Catering & Bar","Cost of Goods Sold",06/05/2014 00:00:00,"30243830",218.69,"BRAKE BROS FOODSERVICE LTD"
"Bracknell Forest Council","http://opendatacommunities.org/id/unitary-authority/bracknell-forest","Bracknell Forest Council","00MA","Recreation, Sports and Leisure","Indoor Sports & Recreation Facilities","Coral Reef - Catering & Bar","Cost of Goods Sold",08/05/2014 00:00:00,"30243830",337.38,"BRAKE BROS FOODSERVICE LTD"
"Bracknell Forest Council","http://opendatacommunities.org/id/unitary-authority/bracknell-forest","Bracknell Forest Council","00MA","Business Support","Premises Development","Easthampstead Park Centre - Catering","Cost of Goods Sold",08/05/2014 00:00:00,"30243830",60.59,"BRAKE BROS FOODSERVICE LTD"
"Bracknell Forest Council","http://opendatacommunities.org/id/unitary-authority/bracknell-forest","Bracknell Forest Council","00MA","Business Support","Premises Development","Easthampstead Park Centre - Catering","Cost of Goods Sold",09/05/2014 00:00:00,"30243830",375.84,"BRAKE BROS FOODSERVICE LTD"
"Bracknell Forest Council","http://opendatacommunities.org/id/unitary-authority/bracknell-forest","Bracknell Forest Council","00MA","Business Support","Premises Development","Easthampstead Park Centre - Catering","Cost of Goods Sold",07/05/2014 00:00:00,"30243830",53.74,"BRAKE BROS FOODSERVICE LTD"
"Bracknell Forest Council","http://opendatacommunities.org/id/unitary-authority/bracknell-forest","Bracknell Forest Council","00MA","Business Support","Premises Development","Easthampstead Park Centre - Catering","Cost of Goods Sold",07/05/2014 00:00:00,"30243830",58.16,"BRAKE BROS FOODSERVICE LTD"
"Bracknell Forest Council","http://opendatacommunities.org/id/unitary-authority/bracknell-forest","Bracknell Forest Council","00MA","Business Support","Premises Development","Easthampstead Park Centre - Catering","Cost of Goods Sold",13/05/2014 00:00:00,"30244282",-6.07,"BRAKE BROS FOODSERVICE LTD"
"Bracknell Forest Council","http://opendatacommunities.org/id/unitary-authority/bracknell-forest","Bracknell Forest Council","00MA","Business Support","Premises Development","Easthampstead Park Centre - Catering","Cost of Goods Sold",12/05/2014 00:00:00,"30244282",172.08,"BRAKE BROS FOODSERVICE LTD"
"Bracknell Forest Council","http://opendatacommunities.org/id/unitary-authority/bracknell-forest","Bracknell Forest Council","00MA","Recreation, Sports and Leisure","Indoor Sports & Recreation Facilities","Coral Reef - Catering & Bar","Cost of Goods Sold",13/05/2014 00:00:00,"30244282",105.95,"BRAKE BROS FOODSERVICE LTD"
"Bracknell Forest Council","http://opendatacommunities.org/id/unitary-authority/bracknell-forest","Bracknell Forest Council","00MA","Business Support","Premises Development","Easthampstead Park Centre - Catering","Cost of Goods Sold",13/05/2014 00:00:00,"30244282",251.73,"BRAKE BROS FOODSERVICE LTD"
"Bracknell Forest Council","http://opendatacommunities.org/id/unitary-authority/bracknell-forest","Bracknell Forest Council","00MA","Recreation, Sports and Leisure","Indoor Sports & Recreation Facilities","Coral Reef - Catering & Bar","Cost of Goods Sold",15/05/2014 00:00:00,"30244282",224.91,"BRAKE BROS FOODSERVICE LTD"
"Bracknell Forest Council","http://opendatacommunities.org/id/unitary-authority/bracknell-forest","Bracknell Forest Council","00MA","Business Support","Premises Development","Easthampstead Park Centre - Catering","Cost of Goods Sold",14/05/2014 00:00:00,"30244282",103.43,"BRAKE BROS FOODSERVICE LTD"
"Bracknell Forest Council","http://opendatacommunities.org/id/unitary-authority/bracknell-forest","Bracknell Forest Council","00MA","Business Support","Premises Development","Easthampstead Park Centre - Catering","Cost of Goods Sold",15/05/2014 00:00:00,"30244282",99.3,"BRAKE BROS FOODSERVICE LTD"
"Bracknell Forest Council","http://opendatacommunities.org/id/unitary-authority/bracknell-forest","Bracknell Forest Council","00MA","Business Support","Premises Development","Easthampstead Park Centre - Catering","Cost of Goods Sold",16/05/2014 00:00:00,"30244282",178.5,"BRAKE BROS FOODSERVICE LTD"
"Bracknell Forest Council","http://opendatacommunities.org/id/unitary-authority/bracknell-forest","Bracknell Forest Council","00MA","Older People (65+)","Long term Support - Community:Homecare","PS Older People 65+ Long Term Support - Community:Homecare","Contracted Services",13/05/2014 00:00:00,"30243695",1622.6,"BRIGHT YELLOW SOLUTIONS LTD"
"Bracknell Forest Council","http://opendatacommunities.org/id/unitary-authority/bracknell-forest","Bracknell Forest Council","00MA","Older People (65+)","Long term Support - Community:Homecare","PS Older People 65+ Long Term Support - Community:Homecare","Contracted Services",13/05/2014 00:00:00,"30243695",980.4,"BRIGHT YELLOW SOLUTIONS LTD"
"Bracknell Forest Council","http://opendatacommunities.org/id/unitary-authority/bracknell-forest","Bracknell Forest Council","00MA","Older People (65+)","Long term Support - Community:Homecare","PS Older People 65+ Long Term Support - Community:Homecare","Contracted Services",13/05/2014 00:00:00,"30243695",547.2,"BRIGHT YELLOW SOLUTIONS LTD"
"Bracknell Forest Council","http://opendatacommunities.org/id/unitary-authority/bracknell-forest","Bracknell Forest Council","00MA","Older People (65+)","Long term Support - Community:Homecare","PS Older People 65+ Long Term Support - Community:Homecare","Contracted Services",13/05/2014 00:00:00,"30243695",136.8,"BRIGHT YELLOW SOLUTIONS LTD"
"Bracknell Forest Council","http://opendatacommunities.org/id/unitary-authority/bracknell-forest","Bracknell Forest Council","00MA","Older People (65+)","Long term Support - Community:Homecare","PS Older People 65+ Long Term Support - Community:Homecare","Contracted Services",13/05/2014 00:00:00,"30243695",1238.8,"BRIGHT YELLOW SOLUTIONS LTD"
"Bracknell Forest Council","http://opendatacommunities.org/id/unitary-authority/bracknell-forest","Bracknell Forest Council","00MA","Older People (65+)","Long term Support - Community:Homecare","PS Older People 65+ Long Term Support - Community:Homecare","Contracted Services",13/05/2014 00:00:00,"30243695",2105.2,"BRIGHT YELLOW SOLUTIONS LTD"
"Bracknell Forest Council","http://opendatacommunities.org/id/unitary-authority/bracknell-forest","Bracknell Forest Council","00MA","Older People (65+)","Long term Support - Community:Homecare","PS Older People 65+ Long Term Support - Community:Homecare","Contracted Services",13/05/2014 00:00:00,"30243695",2097.6,"BRIGHT YELLOW SOLUTIONS LTD"
"Bracknell Forest Council","http://opendatacommunities.org/id/unitary-authority/bracknell-forest","Bracknell Forest Council","00MA","Older People (65+)","Long term Support - Community:Homecare","PS Older People 65+ Long Term Support - Community:Homecare","Contracted Services",13/05/2014 00:00:00,"30243695",1216,"BRIGHT YELLOW SOLUTIONS LTD"
"Bracknell Forest Council","http://opendatacommunities.org/id/unitary-authority/bracknell-forest","Bracknell Forest Council","00MA","Older People (65+)","Long term Support - Community:Homecare","MC Older People 65+ Long Term Support - Community:Homecare","Contracted Services",13/05/2014 00:00:00,"30243695",5711.4,"BRIGHT YELLOW SOLUTIONS LTD"
"Bracknell Forest Council","http://opendatacommunities.org/id/unitary-authority/bracknell-forest","Bracknell Forest Council","00MA","Older People (65+)","Long term Support - Community:Homecare","MC Older People 65+ Long Term Support - Community:Homecare","Contracted Services",13/05/2014 00:00:00,"30243695",2090,"BRIGHT YELLOW SOLUTIONS LTD"
"Bracknell Forest Council","http://opendatacommunities.org/id/unitary-authority/bracknell-forest","Bracknell Forest Council","00MA","Older People (65+)","Long term Support - Community:Homecare","MC Older People 65+ Long Term Support - Community:Homecare","Contracted Services",13/05/2014 00:00:00,"30243695",2553.6,"BRIGHT YELLOW SOLUTIONS LTD"
"Bracknell Forest Council","http://opendatacommunities.org/id/unitary-authority/bracknell-forest","Bracknell Forest Council","00MA","Older People (65+)","Long term Support - Community:Homecare","MC Older People 65+ Long Term Support - Community:Homecare","Contracted Services",13/05/2014 00:00:00,"30243695",668.8,"BRIGHT YELLOW SOLUTIONS LTD"
"Bracknell Forest Council","http://opendatacommunities.org/id/unitary-authority/bracknell-forest","Bracknell Forest Council","00MA","Older People (65+)","Long term Support - Community:Homecare","PS Older People 65+ Long Term Support - Community:Homecare","Contracted Services",13/05/2014 00:00:00,"30243695",608,"BRIGHT YELLOW SOLUTIONS LTD"
"Bracknell Forest Council","http://opendatacommunities.org/id/unitary-authority/bracknell-forest","Bracknell Forest Council","00MA","Older People (65+)","Long term Support - Community:Homecare","PS Older People 65+ Long Term Support - Community:Homecare","Contracted Services",13/05/2014 00:00:00,"30243695",1649.2,"BRIGHT YELLOW SOLUTIONS LTD"
"Bracknell Forest Council","http://opendatacommunities.org/id/unitary-authority/bracknell-forest","Bracknell Forest Council","00MA","Older People (65+)","Long term Support - Community:Homecare","PS Older People 65+ Long Term Support - Community:Homecare","Contracted Services",13/05/2014 00:00:00,"30243695",1079,"BRIGHT YELLOW SOLUTIONS LTD"
"Bracknell Forest Council","http://opendatacommunities.org/id/unitary-authority/bracknell-forest","Bracknell Forest Council","00MA","Older People (65+)","Long term Support - Community:Homecare","PS Older People 65+ Long Term Support - Community:Homecare","Contracted Services",13/05/2014 00:00:00,"30243695",539.6,"BRIGHT YELLOW SOLUTIONS LTD"
"Bracknell Forest Council","http://opendatacommunities.org/id/unitary-authority/bracknell-forest","Bracknell Forest Council","00MA","Older People (65+)","Long term Support - Community:Homecare","PS Older People 65+ Long Term Support - Community:Homecare","Contracted Services",13/05/2014 00:00:00,"30243695",1102,"BRIGHT YELLOW SOLUTIONS LTD"
"Bracknell Forest Council","http://opendatacommunities.org/id/unitary-authority/bracknell-forest","Bracknell Forest Council","00MA","Older People (65+)","Long term Support - Community:Homecare","PS Older People 65+ Long Term Support - Community:Homecare","Contracted Services",13/05/2014 00:00:00,"30243695",4932.4,"BRIGHT YELLOW SOLUTIONS LTD"
"Bracknell Forest Council","http://opendatacommunities.org/id/unitary-authority/bracknell-forest","Bracknell Forest Council","00MA","Culture and Heritage","Heritage Museums & Galleries","The Look Out","Electricity",02/06/2014 00:00:00,"30244774",9.23,"BRITISH GAS TRADING"
"Bracknell Forest Council","http://opendatacommunities.org/id/unitary-authority/bracknell-forest","Bracknell Forest Council","00MA","Culture and Heritage","Heritage Museums & Galleries","The Look Out","Electricity",02/06/2014 00:00:00,"30244774",39.84,"BRITISH GAS TRADING"
"Bracknell Forest Council","http://opendatacommunities.org/id/unitary-authority/bracknell-forest","Bracknell Forest Council","00MA","Street Lighting (including Energy Costs)","Street Lighting","Lighting","Electricity",02/06/2014 00:00:00,"30244774",22.61,"BRITISH GAS TRADING"
"Bracknell Forest Council","http://opendatacommunities.org/id/unitary-authority/bracknell-forest","Bracknell Forest Council","00MA","Street Lighting (including Energy Costs)","Street Lighting","Lighting","Electricity",02/06/2014 00:00:00,"30244774",17.46,"BRITISH GAS TRADING"
"Bracknell Forest Council","http://opendatacommunities.org/id/unitary-authority/bracknell-forest","Bracknell Forest Council","00MA","Street Lighting (including Energy Costs)","Street Lighting","Lighting","Electricity",02/06/2014 00:00:00,"30244774",146.74,"BRITISH GAS TRADING"
"Bracknell Forest Council","http://opendatacommunities.org/id/unitary-authority/bracknell-forest","Bracknell Forest Council","00MA","Street Lighting (including Energy Costs)","Street Lighting","Lighting","Electricity",02/06/2014 00:00:00,"30244774",11.13,"BRITISH GAS TRADING"
"Bracknell Forest Council","http://opendatacommunities.org/id/unitary-authority/bracknell-forest","Bracknell Forest Council","00MA","Street Lighting (including Energy Costs)","Street Lighting","Lighting","Electricity",02/06/2014 00:00:00,"30244774",22.82,"BRITISH GAS TRADING"
"Bracknell Forest Council","http://opendatacommunities.org/id/unitary-authority/bracknell-forest","Bracknell Forest Council","00MA","Street Lighting (including Energy Costs)","Street Lighting","Lighting","Electricity",02/06/2014 00:00:00,"30244774",28.15,"BRITISH GAS TRADING"
"Bracknell Forest Council","http://opendatacommunities.org/id/unitary-authority/bracknell-forest","Bracknell Forest Council","00MA","Internal Services","Internal Services","Waymead - Short Stay","Electricity",02/06/2014 00:00:00,"30244774",160.44,"BRITISH GAS TRADING"
"Bracknell Forest Council","http://opendatacommunities.org/id/unitary-authority/bracknell-forest","Bracknell Forest Council","00MA","Internal Services","Internal Services","Waymead - Short Stay","Electricity",02/06/2014 00:00:00,"30244774",507.58,"BRITISH GAS TRADING"
"Bracknell Forest Council","http://opendatacommunities.org/id/unitary-authority/bracknell-forest","Bracknell Forest Council","00MA","Central Support Services - COF","Construction and Property","Depot Facilities","Electricity",02/06/2014 00:00:00,"30244774",897.75,"BRITISH GAS TRADING"
"Bracknell Forest Council","http://opendatacommunities.org/id/unitary-authority/bracknell-forest","Bracknell Forest Council","00MA","Central Support Services - COF","Construction and Property","Depot Facilities","Electricity",02/06/2014 00:00:00,"30244774",851.36,"BRITISH GAS TRADING"
"Bracknell Forest Council","http://opendatacommunities.org/id/unitary-authority/bracknell-forest","Bracknell Forest Council","00MA","Short Term Support Other","Short Term Support Other","Bridgewell Unit","Electricity",02/06/2014 00:00:00,"30244774",1056.86,"BRITISH GAS TRADING"
"Bracknell Forest Council","http://opendatacommunities.org/id/unitary-authority/bracknell-forest","Bracknell Forest Council","00MA","Short Term Support Other","Short Term Support Other","Bridgewell Unit","Electricity",02/06/2014 00:00:00,"30244774",757.22,"BRITISH GAS TRADING"
"Bracknell Forest Council","http://opendatacommunities.org/id/unitary-authority/bracknell-forest","Bracknell Forest Council","00MA","Family Support Services","Other family support services","Family Centre Running Costs","Electricity",02/06/2014 00:00:00,"30244774",241.4,"BRITISH GAS TRADING"
"Bracknell Forest Council","http://opendatacommunities.org/id/unitary-authority/bracknell-forest","Bracknell Forest Council","00MA","Family Support Services","Other family support services","Family Centre Running Costs","Electricity",02/06/2014 00:00:00,"30244774",45.64,"BRITISH GAS TRADING"
"Bracknell Forest Council","http://opendatacommunities.org/id/unitary-authority/bracknell-forest","Bracknell Forest Council","00MA","Public Transport","Co-Ordination","Bus/Rail Interchange","Electricity",02/06/2014 00:00:00,"30244774",737.02,"BRITISH GAS TRADING"
"Bracknell Forest Council","http://opendatacommunities.org/id/unitary-authority/bracknell-forest","Bracknell Forest Council","00MA","Street Lighting (including Energy Costs)","Street Lighting","Christmas Lights and Decorations","Electricity",02/06/2014 00:00:00,"30244774",15.46,"BRITISH GAS TRADING"
"Bracknell Forest Council","http://opendatacommunities.org/id/unitary-authority/bracknell-forest","Bracknell Forest Council","00MA","Street Lighting (including Energy Costs)","Street Lighting","Christmas Lights and Decorations","Electricity",02/06/2014 00:00:00,"30244774",14,"BRITISH GAS TRADING"
"Bracknell Forest Council","http://opendatacommunities.org/id/unitary-authority/bracknell-forest","Bracknell Forest Council","00MA","Street Lighting (including Energy Costs)","Street Lighting","Christmas Lights and Decorations","Electricity",02/06/2014 00:00:00,"30244774",11.71,"BRITISH GAS TRADING"
"Bracknell Forest Council","http://opendatacommunities.org/id/unitary-authority/bracknell-forest","Bracknell Forest Council","00MA","Street Lighting (including Energy Costs)","Street Lighting","Christmas Lights and Decorations","Electricity",02/06/2014 00:00:00,"30244774",11.13,"BRITISH GAS TRADING"
"Bracknell Forest Council","http://opendatacommunities.org/id/unitary-authority/bracknell-forest","Bracknell Forest Council","00MA","Open Spaces","Community Parks & Open Spaces","Town Centre Fountains","Electricity",02/06/2014 00:00:00,"30244774",184.17,"BRITISH GAS TRADING"
"Bracknell Forest Council","http://opendatacommunities.org/id/unitary-authority/bracknell-forest","Bracknell Forest Council","00MA","Open Spaces","Community Parks & Open Spaces","Town Centre Fountains","Electricity",02/06/2014 00:00:00,"30244774",182.91,"BRITISH GAS TRADING"
"Bracknell Forest Council","http://opendatacommunities.org/id/unitary-authority/bracknell-forest","Bracknell Forest Council","00MA","Primary Schools","Delegated Primary School Budgets","Great Hollands Primary School","Electricity",02/06/2014 00:00:00,"30244774",513.32,"BRITISH GAS TRADING"
"Bracknell Forest Council","http://opendatacommunities.org/id/unitary-authority/bracknell-forest","Bracknell Forest Council","00MA","Primary Schools","Delegated Primary School Budgets","Great Hollands Primary School","Electricity",02/06/2014 00:00:00,"30244774",557.04,"BRITISH GAS TRADING"
"Bracknell Forest Council","http://opendatacommunities.org/id/unitary-authority/bracknell-forest","Bracknell Forest Council","00MA","Primary Schools","Delegated Primary School Budgets","Sandy Lane Primary School","Electricity",02/06/2014 00:00:00,"30244774",988.01,"BRITISH GAS TRADING"
"Bracknell Forest Council","http://opendatacommunities.org/id/unitary-authority/bracknell-forest","Bracknell Forest Council","00MA","Primary Schools","Delegated Primary School Budgets","Warfield CE - Primary","Electricity",02/06/2014 00:00:00,"30244774",678.11,"BRITISH GAS TRADING"
"Bracknell Forest Council","http://opendatacommunities.org/id/unitary-authority/bracknell-forest","Bracknell Forest Council","00MA","Primary Schools","Delegated Primary School Budgets","Whitegrove - Primary","Electricity",02/06/2014 00:00:00,"30244774",800.83,"BRITISH GAS TRADING"
"Bracknell Forest Council","http://opendatacommunities.org/id/unitary-authority/bracknell-forest","Bracknell Forest Council","00MA","Primary Schools","Delegated Primary School Budgets","Uplands - Primary","Electricity",02/06/2014 00:00:00,"30244774",237.13,"BRITISH GAS TRADING"
"Bracknell Forest Council","http://opendatacommunities.org/id/unitary-authority/bracknell-forest","Bracknell Forest Council","00MA","Primary Schools","Delegated Primary School Budgets","St Joseph's - Catholic Primary","Electricity",02/06/2014 00:00:00,"30244774",491.76,"BRITISH GAS TRADING"
"Bracknell Forest Council","http://opendatacommunities.org/id/unitary-authority/bracknell-forest","Bracknell Forest Council","00MA","Primary Schools","Delegated Primary School Budgets","Wooden Hill - Primary","Electricity",02/06/2014 00:00:00,"30244774",787.63,"BRITISH GAS TRADING"
"Bracknell Forest Council","http://opendatacommunities.org/id/unitary-authority/bracknell-forest","Bracknell Forest Council","00MA","Primary Schools","Delegated Primary School Budgets","Wooden Hill - Primary","Electricity",02/06/2014 00:00:00,"30244774",74.05,"BRITISH GAS TRADING"
"Bracknell Forest Council","http://opendatacommunities.org/id/unitary-authority/bracknell-forest","Bracknell Forest Council","00MA","Primary Schools","Delegated Primary School Budgets","Wildridings - Primary","Electricity",02/06/2014 00:00:00,"30244774",484.31,"BRITISH GAS TRADING"
"Bracknell Forest Council","http://opendatacommunities.org/id/unitary-authority/bracknell-forest","Bracknell Forest Council","00MA","Primary Schools","Delegated Primary School Budgets","Wildridings - Primary","Electricity",02/06/2014 00:00:00,"30244774",389.51,"BRITISH GAS TRADING"
"Bracknell Forest Council","http://opendatacommunities.org/id/unitary-authority/bracknell-forest","Bracknell Forest Council","00MA","Parking Services","Off Street Parking","Off Street Parking","Electricity",02/06/2014 00:00:00,"30244774",448.57,"BRITISH GAS TRADING"
"Bracknell Forest Council","http://opendatacommunities.org/id/unitary-authority/bracknell-forest","Bracknell Forest Council","00MA","Parking Services","Off Street Parking","Off Street Parking","Electricity",02/06/2014 00:00:00,"30244774",11.23,"BRITISH GAS TRADING"
"Bracknell Forest Council","http://opendatacommunities.org/id/unitary-authority/bracknell-forest","Bracknell Forest Council","00MA","Parking Services","Off Street Parking","Off Street Parking","Electricity",02/06/2014 00:00:00,"30244774",145.16,"BRITISH GAS TRADING"
"Bracknell Forest Council","http://opendatacommunities.org/id/unitary-authority/bracknell-forest","Bracknell Forest Council","00MA","Parking Services","Off Street Parking","Off Street Parking","Electricity",02/06/2014 00:00:00,"30244774",2536.53,"BRITISH GAS TRADING"
"Bracknell Forest Council","http://opendatacommunities.org/id/unitary-authority/bracknell-forest","Bracknell Forest Council","00MA","Parking Services","Off Street Parking","Off Street Parking","Electricity",02/06/2014 00:00:00,"30244774",1897.06,"BRITISH GAS TRADING"
"Bracknell Forest Council","http://opendatacommunities.org/id/unitary-authority/bracknell-forest","Bracknell Forest Council","00MA","Services to Young People","Other Services to Young People","North Ascot Youth Centre (Ark Trust Ltd wef 24/01/2014)","Electricity",02/06/2014 00:00:00,"30244774",102.06,"BRITISH GAS TRADING"
"Bracknell Forest Council","http://opendatacommunities.org/id/unitary-authority/bracknell-forest","Bracknell Forest Council","00MA","Social Support - Substance Misuse Support","Social Support - Substance Misuse Support","SM New Hope Running Costs","Electricity",02/06/2014 00:00:00,"30244774",194.6,"BRITISH GAS TRADING"
"Bracknell Forest Council","http://opendatacommunities.org/id/unitary-authority/bracknell-forest","Bracknell Forest Council","00MA","Management & Administration","Management & Administration","LD Employment Service","Electricity",02/06/2014 00:00:00,"30244774",42.21,"BRITISH GAS TRADING"
"Bracknell Forest Council","http://opendatacommunities.org/id/unitary-authority/bracknell-forest","Bracknell Forest Council","00MA","Management & Administration","Management & Administration","LD Employment Service","Electricity",02/06/2014 00:00:00,"30244775",43.79,"BRITISH GAS TRADING"
"Bracknell Forest Council","http://opendatacommunities.org/id/unitary-authority/bracknell-forest","Bracknell Forest Council","00MA","Parking Services","Off Street Parking","Off Street Parking","Electricity",02/06/2014 00:00:00,"30244775",191.82,"BRITISH GAS TRADING"
"Bracknell Forest Council","http://opendatacommunities.org/id/unitary-authority/bracknell-forest","Bracknell Forest Council","00MA","Libraries","Branch Libraries","Crowthorne Library","Electricity",02/06/2014 00:00:00,"30244775",100.39,"BRITISH GAS TRADING"
"Bracknell Forest Council","http://opendatacommunities.org/id/unitary-authority/bracknell-forest","Bracknell Forest Council","00MA","Open Spaces","Community Parks & Open Spaces","Lily Hill Park Maintenance","Electricity",02/06/2014 00:00:00,"30244775",43.1,"BRITISH GAS TRADING"
"Bracknell Forest Council","http://opendatacommunities.org/id/unitary-authority/bracknell-forest","Bracknell Forest Council","00MA","Secondary Schools","Delegated Secondary Schools Budgets","Brakenhale - Secondary","Electricity",02/06/2014 00:00:00,"30244775",314.54,"BRITISH GAS TRADING"
"Bracknell Forest Council","http://opendatacommunities.org/id/unitary-authority/bracknell-forest","Bracknell Forest Council","00MA","Open Spaces","Community Parks & Open Spaces","Lily Hill Park Maintenance","Electricity",02/06/2014 00:00:00,"30244775",47.82,"BRITISH GAS TRADING"
"Bracknell Forest Council","http://opendatacommunities.org/id/unitary-authority/bracknell-forest","Bracknell Forest Council","00MA","Secondary Schools","Delegated Secondary Schools Budgets","Brakenhale - Secondary","Electricity",02/06/2014 00:00:00,"30244775",652.42,"BRITISH GAS TRADING"
"Bracknell Forest Council","http://opendatacommunities.org/id/unitary-authority/bracknell-forest","Bracknell Forest Council","00MA","Secondary Schools","Delegated Secondary Schools Budgets","Brakenhale - Secondary","Electricity",02/06/2014 00:00:00,"30244775",152.79,"BRITISH GAS TRADING"
"Bracknell Forest Council","http://opendatacommunities.org/id/unitary-authority/bracknell-forest","Bracknell Forest Council","00MA","Parking Services","Off Street Parking","Off Street Parking","Electricity",02/06/2014 00:00:00,"30244775",148.27,"BRITISH GAS TRADING"
"Bracknell Forest Council","http://opendatacommunities.org/id/unitary-authority/bracknell-forest","Bracknell Forest Council","00MA","Business Support","Premises Development","Longshot Lane  - Service Charges","Electricity",02/06/2014 00:00:00,"30244775",30.04,"BRITISH GAS TRADING"
"Bracknell Forest Council","http://opendatacommunities.org/id/unitary-authority/bracknell-forest","Bracknell Forest Council","00MA","Services to Young People","Other Services to Young People","North Ascot Youth Centre (Ark Trust Ltd wef 24/01/2014)","Electricity",02/06/2014 00:00:00,"30244775",68.84,"BRITISH GAS TRADING"
"Bracknell Forest Council","http://opendatacommunities.org/id/unitary-authority/bracknell-forest","Bracknell Forest Council","00MA","Services to Young People","Other Services to Young People","Portman Close Running Costs","Electricity",02/06/2014 00:00:00,"30244775",263.34,"BRITISH GAS TRADING"
"Bracknell Forest Council","http://opendatacommunities.org/id/unitary-authority/bracknell-forest","Bracknell Forest Council","00MA","Primary Schools","Delegated Primary School Budgets","Crowthorne - Primary","Electricity",02/06/2014 00:00:00,"30244775",14.02,"BRITISH GAS TRADING"
"Bracknell Forest Council","http://opendatacommunities.org/id/unitary-authority/bracknell-forest","Bracknell Forest Council","00MA","Social Support - Substance Misuse Support","Social Support - Substance Misuse Support","SM New Hope Running Costs","Electricity",02/06/2014 00:00:00,"30244775",198.54,"BRITISH GAS TRADING"
"Bracknell Forest Council","http://opendatacommunities.org/id/unitary-authority/bracknell-forest","Bracknell Forest Council","00MA","Short Term Support Other","Short Term Support Other","Bridgewell Unit","Electricity",02/06/2014 00:00:00,"30244775",677.81,"BRITISH GAS TRADING"
"Bracknell Forest Council","http://opendatacommunities.org/id/unitary-authority/bracknell-forest","Bracknell Forest Council","00MA","Open Spaces","Community Parks & Open Spaces","Town Centre Fountains","Electricity",02/06/2014 00:00:00,"30244775",43.73,"BRITISH GAS TRADING"
"Bracknell Forest Council","http://opendatacommunities.org/id/unitary-authority/bracknell-forest","Bracknell Forest Council","00MA","Open Spaces","Community Parks & Open Spaces","Town Centre Fountains","Electricity",02/06/2014 00:00:00,"30244775",188,"BRITISH GAS TRADING"
"Bracknell Forest Council","http://opendatacommunities.org/id/unitary-authority/bracknell-forest","Bracknell Forest Council","00MA","Central Support Services - COF","Construction and Property","Depot Facilities","Electricity",02/06/2014 00:00:00,"30244775",906,"BRITISH GAS TRADING"
"Bracknell Forest Council","http://opendatacommunities.org/id/unitary-authority/bracknell-forest","Bracknell Forest Council","00MA","Internal Services","Internal Services","Waymead - Short Stay","Electricity",02/06/2014 00:00:00,"30244775",490.64,"BRITISH GAS TRADING"
"Bracknell Forest Council","http://opendatacommunities.org/id/unitary-authority/bracknell-forest","Bracknell Forest Council","00MA","Open Spaces","Community Parks & Open Spaces","Town Centre Fountains","Electricity",02/06/2014 00:00:00,"30244775",186.63,"BRITISH GAS TRADING"
"Bracknell Forest Council","http://opendatacommunities.org/id/unitary-authority/bracknell-forest","Bracknell Forest Council","00MA","Street Lighting (including Energy Costs)","Street Lighting","Christmas Lights and Decorations","Electricity",02/06/2014 00:00:00,"30244775",12.91,"BRITISH GAS TRADING"
"Bracknell Forest Council","http://opendatacommunities.org/id/unitary-authority/bracknell-forest","Bracknell Forest Council","00MA","Street Lighting (including Energy Costs)","Street Lighting","Christmas Lights and Decorations","Electricity",02/06/2014 00:00:00,"30244775",15.3,"BRITISH GAS TRADING"
"Bracknell Forest Council","http://opendatacommunities.org/id/unitary-authority/bracknell-forest","Bracknell Forest Council","00MA","Open Spaces","Community Parks & Open Spaces","Town Centre Fountains","Electricity",02/06/2014 00:00:00,"30244775",-69.03,"BRITISH GAS TRADING"
"Bracknell Forest Council","http://opendatacommunities.org/id/unitary-authority/bracknell-forest","Bracknell Forest Council","00MA","Open Spaces","Community Parks & Open Spaces","Town Centre Fountains","Electricity",02/06/2014 00:00:00,"30244775",65.21,"BRITISH GAS TRADING"
"Bracknell Forest Council","http://opendatacommunities.org/id/unitary-authority/bracknell-forest","Bracknell Forest Council","00MA","Central Support Services - COF","Construction and Property","Depot Facilities","Electricity",02/06/2014 00:00:00,"30244775",896.51,"BRITISH GAS TRADING"
"Bracknell Forest Council","http://opendatacommunities.org/id/unitary-authority/bracknell-forest","Bracknell Forest Council","00MA","Street Lighting (including Energy Costs)","Street Lighting","Christmas Lights and Decorations","Electricity",02/06/2014 00:00:00,"30244775",16.76,"BRITISH GAS TRADING"
"Bracknell Forest Council","http://opendatacommunities.org/id/unitary-authority/bracknell-forest","Bracknell Forest Council","00MA","Street Lighting (including Energy Costs)","Street Lighting","Christmas Lights and Decorations","Electricity",02/06/2014 00:00:00,"30244775",12.33,"BRITISH GAS TRADING"
"Bracknell Forest Council","http://opendatacommunities.org/id/unitary-authority/bracknell-forest","Bracknell Forest Council","00MA","Primary Schools","Delegated Primary School Budgets","College Town - Infant & Nursery","Electricity",02/06/2014 00:00:00,"30244775",187.23,"BRITISH GAS TRADING"
"Bracknell Forest Council","http://opendatacommunities.org/id/unitary-authority/bracknell-forest","Bracknell Forest Council","00MA","Primary Schools","Delegated Primary School Budgets","Winkfield St Mary's - Primary","Electricity",02/06/2014 00:00:00,"30244775",410.25,"BRITISH GAS TRADING"
"Bracknell Forest Council","http://opendatacommunities.org/id/unitary-authority/bracknell-forest","Bracknell Forest Council","00MA","Older People (65+)","Long term Support - Residential","MC Older People 65+ Long Term Support - Residential","Contracted Services",05/05/2014 00:00:00,"30243192",8771.14,"PINEHURST CARE LIMITED"
"Bracknell Forest Council","http://opendatacommunities.org/id/unitary-authority/bracknell-forest","Bracknell Forest Council","00MA","Older People (65+)","Long term Support - Residential","MC Older People 65+ Long Term Support - Residential","Contracted Services",05/05/2014 00:00:00,"30243192",2047.4,"PINEHURST CARE LIMITED"
"Bracknell Forest Council","http://opendatacommunities.org/id/unitary-authority/bracknell-forest","Bracknell Forest Council","00MA","Older People (65+)","Long term Support - Residential","MC Older People 65+ Long Term Support - Residential","Contracted Services",05/05/2014 00:00:00,"30243192",2128.64,"PINEHURST CARE LIMITED"
"Bracknell Forest Council","http://opendatacommunities.org/id/unitary-authority/bracknell-forest","Bracknell Forest Council","00MA","Older People (65+)","Long term Support - Residential","MC Older People 65+ Long Term Support - Residential","Contracted Services",03/06/2014 00:00:00,"30244953",2047.4,"PINEHURST CARE LIMITED"
"Bracknell Forest Council","http://opendatacommunities.org/id/unitary-authority/bracknell-forest","Bracknell Forest Council","00MA","Older People (65+)","Long term Support - Residential","MC Older People 65+ Long Term Support - Residential","Contracted Services",03/06/2014 00:00:00,"30244953",3054,"PINEHURST CARE LIMITED"
"Bracknell Forest Council","http://opendatacommunities.org/id/unitary-authority/bracknell-forest","Bracknell Forest Council","00MA","Older People (65+)","Long term Support - Residential","MC Older People 65+ Long Term Support - Residential","Contracted Services",03/06/2014 00:00:00,"30244953",1936.12,"PINEHURST CARE LIMITED"
"Bracknell Forest Council","http://opendatacommunities.org/id/unitary-authority/bracknell-forest","Bracknell Forest Council","00MA","Older People (65+)","Long term Support - Residential","MC Older People 65+ Long Term Support - Residential","Contracted Services",03/06/2014 00:00:00,"30244953",2128.64,"PINEHURST CARE LIMITED"
"Bracknell Forest Council","http://opendatacommunities.org/id/unitary-authority/bracknell-forest","Bracknell Forest Council","00MA","Adults (18-64)","Long Term Support - Community:Supported Living","LD Adults 18-64 Long Term Support - Community:Supported Living","Other Support to Clients",08/05/2014 00:00:00,"30243426",798.48,"REDACTED PERSONAL DATA"
"Bracknell Forest Council","http://opendatacommunities.org/id/unitary-authority/bracknell-forest","Bracknell Forest Council","00MA","Adults (18-64)","Long Term Support - Community:Supported Living","LD Adults 18-64 Long Term Support - Community:Supported Living","Other Support to Clients",08/05/2014 00:00:00,"30243426",876.92,"REDACTED PERSONAL DATA"
"Bracknell Forest Council","http://opendatacommunities.org/id/unitary-authority/bracknell-forest","Bracknell Forest Council","00MA","","","","Direct Payments to Clients",01/05/2014 00:00:00,"",137596.14,"REDACTED PERSONAL DATA"
"Bracknell Forest Council","http://opendatacommunities.org/id/unitary-authority/bracknell-forest","Bracknell Forest Council","00MA","","","","Travelling & Subsistence",01/05/2014 00:00:00,"",63909.93,"REDACTED PERSONAL DATA"
"Bracknell Forest Council","http://opendatacommunities.org/id/unitary-authority/bracknell-forest","Bracknell Forest Council","00MA","Miscellaneous Public Health Services","Public Health Teams","Public Health - Bracknell Team","Agency",04/04/2014 00:00:00,"6548585",708.54,"REED"
"Bracknell Forest Council","http://opendatacommunities.org/id/unitary-authority/bracknell-forest","Bracknell Forest Council","00MA","Miscellaneous Public Health Services","Public Health Teams","Public Health - Bracknell Team","Agency",11/04/2014 00:00:00,"6548586",1282.12,"REED"
"Bracknell Forest Council","http://opendatacommunities.org/id/unitary-authority/bracknell-forest","Bracknell Forest Council","00MA","Secondary Schools","Delegated Secondary Schools Budgets","Edgbarrow - Secondary","Electricity",02/06/2014 00:00:00,"30244775",217.05,"BRITISH GAS TRADING"
"Bracknell Forest Council","http://opendatacommunities.org/id/unitary-authority/bracknell-forest","Bracknell Forest Council","00MA","Secondary Schools","Centrally Managed Expenditure - Secondary","College Hall PRU","Electricity",02/06/2014 00:00:00,"30244775",577.58,"BRITISH GAS TRADING"
"Bracknell Forest Council","http://opendatacommunities.org/id/unitary-authority/bracknell-forest","Bracknell Forest Council","00MA","Culture and Heritage","Heritage Museums & Galleries","The Look Out","Electricity",02/06/2014 00:00:00,"30244775",19.22,"BRITISH GAS TRADING"
"Bracknell Forest Council","http://opendatacommunities.org/id/unitary-authority/bracknell-forest","Bracknell Forest Council","00MA","Primary Schools","Delegated Primary School Budgets","St Michael's (Sandhurst) - Primary","Electricity",02/06/2014 00:00:00,"30244775",511.9,"BRITISH GAS TRADING"
"Bracknell Forest Council","http://opendatacommunities.org/id/unitary-authority/bracknell-forest","Bracknell Forest Council","00MA","Primary Schools","Delegated Primary School Budgets","Harmans Water - Primary","Electricity",02/06/2014 00:00:00,"30244775",129.5,"BRITISH GAS TRADING"
"Bracknell Forest Council","http://opendatacommunities.org/id/unitary-authority/bracknell-forest","Bracknell Forest Council","00MA","Primary Schools","Delegated Primary School Budgets","Harmans Water - Primary","Electricity",02/06/2014 00:00:00,"30244775",1239.65,"BRITISH GAS TRADING"
"Bracknell Forest Council","http://opendatacommunities.org/id/unitary-authority/bracknell-forest","Bracknell Forest Council","00MA","Business Support","Premises Development","Liscombe - Service Charges","Electricity",02/06/2014 00:00:00,"30244777",163.34,"BRITISH GAS TRADING"
"Bracknell Forest Council","http://opendatacommunities.org/id/unitary-authority/bracknell-forest","Bracknell Forest Council","00MA","Culture and Heritage","Heritage Museums & Galleries","The Look Out","Electricity",02/06/2014 00:00:00,"30244777",19.33,"BRITISH GAS TRADING"
"Bracknell Forest Council","http://opendatacommunities.org/id/unitary-authority/bracknell-forest","Bracknell Forest Council","00MA","Culture and Heritage","Heritage Museums & Galleries","The Look Out","Electricity",02/06/2014 00:00:00,"30244777",1898.54,"BRITISH GAS TRADING"
"Bracknell Forest Council","http://opendatacommunities.org/id/unitary-authority/bracknell-forest","Bracknell Forest Council","00MA","Primary Schools","Delegated Primary School Budgets","Winkfield St Mary's - Primary","Electricity",02/06/2014 00:00:00,"30244777",302.18,"BRITISH GAS TRADING"
"Bracknell Forest Council","http://opendatacommunities.org/id/unitary-authority/bracknell-forest","Bracknell Forest Council","00MA","Primary Schools","Delegated Primary School Budgets","St Margaret Clitherow - Catholic Primary","Electricity",02/06/2014 00:00:00,"30244777",10.48,"BRITISH GAS TRADING"
"Bracknell Forest Council","http://opendatacommunities.org/id/unitary-authority/bracknell-forest","Bracknell Forest Council","00MA","Primary Schools","Delegated Primary School Budgets","St Margaret Clitherow - Catholic Primary","Electricity",02/06/2014 00:00:00,"30244777",380.02,"BRITISH GAS TRADING"
"Bracknell Forest Council","http://opendatacommunities.org/id/unitary-authority/bracknell-forest","Bracknell Forest Council","00MA","Primary Schools","Delegated Primary School Budgets","Owlsmoor - Primary","Electricity",02/06/2014 00:00:00,"30244777",652.26,"BRITISH GAS TRADING"
"Bracknell Forest Council","http://opendatacommunities.org/id/unitary-authority/bracknell-forest","Bracknell Forest Council","00MA","Primary Schools","Delegated Primary School Budgets","The Pines School","Electricity",02/06/2014 00:00:00,"30244777",510.02,"BRITISH GAS TRADING"
"Bracknell Forest Council","http://opendatacommunities.org/id/unitary-authority/bracknell-forest","Bracknell Forest Council","00MA","Primary Schools","Delegated Primary School Budgets","St Michael's (Easthampstead) - Primary","Electricity",02/06/2014 00:00:00,"30244777",338.53,"BRITISH GAS TRADING"
"Bracknell Forest Council","http://opendatacommunities.org/id/unitary-authority/bracknell-forest","Bracknell Forest Council","00MA","Miscellaneous Public Health Services","Public Health Teams","Public Health - Bracknell Team","Agency",18/04/2014 00:00:00,"6548587",1012.2,"REED"
"Bracknell Forest Council","http://opendatacommunities.org/id/unitary-authority/bracknell-forest","Bracknell Forest Council","00MA","Miscellaneous Public Health Services","Public Health Teams","Public Health - Bracknell Team","Agency",25/04/2014 00:00:00,"6548588",944.72,"REED"
"Bracknell Forest Council","http://opendatacommunities.org/id/unitary-authority/bracknell-forest","Bracknell Forest Council","00MA","Short Term Support Other","Short Term Support Other","Bridgewell Unit","Furniture - Purchase",10/05/2014 00:00:00,"6549845",2302.8,"RENRAY HEALTHCARE LTD"
"Bracknell Forest Council","http://opendatacommunities.org/id/unitary-authority/bracknell-forest","Bracknell Forest Council","00MA","Regulatory Services","Consumer Pricing","RIAMS","Computer Software",17/04/2014 00:00:00,"6546954",2500,"RH ENVIRONMENTAL LTD"
"Bracknell Forest Council","http://opendatacommunities.org/id/unitary-authority/bracknell-forest","Bracknell Forest Council","00MA","Recreation, Sports and Leisure","Dual Use Centres","Sandhurst Sports Centre","R&M - Reactive",28/04/2014 00:00:00,"6548440",740,"RHS HEATING"
"Bracknell Forest Council","http://opendatacommunities.org/id/unitary-authority/bracknell-forest","Bracknell Forest Council","00MA","Recreation, Sports and Leisure","Indoor Sports & Recreation Facilities","BS&LC & Coral Reef","R&M - Reactive",28/04/2014 00:00:00,"6548495",3500,"RHS HEATING"
"Bracknell Forest Council","http://opendatacommunities.org/id/unitary-authority/bracknell-forest","Bracknell Forest Council","00MA","Recreation, Sports and Leisure","Indoor Sports & Recreation Facilities","BS&LC & Coral Reef","R&M - Reactive",28/04/2014 00:00:00,"6548495",1000,"RHS HEATING"
"Bracknell Forest Council","http://opendatacommunities.org/id/unitary-authority/bracknell-forest","Bracknell Forest Council","00MA","Recreation, Sports and Leisure","Dual Use Centres","Edgbarrow Sports Centre","Minor Improvement Schemes",28/04/2014 00:00:00,"6548496",1070,"RHS HEATING"
"Bracknell Forest Council","http://opendatacommunities.org/id/unitary-authority/bracknell-forest","Bracknell Forest Council","00MA","Recreation, Sports and Leisure","Dual Use Centres","Edgbarrow Sports Centre","Minor Improvement Schemes",28/04/2014 00:00:00,"6548496",1000,"RHS HEATING"
"Bracknell Forest Council","http://opendatacommunities.org/id/unitary-authority/bracknell-forest","Bracknell Forest Council","00MA","Management and Support Services - CYPL","Holding Codes - net nil","Childrens Improvement Board Regional Partnership Grant","Consultants Fees",30/04/2014 00:00:00,"6548687",1185,"RICHARD PERRY CONSULTING LTD"
"Bracknell Forest Council","http://opendatacommunities.org/id/unitary-authority/bracknell-forest","Bracknell Forest Council","00MA","Management and Support Services - CYPL","Holding Codes - net nil","Childrens Improvement Board Regional Partnership Grant","Consultants Fees",30/04/2014 00:00:00,"6548334",900,"RICHARD TYNDALL LIMITED"
"Bracknell Forest Council","http://opendatacommunities.org/id/unitary-authority/bracknell-forest","Bracknell Forest Council","00MA","","","Power Generator","Consultant Fees",31/03/2014 00:00:00,"6548249",7500,"RIDGE & PARTNERS LLP"
"Bracknell Forest Council","http://opendatacommunities.org/id/unitary-authority/bracknell-forest","Bracknell Forest Council","00MA","","","Time Square Refurbishment Works","Construction - Contract Payments",30/04/2014 00:00:00,"6548492",12000,"RIDGE & PARTNERS LLP"
"Bracknell Forest Council","http://opendatacommunities.org/id/unitary-authority/bracknell-forest","Bracknell Forest Council","00MA","Central Support Services - COF","Construction and Property","Construction & Maintenance","Consultants Fees",30/04/2014 00:00:00,"6548801",8904.5,"RIDGE & PARTNERS LLP"
"Bracknell Forest Council","http://opendatacommunities.org/id/unitary-authority/bracknell-forest","Bracknell Forest Council","00MA","Environment, Safety & Routine Maintenance","Routine Repairs (Other Roads)","Patching & Minor Repairs - Other Roads","Contracted Services",14/05/2014 00:00:00,"6548824",724267.31,"RINGWAY HIGHWAY SERVICES LTD"
"Bracknell Forest Council","http://opendatacommunities.org/id/unitary-authority/bracknell-forest","Bracknell Forest Council","00MA","Primary Schools","Delegated Primary School Budgets","St Michael's (Easthampstead) - Primary","Electricity",02/06/2014 00:00:00,"30244777",48.01,"BRITISH GAS TRADING"
"Bracknell Forest Council","http://opendatacommunities.org/id/unitary-authority/bracknell-forest","Bracknell Forest Council","00MA","Primary Schools","Delegated Primary School Budgets","St Michael's (Easthampstead) - Primary","Electricity",02/06/2014 00:00:00,"30244777",15.31,"BRITISH GAS TRADING"
"Bracknell Forest Council","http://opendatacommunities.org/id/unitary-authority/bracknell-forest","Bracknell Forest Council","00MA","Primary Schools","Delegated Primary School Budgets","St Michael's (Sandhurst) - Primary","Electricity",02/06/2014 00:00:00,"30244777",323.68,"BRITISH GAS TRADING"
"Bracknell Forest Council","http://opendatacommunities.org/id/unitary-authority/bracknell-forest","Bracknell Forest Council","00MA","Services to Young People","Other Services to Young People","Coopers Hill Youth Centre","Electricity",02/06/2014 00:00:00,"30244777",343.6,"BRITISH GAS TRADING"
"Bracknell Forest Council","http://opendatacommunities.org/id/unitary-authority/bracknell-forest","Bracknell Forest Council","00MA","Libraries","Branch Libraries","Sandhurst Library","Electricity",02/06/2014 00:00:00,"30244777",153.96,"BRITISH GAS TRADING"
"Bracknell Forest Council","http://opendatacommunities.org/id/unitary-authority/bracknell-forest","Bracknell Forest Council","00MA","Libraries","Branch Libraries","Birch Hill Library","Electricity",02/06/2014 00:00:00,"30244777",54.88,"BRITISH GAS TRADING"
"Bracknell Forest Council","http://opendatacommunities.org/id/unitary-authority/bracknell-forest","Bracknell Forest Council","00MA","Libraries","Branch Libraries","Harmans Water Library","Electricity",02/06/2014 00:00:00,"30244777",64.03,"BRITISH GAS TRADING"
"Bracknell Forest Council","http://opendatacommunities.org/id/unitary-authority/bracknell-forest","Bracknell Forest Council","00MA","Open Spaces","Community Parks & Open Spaces","Urban Parks  - Maintenance","Electricity",02/06/2014 00:00:00,"30244777",118.83,"BRITISH GAS TRADING"
"Bracknell Forest Council","http://opendatacommunities.org/id/unitary-authority/bracknell-forest","Bracknell Forest Council","00MA","Libraries","Branch Libraries","Binfield Library","Electricity",02/06/2014 00:00:00,"30244777",251.72,"BRITISH GAS TRADING"
"Bracknell Forest Council","http://opendatacommunities.org/id/unitary-authority/bracknell-forest","Bracknell Forest Council","00MA","Libraries","Branch Libraries","Ascot Library","Electricity",02/06/2014 00:00:00,"30244777",97.64,"BRITISH GAS TRADING"
"Bracknell Forest Council","http://opendatacommunities.org/id/unitary-authority/bracknell-forest","Bracknell Forest Council","00MA","Primary Schools","Delegated Primary School Budgets","Harmans Water - Primary","Electricity",02/06/2014 00:00:00,"30244777",157.18,"BRITISH GAS TRADING"
"Bracknell Forest Council","http://opendatacommunities.org/id/unitary-authority/bracknell-forest","Bracknell Forest Council","00MA","Primary Schools","Delegated Primary School Budgets","Harmans Water - Primary","Electricity",02/06/2014 00:00:00,"30244777",877.87,"BRITISH GAS TRADING"
"Bracknell Forest Council","http://opendatacommunities.org/id/unitary-authority/bracknell-forest","Bracknell Forest Council","00MA","Primary Schools","Delegated Primary School Budgets","Cranbourne - Primary","Electricity",02/06/2014 00:00:00,"30244777",364.2,"BRITISH GAS TRADING"
"Bracknell Forest Council","http://opendatacommunities.org/id/unitary-authority/bracknell-forest","Bracknell Forest Council","00MA","Recreation, Sports and Leisure","Indoor Sports & Recreation Facilities","Recreation Staff Accommodation","Electricity",02/06/2014 00:00:00,"30244777",37.01,"BRITISH GAS TRADING"
"Bracknell Forest Council","http://opendatacommunities.org/id/unitary-authority/bracknell-forest","Bracknell Forest Council","00MA","Recreation, Sports and Leisure","Indoor Sports & Recreation Facilities","Recreation Staff Accommodation","Electricity",02/06/2014 00:00:00,"30244777",56.62,"BRITISH GAS TRADING"
"Bracknell Forest Council","http://opendatacommunities.org/id/unitary-authority/bracknell-forest","Bracknell Forest Council","00MA","Primary Schools","Delegated Primary School Budgets","New Scotland Hill - Primary","Electricity",02/06/2014 00:00:00,"30244777",507.39,"BRITISH GAS TRADING"
"Bracknell Forest Council","http://opendatacommunities.org/id/unitary-authority/bracknell-forest","Bracknell Forest Council","00MA","Primary Schools","Delegated Primary School Budgets","New Scotland Hill - Primary","Electricity",02/06/2014 00:00:00,"30244777",9.04,"BRITISH GAS TRADING"
"Bracknell Forest Council","http://opendatacommunities.org/id/unitary-authority/bracknell-forest","Bracknell Forest Council","00MA","Primary Schools","Delegated Primary School Budgets","Meadow Vale - Primary","Electricity",02/06/2014 00:00:00,"30244777",1045.66,"BRITISH GAS TRADING"
"Bracknell Forest Council","http://opendatacommunities.org/id/unitary-authority/bracknell-forest","Bracknell Forest Council","00MA","Open Spaces","Community Parks & Open Spaces","Lily Hill Park Maintenance","Electricity",02/06/2014 00:00:00,"30244777",51.09,"BRITISH GAS TRADING"
"Bracknell Forest Council","http://opendatacommunities.org/id/unitary-authority/bracknell-forest","Bracknell Forest Council","00MA","Open Spaces","Community Parks & Open Spaces","Lily Hill Park Maintenance","Electricity",02/06/2014 00:00:00,"30244777",33.65,"BRITISH GAS TRADING"
"Bracknell Forest Council","http://opendatacommunities.org/id/unitary-authority/bracknell-forest","Bracknell Forest Council","00MA","Libraries","Branch Libraries","Crowthorne Library","Electricity",02/06/2014 00:00:00,"30244777",212.27,"BRITISH GAS TRADING"
"Bracknell Forest Council","http://opendatacommunities.org/id/unitary-authority/bracknell-forest","Bracknell Forest Council","00MA","Libraries","Branch Libraries","Great Hollands Library","Electricity",02/06/2014 00:00:00,"30244777",56.77,"BRITISH GAS TRADING"
"Bracknell Forest Council","http://opendatacommunities.org/id/unitary-authority/bracknell-forest","Bracknell Forest Council","00MA","Libraries","Branch Libraries","Bracknell Library","Electricity",02/06/2014 00:00:00,"30244777",10.84,"BRITISH GAS TRADING"
"Bracknell Forest Council","http://opendatacommunities.org/id/unitary-authority/bracknell-forest","Bracknell Forest Council","00MA","Libraries","Branch Libraries","Bracknell Library","Electricity",02/06/2014 00:00:00,"30244777",90.57,"BRITISH GAS TRADING"
"Bracknell Forest Council","http://opendatacommunities.org/id/unitary-authority/bracknell-forest","Bracknell Forest Council","00MA","Primary Schools","Delegated Primary School Budgets","St Joseph's - Catholic Primary","Electricity",02/06/2014 00:00:00,"30244777",361.68,"BRITISH GAS TRADING"
"Bracknell Forest Council","http://opendatacommunities.org/id/unitary-authority/bracknell-forest","Bracknell Forest Council","00MA","Primary Schools","Delegated Primary School Budgets","Sandy Lane Primary School","Electricity",02/06/2014 00:00:00,"30244777",817.42,"BRITISH GAS TRADING"
"Bracknell Forest Council","http://opendatacommunities.org/id/unitary-authority/bracknell-forest","Bracknell Forest Council","00MA","Primary Schools","Delegated Primary School Budgets","Fox Hill - Primary","Electricity",02/06/2014 00:00:00,"30244777",304.49,"BRITISH GAS TRADING"
"Bracknell Forest Council","http://opendatacommunities.org/id/unitary-authority/bracknell-forest","Bracknell Forest Council","00MA","Primary Schools","Delegated Primary School Budgets","Crown Wood - Primary","Electricity",02/06/2014 00:00:00,"30244777",1006.02,"BRITISH GAS TRADING"
"Bracknell Forest Council","http://opendatacommunities.org/id/unitary-authority/bracknell-forest","Bracknell Forest Council","00MA","Primary Schools","Delegated Primary School Budgets","Crowthorne - Primary","Electricity",02/06/2014 00:00:00,"30244777",16.52,"BRITISH GAS TRADING"
"Bracknell Forest Council","http://opendatacommunities.org/id/unitary-authority/bracknell-forest","Bracknell Forest Council","00MA","Primary Schools","Delegated Primary School Budgets","Crowthorne - Primary","Electricity",02/06/2014 00:00:00,"30244777",355.48,"BRITISH GAS TRADING"
"Bracknell Forest Council","http://opendatacommunities.org/id/unitary-authority/bracknell-forest","Bracknell Forest Council","00MA","Primary Schools","Delegated Primary School Budgets","Great Hollands Primary School","Electricity",02/06/2014 00:00:00,"30244777",422.55,"BRITISH GAS TRADING"
"Bracknell Forest Council","http://opendatacommunities.org/id/unitary-authority/bracknell-forest","Bracknell Forest Council","00MA","Primary Schools","Delegated Primary School Budgets","Great Hollands Primary School","Electricity",02/06/2014 00:00:00,"30244777",395.53,"BRITISH GAS TRADING"
"Bracknell Forest Council","http://opendatacommunities.org/id/unitary-authority/bracknell-forest","Bracknell Forest Council","00MA","Primary Schools","Delegated Primary School Budgets","Great Hollands Primary School","Electricity",02/06/2014 00:00:00,"30244777",65.03,"BRITISH GAS TRADING"
"Bracknell Forest Council","http://opendatacommunities.org/id/unitary-authority/bracknell-forest","Bracknell Forest Council","00MA","Business Support","Premises Development","Commercial Properties","Electricity",02/06/2014 00:00:00,"30244777",12.95,"BRITISH GAS TRADING"
"Bracknell Forest Council","http://opendatacommunities.org/id/unitary-authority/bracknell-forest","Bracknell Forest Council","00MA","Business Support","Premises Development","Commercial Properties","Electricity",02/06/2014 00:00:00,"30244777",30.98,"BRITISH GAS TRADING"
"Bracknell Forest Council","http://opendatacommunities.org/id/unitary-authority/bracknell-forest","Bracknell Forest Council","00MA","Recreation, Sports and Leisure","Golf Courses","Golf Course Management & Administration","Electricity",02/06/2014 00:00:00,"30244777",1748.94,"BRITISH GAS TRADING"
"Bracknell Forest Council","http://opendatacommunities.org/id/unitary-authority/bracknell-forest","Bracknell Forest Council","00MA","Services to Young People","Other Services to Young People","Whitegrove Youth Centre","Electricity",02/06/2014 00:00:00,"30244777",272.95,"BRITISH GAS TRADING"
"Bracknell Forest Council","http://opendatacommunities.org/id/unitary-authority/bracknell-forest","Bracknell Forest Council","00MA","Services to Young People","Other Services to Young People","North Ascot Youth Centre (Ark Trust Ltd wef 24/01/2014)","Electricity",02/06/2014 00:00:00,"30244777",62.24,"BRITISH GAS TRADING"
"Bracknell Forest Council","http://opendatacommunities.org/id/unitary-authority/bracknell-forest","Bracknell Forest Council","00MA","Central Support Services - COF","Information Technology","Information Technology - Management","Equipment - Purchase",30/04/2014 00:00:00,"6548574",561.91,"BRYMOR CONSTRUCTION LTD"
"Bracknell Forest Council","http://opendatacommunities.org/id/unitary-authority/bracknell-forest","Bracknell Forest Council","00MA","Central Support Services - COF","Construction and Property","Time Square Office","R&M - Reactive",30/04/2014 00:00:00,"6548574",1157.77,"BRYMOR CONSTRUCTION LTD"
"Bracknell Forest Council","http://opendatacommunities.org/id/unitary-authority/bracknell-forest","Bracknell Forest Council","00MA","","","Improvements & Capitalised Repairs (Council Wide)","Construction - Contract Payments",30/04/2014 00:00:00,"6548574",26773.17,"BRYMOR CONSTRUCTION LTD"
"Bracknell Forest Council","http://opendatacommunities.org/id/unitary-authority/bracknell-forest","Bracknell Forest Council","00MA","","","Power Generator","Construction - Contract Payments",30/04/2014 00:00:00,"6548574",135712.25,"BRYMOR CONSTRUCTION LTD"
"Bracknell Forest Council","http://opendatacommunities.org/id/unitary-authority/bracknell-forest","Bracknell Forest Council","00MA","Management and Support Services - CYPL","Unallocated Schools Budget Related Expenditure","Mainstream - Element 3 top up non BFC pre 16","Other Local Authorities",11/04/2014 00:00:00,"6549296",32143,"BUCKINGHAMSHIRE COUNTY COUNCIL"
"Bracknell Forest Council","http://opendatacommunities.org/id/unitary-authority/bracknell-forest","Bracknell Forest Council","00MA","Management and Support Services - CYPL","Unallocated Schools Budget Related Expenditure","Mainstream - Element 3 top up non BFC post 16","Other Local Authorities",11/04/2014 00:00:00,"6549296",1905,"BUCKINGHAMSHIRE COUNTY COUNCIL"
"Bracknell Forest Council","http://opendatacommunities.org/id/unitary-authority/bracknell-forest","Bracknell Forest Council","00MA","Transport Planning, Policy & Strategy","Transport Policy, Planning & Strategy","Monitoring Street Works","Subscriptions",17/04/2014 00:00:00,"6550173",7850,"BUILDING SOFTWARE LIMITED"
"Bracknell Forest Council","http://opendatacommunities.org/id/unitary-authority/bracknell-forest","Bracknell Forest Council","00MA","","","Balance Sheet","Flexible Benefits Control Account",01/04/2014 00:00:00,"6548280",52091.32,"BUPA"
"Bracknell Forest Council","http://opendatacommunities.org/id/unitary-authority/bracknell-forest","Bracknell Forest Council","00MA","Recreation, Sports and Leisure","Indoor Sports & Recreation Facilities","Leisure DSO - Coral Reef","Materials",30/04/2014 00:00:00,"6549494",640,"BUSINESS COMMUNICATIONS"
"Bracknell Forest Council","http://opendatacommunities.org/id/unitary-authority/bracknell-forest","Bracknell Forest Council","00MA","Children Looked After","Fostering services","Independent Fostering (Non BFBC)","Contracted Services",01/05/2014 00:00:00,"6548725",4574.71,"BY THE BRIDGE"
"Bracknell Forest Council","http://opendatacommunities.org/id/unitary-authority/bracknell-forest","Bracknell Forest Council","00MA","Services to Young People","Adult and Community Learning","Open Learning Centre - Brakenhale","R&M - Reactive",28/04/2014 00:00:00,"6548462",1340,"C J M HARVEY CONSTRUCTION LTD"
"Bracknell Forest Council","http://opendatacommunities.org/id/unitary-authority/bracknell-forest","Bracknell Forest Council","00MA","Holding Accounts not in Budget Book - COF","General Holding Accounts","Certificated Contract Payments","R&M - Reactive",28/04/2014 00:00:00,"6548463",4250,"C J M HARVEY CONSTRUCTION LTD"
"Bracknell Forest Council","http://opendatacommunities.org/id/unitary-authority/bracknell-forest","Bracknell Forest Council","00MA","Registration Births, Deaths & Marriages","Registration births, deaths and marriages","Registration Marriages","Equipment - Purchase",13/05/2014 00:00:00,"6548833",9730,"C J M HARVEY CONSTRUCTION LTD"
"Bracknell Forest Council","http://opendatacommunities.org/id/unitary-authority/bracknell-forest","Bracknell Forest Council","00MA","","","Improvements & Capitalised Repairs (Council Wide)","Construction - Contract Payments",20/05/2014 00:00:00,"6549970",7500,"C J M HARVEY CONSTRUCTION LTD"
"Bracknell Forest Council","http://opendatacommunities.org/id/unitary-authority/bracknell-forest","Bracknell Forest Council","00MA","Children Looked After","Fostering services","Independent Fostering (Non BFBC)","Contracted Services",29/04/2014 00:00:00,"6548721",1871.26,"CABRINI CHILDRENS SOCIETY"
"Bracknell Forest Council","http://opendatacommunities.org/id/unitary-authority/bracknell-forest","Bracknell Forest Council","00MA","Children Looked After","Fostering services","Independent Fostering (Non BFBC)","Contracted Services",02/05/2014 00:00:00,"6548722",1861.26,"CABRINI CHILDRENS SOCIETY"
"Bracknell Forest Council","http://opendatacommunities.org/id/unitary-authority/bracknell-forest","Bracknell Forest Council","00MA","","","Balance Sheet","Deposit Section 38",28/05/2014 00:00:00,"6549747",4500,"CALIDUS LTD"
"Bracknell Forest Council","http://opendatacommunities.org/id/unitary-authority/bracknell-forest","Bracknell Forest Council","00MA","Family Support Services","Other family support services","C&F Section 17 Under 11's Team","Other Support to Clients",30/04/2014 00:00:00,"6549792",1135.8,"CALL US"
"Bracknell Forest Council","http://opendatacommunities.org/id/unitary-authority/bracknell-forest","Bracknell Forest Council","00MA","Recreation, Sports and Leisure","Golf Courses","Leisure DSO - Downshire Golf Shop","Cost of Goods Sold",03/02/2014 00:00:00,"6548435",510.7,"CALLAWAY GOLF EUROPE LTD"
"Bracknell Forest Council","http://opendatacommunities.org/id/unitary-authority/bracknell-forest","Bracknell Forest Council","00MA","Recreation, Sports and Leisure","Golf Courses","Leisure DSO - Downshire Golf Shop","Cost of Goods Sold",31/01/2014 00:00:00,"6548436",2016.99,"CALLAWAY GOLF EUROPE LTD"
"Bracknell Forest Council","http://opendatacommunities.org/id/unitary-authority/bracknell-forest","Bracknell Forest Council","00MA","Recreation, Sports and Leisure","Golf Courses","Leisure DSO - Downshire Golf Shop","Cost of Goods Sold",10/02/2014 00:00:00,"6548802",629.86,"CALLAWAY GOLF EUROPE LTD"
"Bracknell Forest Council","http://opendatacommunities.org/id/unitary-authority/bracknell-forest","Bracknell Forest Council","00MA","Recreation, Sports and Leisure","Golf Courses","Leisure DSO - Downshire Golf Shop","Cost of Goods Sold",26/02/2014 00:00:00,"6550080",552.9,"CALLAWAY GOLF EUROPE LTD"
"Bracknell Forest Council","http://opendatacommunities.org/id/unitary-authority/bracknell-forest","Bracknell Forest Council","00MA","Older People (65+)","Long Term Support - Nursing","PS Older People 65+ Long Term Support - Nursing","Contracted Services",05/05/2014 00:00:00,"30243192",2505.38,"CARE UK COMMUNITY PARTNERSHIPS LTD"
"Bracknell Forest Council","http://opendatacommunities.org/id/unitary-authority/bracknell-forest","Bracknell Forest Council","00MA","Older People (65+)","Long Term Support - Nursing","PS Older People 65+ Long Term Support - Nursing","Contracted Services",03/06/2014 00:00:00,"30244953",2502.24,"CARE UK COMMUNITY PARTNERSHIPS LTD"
"Bracknell Forest Council","http://opendatacommunities.org/id/unitary-authority/bracknell-forest","Bracknell Forest Council","00MA","Older People (65+)","Long Term Support - Nursing","PS Older People 65+ Long Term Support - Nursing","Contracted Services",03/06/2014 00:00:00,"30244953",2502.24,"CARE UK COMMUNITY PARTNERSHIPS LTD"
"Bracknell Forest Council","http://opendatacommunities.org/id/unitary-authority/bracknell-forest","Bracknell Forest Council","00MA","Adults (18-64)","Long term Support - Community:Homecare","PS Adults 18-64 Long Term Support - Community:Homecare","Contracted Services",05/05/2014 00:00:00,"30243197",7119.6,"CARE UK HOMECARE LTD"
"Bracknell Forest Council","http://opendatacommunities.org/id/unitary-authority/bracknell-forest","Bracknell Forest Council","00MA","Adults (18-64)","Long term Support - Community:Homecare","MH Adults 18-64 Long Term Support - Community:Homecare","Contracted Services",05/05/2014 00:00:00,"30243197",304,"CARE UK HOMECARE LTD"
"Bracknell Forest Council","http://opendatacommunities.org/id/unitary-authority/bracknell-forest","Bracknell Forest Council","00MA","Older People (65+)","Long term Support - Community:Homecare","MC Older People 65+ Long Term Support - Community:Homecare","Contracted Services",05/05/2014 00:00:00,"30243197",3146.4,"CARE UK HOMECARE LTD"
"Bracknell Forest Council","http://opendatacommunities.org/id/unitary-authority/bracknell-forest","Bracknell Forest Council","00MA","Older People (65+)","Long term Support - Community:Homecare","MC Older People 65+ Long Term Support - Community:Homecare","Contracted Services",05/05/2014 00:00:00,"30243197",706.8,"CARE UK HOMECARE LTD"
"Bracknell Forest Council","http://opendatacommunities.org/id/unitary-authority/bracknell-forest","Bracknell Forest Council","00MA","Older People (65+)","Long term Support - Community:Homecare","PS Older People 65+ Long Term Support - Community:Homecare","Contracted Services",05/05/2014 00:00:00,"30243197",27724.8,"CARE UK HOMECARE LTD"
"Bracknell Forest Council","http://opendatacommunities.org/id/unitary-authority/bracknell-forest","Bracknell Forest Council","00MA","Adults (18-64)","Long term Support - Community:Homecare","PS Adults 18-64 Long Term Support - Community:Homecare","Contracted Services",22/05/2014 00:00:00,"30244368",2166,"CARE UK HOMECARE LTD"
"Bracknell Forest Council","http://opendatacommunities.org/id/unitary-authority/bracknell-forest","Bracknell Forest Council","00MA","Adults (18-64)","Long term Support - Community:Homecare","PS Adults 18-64 Long Term Support - Community:Homecare","Contracted Services",22/05/2014 00:00:00,"30244368",2435.8,"CARE UK HOMECARE LTD"
"Bracknell Forest Council","http://opendatacommunities.org/id/unitary-authority/bracknell-forest","Bracknell Forest Council","00MA","Adults (18-64)","Long term Support - Community:Homecare","PS Adults 18-64 Long Term Support - Community:Homecare","Contracted Services",22/05/2014 00:00:00,"30244368",2035,"CARE UK HOMECARE LTD"
"Bracknell Forest Council","http://opendatacommunities.org/id/unitary-authority/bracknell-forest","Bracknell Forest Council","00MA","Adults (18-64)","Long term Support - Community:Homecare","PS Adults 18-64 Long Term Support - Community:Homecare","Contracted Services",22/05/2014 00:00:00,"30244368",319.2,"CARE UK HOMECARE LTD"
"Bracknell Forest Council","http://opendatacommunities.org/id/unitary-authority/bracknell-forest","Bracknell Forest Council","00MA","Adults (18-64)","Long term Support - Community:Homecare","MH Adults 18-64 Long Term Support - Community:Homecare","Contracted Services",22/05/2014 00:00:00,"30244368",277.4,"CARE UK HOMECARE LTD"
"Bracknell Forest Council","http://opendatacommunities.org/id/unitary-authority/bracknell-forest","Bracknell Forest Council","00MA","Older People (65+)","Long term Support - Community:Homecare","PS Older People 65+ Long Term Support - Community:Homecare","Contracted Services",22/05/2014 00:00:00,"30244368",1235,"CARE UK HOMECARE LTD"
"Bracknell Forest Council","http://opendatacommunities.org/id/unitary-authority/bracknell-forest","Bracknell Forest Council","00MA","Older People (65+)","Long term Support - Community:Homecare","PS Older People 65+ Long Term Support - Community:Homecare","Contracted Services",22/05/2014 00:00:00,"30244368",1702.4,"CARE UK HOMECARE LTD"
"Bracknell Forest Council","http://opendatacommunities.org/id/unitary-authority/bracknell-forest","Bracknell Forest Council","00MA","Older People (65+)","Long term Support - Community:Homecare","PS Older People 65+ Long Term Support - Community:Homecare","Contracted Services",22/05/2014 00:00:00,"30244368",638.4,"CARE UK HOMECARE LTD"
"Bracknell Forest Council","http://opendatacommunities.org/id/unitary-authority/bracknell-forest","Bracknell Forest Council","00MA","Older People (65+)","Long term Support - Community:Homecare","PS Older People 65+ Long Term Support - Community:Homecare","Contracted Services",22/05/2014 00:00:00,"30244368",2226.8,"CARE UK HOMECARE LTD"
"Bracknell Forest Council","http://opendatacommunities.org/id/unitary-authority/bracknell-forest","Bracknell Forest Council","00MA","Older People (65+)","Long term Support - Community:Homecare","MC Older People 65+ Long Term Support - Community:Homecare","Contracted Services",22/05/2014 00:00:00,"30244368",2242,"CARE UK HOMECARE LTD"
"Bracknell Forest Council","http://opendatacommunities.org/id/unitary-authority/bracknell-forest","Bracknell Forest Council","00MA","Older People (65+)","Long term Support - Community:Homecare","MC Older People 65+ Long Term Support - Community:Homecare","Contracted Services",22/05/2014 00:00:00,"30244368",957.6,"CARE UK HOMECARE LTD"
"Bracknell Forest Council","http://opendatacommunities.org/id/unitary-authority/bracknell-forest","Bracknell Forest Council","00MA","Sexual Health Services","STI testing and treatment","Sexual Health - STI Testing & Treatment (Bracknell)","Contracted Services",30/04/2014 00:00:00,"6548620",825.55,"CENTRAL AND NORTH WEST LONDON NHS"
"Bracknell Forest Council","http://opendatacommunities.org/id/unitary-authority/bracknell-forest","Bracknell Forest Council","00MA","","","Crown Wood Primary","Furniture & Fittings",17/04/2014 00:00:00,"6547863",5692.8,"CERTWOOD LTD"
"Bracknell Forest Council","http://opendatacommunities.org/id/unitary-authority/bracknell-forest","Bracknell Forest Council","00MA","Mental Health Needs (Under 65)","Assessment & Care Management","CMHT - Q159M","Training Costs",16/05/2014 00:00:00,"6549951",520,"CHARLIE WALLER INSTITUTE"
"Bracknell Forest Council","http://opendatacommunities.org/id/unitary-authority/bracknell-forest","Bracknell Forest Council","00MA","Older People (65+)","Long term Support - Residential","MH Older People 65+ Long Term Support - Residential","Contracted Services",05/05/2014 00:00:00,"30243192",2047.4,"CHARNLEY CARE HOMES LTD"
"Bracknell Forest Council","http://opendatacommunities.org/id/unitary-authority/bracknell-forest","Bracknell Forest Council","00MA","Older People (65+)","Long term Support - Residential","MC Older People 65+ Long Term Support - Residential","Contracted Services",05/05/2014 00:00:00,"30243192",2047.4,"CHARNLEY CARE HOMES LTD"
"Bracknell Forest Council","http://opendatacommunities.org/id/unitary-authority/bracknell-forest","Bracknell Forest Council","00MA","Older People (65+)","Long term Support - Residential","MC Older People 65+ Long Term Support - Residential","Contracted Services",05/05/2014 00:00:00,"30243192",2047.4,"CHARNLEY CARE HOMES LTD"
"Bracknell Forest Council","http://opendatacommunities.org/id/unitary-authority/bracknell-forest","Bracknell Forest Council","00MA","Older People (65+)","Long term Support - Residential","MC Older People 65+ Long Term Support - Residential","Contracted Services",05/05/2014 00:00:00,"30243192",2047.4,"CHARNLEY CARE HOMES LTD"
"Bracknell Forest Council","http://opendatacommunities.org/id/unitary-authority/bracknell-forest","Bracknell Forest Council","00MA","Older People (65+)","Long term Support - Residential","MC Older People 65+ Long Term Support - Residential","Contracted Services",05/05/2014 00:00:00,"30243192",2850.4,"CHARNLEY CARE HOMES LTD"
"Bracknell Forest Council","http://opendatacommunities.org/id/unitary-authority/bracknell-forest","Bracknell Forest Council","00MA","Older People (65+)","Long term Support - Residential","MC Older People 65+ Long Term Support - Residential","Contracted Services",03/06/2014 00:00:00,"30244953",2047.4,"CHARNLEY CARE HOMES LTD"
"Bracknell Forest Council","http://opendatacommunities.org/id/unitary-authority/bracknell-forest","Bracknell Forest Council","00MA","Older People (65+)","Long term Support - Residential","MC Older People 65+ Long Term Support - Residential","Contracted Services",03/06/2014 00:00:00,"30244953",2047.4,"CHARNLEY CARE HOMES LTD"
"Bracknell Forest Council","http://opendatacommunities.org/id/unitary-authority/bracknell-forest","Bracknell Forest Council","00MA","Older People (65+)","Long term Support - Residential","MC Older People 65+ Long Term Support - Residential","Contracted Services",03/06/2014 00:00:00,"30244953",2850.4,"CHARNLEY CARE HOMES LTD"
"Bracknell Forest Council","http://opendatacommunities.org/id/unitary-authority/bracknell-forest","Bracknell Forest Council","00MA","Older People (65+)","Long term Support - Residential","MC Older People 65+ Long Term Support - Residential","Contracted Services",03/06/2014 00:00:00,"30244953",2047.4,"CHARNLEY CARE HOMES LTD"
"Bracknell Forest Council","http://opendatacommunities.org/id/unitary-authority/bracknell-forest","Bracknell Forest Council","00MA","Older People (65+)","Long term Support - Residential","MH Older People 65+ Long Term Support - Residential","Contracted Services",03/06/2014 00:00:00,"30244953",2047.4,"CHARNLEY CARE HOMES LTD"
"Bracknell Forest Council","http://opendatacommunities.org/id/unitary-authority/bracknell-forest","Bracknell Forest Council","00MA","Adults (18-64)","Long Term Support - Nursing","PS Adults 18-64 Long Term Support - Nursing","Contracted Services",13/05/2014 00:00:00,"30243695",8559.29,"CHD LIVING"
"Bracknell Forest Council","http://opendatacommunities.org/id/unitary-authority/bracknell-forest","Bracknell Forest Council","00MA","Adults (18-64)","Long Term Support - Nursing","PS Adults 18-64 Long Term Support - Nursing","Contracted Services",03/06/2014 00:00:00,"30244953",2545,"CHD LIVING"
"Bracknell Forest Council","http://opendatacommunities.org/id/unitary-authority/bracknell-forest","Bracknell Forest Council","00MA","Culture and Heritage","Heritage Museums & Galleries","The Look Out","Cost of Goods Sold",06/05/2014 00:00:00,"6549087",500.62,"CHEATWELL GAMES"
"Bracknell Forest Council","http://opendatacommunities.org/id/unitary-authority/bracknell-forest","Bracknell Forest Council","00MA","Older People (65+)","Long Term Support - Nursing","MH Older People 65+ Long Term Support - Nursing","Contracted Services",05/05/2014 00:00:00,"30243192",2356.92,"CHERRY GARDEN NURSING HOME"
"Bracknell Forest Council","http://opendatacommunities.org/id/unitary-authority/bracknell-forest","Bracknell Forest Council","00MA","Older People (65+)","Long Term Support - Nursing","MC Older People 65+ Long Term Support - Nursing","Contracted Services",05/05/2014 00:00:00,"30243192",4099.28,"CHERRY GARDEN NURSING HOME"
"Bracknell Forest Council","http://opendatacommunities.org/id/unitary-authority/bracknell-forest","Bracknell Forest Council","00MA","Older People (65+)","Long Term Support - Nursing","MC Older People 65+ Long Term Support - Nursing","Contracted Services",05/05/2014 00:00:00,"30243192",2356.92,"CHERRY GARDEN NURSING HOME"
"Bracknell Forest Council","http://opendatacommunities.org/id/unitary-authority/bracknell-forest","Bracknell Forest Council","00MA","Older People (65+)","Long Term Support - Nursing","PS Older People 65+ Long Term Support - Nursing","Contracted Services",05/05/2014 00:00:00,"30243192",6313.18,"CHERRY GARDEN NURSING HOME"
"Bracknell Forest Council","http://opendatacommunities.org/id/unitary-authority/bracknell-forest","Bracknell Forest Council","00MA","Older People (65+)","Long Term Support - Nursing","MC Older People 65+ Long Term Support - Nursing","Contracted Services",05/05/2014 00:00:00,"30243192",2058.68,"CHERRY GARDEN NURSING HOME"
"Bracknell Forest Council","http://opendatacommunities.org/id/unitary-authority/bracknell-forest","Bracknell Forest Council","00MA","Commissioning and Social Work","Commissioning and Social Work","Children Aged Under 11","Agency",07/05/2014 00:00:00,"30243350",7.65,"COMENSURA LTD"
"Bracknell Forest Council","http://opendatacommunities.org/id/unitary-authority/bracknell-forest","Bracknell Forest Council","00MA","Commissioning and Social Work","Commissioning and Social Work","Children Aged Under 11","Agency",07/05/2014 00:00:00,"30243350",600.8,"COMENSURA LTD"
"Bracknell Forest Council","http://opendatacommunities.org/id/unitary-authority/bracknell-forest","Bracknell Forest Council","00MA","Commissioning and Social Work","Commissioning and Social Work","Children Aged Under 11","Agency",07/05/2014 00:00:00,"30243350",17.55,"COMENSURA LTD"
"Bracknell Forest Council","http://opendatacommunities.org/id/unitary-authority/bracknell-forest","Bracknell Forest Council","00MA","Commissioning and Social Work","Commissioning and Social Work","Children Aged Under 11","Agency",07/05/2014 00:00:00,"30243350",1126.5,"COMENSURA LTD"
"Bracknell Forest Council","http://opendatacommunities.org/id/unitary-authority/bracknell-forest","Bracknell Forest Council","00MA","Older People (Aged 65 or Over)","Other Services To Older People","Winter Pressures 12/13","Agency",07/05/2014 00:00:00,"30243350",998.4,"COMENSURA LTD"
"Bracknell Forest Council","http://opendatacommunities.org/id/unitary-authority/bracknell-forest","Bracknell Forest Council","00MA","Commissioning and Social Work","Commissioning and Social Work","Care Leavers Team & Client Costs","Agency",07/05/2014 00:00:00,"30243350",1389.33,"COMENSURA LTD"
"Bracknell Forest Council","http://opendatacommunities.org/id/unitary-authority/bracknell-forest","Bracknell Forest Council","00MA","Commissioning and Social Work","Commissioning and Social Work","Care Leavers Team & Client Costs","Agency",07/05/2014 00:00:00,"30243350",17.1,"COMENSURA LTD"
"Bracknell Forest Council","http://opendatacommunities.org/id/unitary-authority/bracknell-forest","Bracknell Forest Council","00MA","Commissioning and Social Work","Commissioning and Social Work","Care Leavers Team & Client Costs","Agency",07/05/2014 00:00:00,"30243350",1389.33,"COMENSURA LTD"
"Bracknell Forest Council","http://opendatacommunities.org/id/unitary-authority/bracknell-forest","Bracknell Forest Council","00MA","Older People (Aged 65 or Over)","Assessment & Care Management","Short Term Services - Therapy - CLOSED Q272E","Agency",07/05/2014 00:00:00,"30243350",13.5,"COMENSURA LTD"
"Bracknell Forest Council","http://opendatacommunities.org/id/unitary-authority/bracknell-forest","Bracknell Forest Council","00MA","Older People (Aged 65 or Over)","Assessment & Care Management","Short Term Services - Therapy - CLOSED Q272E","Agency",07/05/2014 00:00:00,"30243350",946.72,"COMENSURA LTD"
"Bracknell Forest Council","http://opendatacommunities.org/id/unitary-authority/bracknell-forest","Bracknell Forest Council","00MA","Older People (Aged 65 or Over)","Assessment & Care Management","Short Term Services - Therapy - CLOSED Q272E","Agency",07/05/2014 00:00:00,"30243350",10.8,"COMENSURA LTD"
"Bracknell Forest Council","http://opendatacommunities.org/id/unitary-authority/bracknell-forest","Bracknell Forest Council","00MA","Older People (Aged 65 or Over)","Assessment & Care Management","Short Term Services - Therapy - CLOSED Q272E","Agency",07/05/2014 00:00:00,"30243350",765.12,"COMENSURA LTD"
"Bracknell Forest Council","http://opendatacommunities.org/id/unitary-authority/bracknell-forest","Bracknell Forest Council","00MA","Older People (Aged 65 or Over)","Assessment & Care Management","Short Term Services - Social Work -CLOSED  Q272E","Agency",07/05/2014 00:00:00,"30243350",567.93,"COMENSURA LTD"
"Bracknell Forest Council","http://opendatacommunities.org/id/unitary-authority/bracknell-forest","Bracknell Forest Council","00MA","Older People (Aged 65 or Over)","Other Services To Older People","Winter Pressures 12/13","Agency",07/05/2014 00:00:00,"30243350",1248,"COMENSURA LTD"
"Bracknell Forest Council","http://opendatacommunities.org/id/unitary-authority/bracknell-forest","Bracknell Forest Council","00MA","Older People (Aged 65 or Over)","Assessment & Care Management","Short Term Services - Therapy - CLOSED Q272E","Agency",07/05/2014 00:00:00,"30243350",436.96,"COMENSURA LTD"
"Bracknell Forest Council","http://opendatacommunities.org/id/unitary-authority/bracknell-forest","Bracknell Forest Council","00MA","Older People (Aged 65 or Over)","Assessment & Care Management","Short Term Services - Therapy - CLOSED Q272E","Agency",07/05/2014 00:00:00,"30243350",436.96,"COMENSURA LTD"
"Bracknell Forest Council","http://opendatacommunities.org/id/unitary-authority/bracknell-forest","Bracknell Forest Council","00MA","Older People (Aged 65 or Over)","Assessment & Care Management","Short Term Services - Therapy - CLOSED Q272E","Agency",07/05/2014 00:00:00,"30243350",233.04,"COMENSURA LTD"
"Bracknell Forest Council","http://opendatacommunities.org/id/unitary-authority/bracknell-forest","Bracknell Forest Council","00MA","Housing Benefits Administration","Housing Benefits Administration","Benefits Administration","Agency",07/05/2014 00:00:00,"30243350",2058.76,"COMENSURA LTD"
"Bracknell Forest Council","http://opendatacommunities.org/id/unitary-authority/bracknell-forest","Bracknell Forest Council","00MA","Regulatory Services","Food Safety","Food Safety","Agency",07/05/2014 00:00:00,"30243350",1027.78,"COMENSURA LTD"
"Bracknell Forest Council","http://opendatacommunities.org/id/unitary-authority/bracknell-forest","Bracknell Forest Council","00MA","Housing Benefits Administration","Housing Benefits Administration","Benefits Administration","Agency",07/05/2014 00:00:00,"30243350",962.92,"COMENSURA LTD"
"Bracknell Forest Council","http://opendatacommunities.org/id/unitary-authority/bracknell-forest","Bracknell Forest Council","00MA","Housing Benefits Administration","Housing Benefits Administration","Benefits Administration","Agency",07/05/2014 00:00:00,"30243350",1412.54,"COMENSURA LTD"
"Bracknell Forest Council","http://opendatacommunities.org/id/unitary-authority/bracknell-forest","Bracknell Forest Council","00MA","Physical Disability/Sensory Impairment","Assessment & Care Management","Older People & Long Term Conditions Team - CLOSED Q201M","Agency",07/05/2014 00:00:00,"30243350",46.8,"COMENSURA LTD"
"Bracknell Forest Council","http://opendatacommunities.org/id/unitary-authority/bracknell-forest","Bracknell Forest Council","00MA","Older People (Aged 65 or Over)","Assessment & Care Management","CMHTE - CLOSED  Q119M","Agency",07/05/2014 00:00:00,"30243350",4.5,"COMENSURA LTD"
"Bracknell Forest Council","http://opendatacommunities.org/id/unitary-authority/bracknell-forest","Bracknell Forest Council","00MA","Housing Benefits Administration","Housing Benefits Administration","Benefits Administration","Agency",14/05/2014 00:00:00,"30243829",1845.25,"COMENSURA LTD"
"Bracknell Forest Council","http://opendatacommunities.org/id/unitary-authority/bracknell-forest","Bracknell Forest Council","00MA","General Grants, Bequests & Donations","General Grants, Bequests & Donations","Members Initiative - Harmanswater","Contracted Services",24/04/2014 00:00:00,"6548252",1965.71,"RINGWAY INFRASTRUCTURE SERVICES LTD"
"Bracknell Forest Council","http://opendatacommunities.org/id/unitary-authority/bracknell-forest","Bracknell Forest Council","00MA","Recycling","Collection","Waste Collection Recycling","Contracted Services",28/04/2014 00:00:00,"6548253",1083.5,"RINGWAY INFRASTRUCTURE SERVICES LTD"
"Bracknell Forest Council","http://opendatacommunities.org/id/unitary-authority/bracknell-forest","Bracknell Forest Council","00MA","Early Years","PVI Providers","Grants for Flexibility","Grants and Donations",01/05/2014 00:00:00,"6547920",594,"RMA LAKESIDE NURSERY"
"Bracknell Forest Council","http://opendatacommunities.org/id/unitary-authority/bracknell-forest","Bracknell Forest Council","00MA","Early Years","Centrally managed Expenditure - Early Years","Early Years and Childcare","Voluntary Sector Service Providers",06/05/2014 00:00:00,"6548264",777.6,"RMA LAKESIDE NURSERY"
"Bracknell Forest Council","http://opendatacommunities.org/id/unitary-authority/bracknell-forest","Bracknell Forest Council","00MA","Management and Support Services - CYPL","Unallocated Early years Related Expenditure","SSEYCG Sufficiency & Access","Voluntary Sector Service Providers",06/05/2014 00:00:00,"6548268",518.4,"RMA LAKESIDE NURSERY"
"Bracknell Forest Council","http://opendatacommunities.org/id/unitary-authority/bracknell-forest","Bracknell Forest Council","00MA","Adults (18-64)","Long term Support - Community:Homecare","PS Adults 18-64 Long Term Support - Community:Homecare","Contracted Services",15/05/2014 00:00:00,"30243867",736.3,"RMB HEALTHCARE"
"Bracknell Forest Council","http://opendatacommunities.org/id/unitary-authority/bracknell-forest","Bracknell Forest Council","00MA","Adults (18-64)","Long term Support - Community:Homecare","MC Adults 18-64 Long Term Support - Community:Homecare","Contracted Services",15/05/2014 00:00:00,"30243867",281.2,"RMB HEALTHCARE"
"Bracknell Forest Council","http://opendatacommunities.org/id/unitary-authority/bracknell-forest","Bracknell Forest Council","00MA","Older People (65+)","Long term Support - Community:Homecare","PS Older People 65+ Long Term Support - Community:Homecare","Contracted Services",15/05/2014 00:00:00,"30243867",232.8,"RMB HEALTHCARE"
"Bracknell Forest Council","http://opendatacommunities.org/id/unitary-authority/bracknell-forest","Bracknell Forest Council","00MA","Older People (65+)","Long term Support - Community:Homecare","PS Older People 65+ Long Term Support - Community:Homecare","Contracted Services",15/05/2014 00:00:00,"30243867",1994.3,"RMB HEALTHCARE"
"Bracknell Forest Council","http://opendatacommunities.org/id/unitary-authority/bracknell-forest","Bracknell Forest Council","00MA","Adults (18-64)","Long term Support - Community:Homecare","LD Adults 18-64 Long Term Support - Community:Homecare","Contracted Services",15/05/2014 00:00:00,"30243867",473.6,"RMB HEALTHCARE"
"Bracknell Forest Council","http://opendatacommunities.org/id/unitary-authority/bracknell-forest","Bracknell Forest Council","00MA","Older People (65+)","Long term Support - Community:Homecare","MC Older People 65+ Long Term Support - Community:Homecare","Contracted Services",15/05/2014 00:00:00,"30243867",693.75,"RMB HEALTHCARE"
"Bracknell Forest Council","http://opendatacommunities.org/id/unitary-authority/bracknell-forest","Bracknell Forest Council","00MA","Older People (65+)","Long term Support - Community:Homecare","MC Older People 65+ Long Term Support - Community:Homecare","Contracted Services",15/05/2014 00:00:00,"30243867",159.1,"RMB HEALTHCARE"
"Bracknell Forest Council","http://opendatacommunities.org/id/unitary-authority/bracknell-forest","Bracknell Forest Council","00MA","Regulatory Services","Food Safety","Food Safety","Agency",14/05/2014 00:00:00,"30243829",1043.12,"COMENSURA LTD"
"Bracknell Forest Council","http://opendatacommunities.org/id/unitary-authority/bracknell-forest","Bracknell Forest Council","00MA","Older People (65+)","Internal Services","Heathlands EPH","Agency",14/05/2014 00:00:00,"30243829",395.4,"COMENSURA LTD"
"Bracknell Forest Council","http://opendatacommunities.org/id/unitary-authority/bracknell-forest","Bracknell Forest Council","00MA","Older People (65+)","Internal Services","Heathlands EPH","Agency",14/05/2014 00:00:00,"30243829",475.22,"COMENSURA LTD"
"Bracknell Forest Council","http://opendatacommunities.org/id/unitary-authority/bracknell-forest","Bracknell Forest Council","00MA","Older People (65+)","Internal Services","Heathlands EPH","Agency",14/05/2014 00:00:00,"30243829",510.96,"COMENSURA LTD"
"Bracknell Forest Council","http://opendatacommunities.org/id/unitary-authority/bracknell-forest","Bracknell Forest Council","00MA","Older People (65+)","Internal Services","Heathlands EPH","Agency",14/05/2014 00:00:00,"30243829",113.7,"COMENSURA LTD"
"Bracknell Forest Council","http://opendatacommunities.org/id/unitary-authority/bracknell-forest","Bracknell Forest Council","00MA","Older People (65+)","Internal Services","Heathlands EPH","Agency",14/05/2014 00:00:00,"30243829",465.81,"COMENSURA LTD"
"Bracknell Forest Council","http://opendatacommunities.org/id/unitary-authority/bracknell-forest","Bracknell Forest Council","00MA","Older People (65+)","Internal Services","Heathlands EPH","Agency",14/05/2014 00:00:00,"30243829",592.72,"COMENSURA LTD"
"Bracknell Forest Council","http://opendatacommunities.org/id/unitary-authority/bracknell-forest","Bracknell Forest Council","00MA","Older People (65+)","Internal Services","Heathlands EPH","Agency",14/05/2014 00:00:00,"30243829",270.68,"COMENSURA LTD"
"Bracknell Forest Council","http://opendatacommunities.org/id/unitary-authority/bracknell-forest","Bracknell Forest Council","00MA","Older People (65+)","Internal Services","Heathlands EPH","Agency",14/05/2014 00:00:00,"30243829",462.28,"COMENSURA LTD"
"Bracknell Forest Council","http://opendatacommunities.org/id/unitary-authority/bracknell-forest","Bracknell Forest Council","00MA","Older People (65+)","Internal Services","Heathlands EPH","Agency",14/05/2014 00:00:00,"30243829",134.5,"COMENSURA LTD"
"Bracknell Forest Council","http://opendatacommunities.org/id/unitary-authority/bracknell-forest","Bracknell Forest Council","00MA","Older People (65+)","Internal Services","Heathlands EPH","Agency",14/05/2014 00:00:00,"30243829",465.14,"COMENSURA LTD"
"Bracknell Forest Council","http://opendatacommunities.org/id/unitary-authority/bracknell-forest","Bracknell Forest Council","00MA","Older People (65+)","Internal Services","Heathlands EPH","Agency",14/05/2014 00:00:00,"30243829",549.08,"COMENSURA LTD"
"Bracknell Forest Council","http://opendatacommunities.org/id/unitary-authority/bracknell-forest","Bracknell Forest Council","00MA","Older People (65+)","Internal Services","Heathlands EPH","Agency",21/05/2014 00:00:00,"30244258",564.03,"COMENSURA LTD"
"Bracknell Forest Council","http://opendatacommunities.org/id/unitary-authority/bracknell-forest","Bracknell Forest Council","00MA","Older People (65+)","Internal Services","Heathlands EPH","Agency",21/05/2014 00:00:00,"30244258",231.07,"COMENSURA LTD"
"Bracknell Forest Council","http://opendatacommunities.org/id/unitary-authority/bracknell-forest","Bracknell Forest Council","00MA","Older People (65+)","Internal Services","Heathlands EPH","Agency",21/05/2014 00:00:00,"30244258",346.24,"COMENSURA LTD"
"Bracknell Forest Council","http://opendatacommunities.org/id/unitary-authority/bracknell-forest","Bracknell Forest Council","00MA","Older People (65+)","Internal Services","Heathlands EPH","Agency",21/05/2014 00:00:00,"30244258",323.51,"COMENSURA LTD"
"Bracknell Forest Council","http://opendatacommunities.org/id/unitary-authority/bracknell-forest","Bracknell Forest Council","00MA","Older People (65+)","Internal Services","Heathlands EPH","Agency",21/05/2014 00:00:00,"30244258",774.76,"COMENSURA LTD"
"Bracknell Forest Council","http://opendatacommunities.org/id/unitary-authority/bracknell-forest","Bracknell Forest Council","00MA","Older People (65+)","Internal Services","Heathlands EPH","Agency",21/05/2014 00:00:00,"30244258",504.59,"COMENSURA LTD"
"Bracknell Forest Council","http://opendatacommunities.org/id/unitary-authority/bracknell-forest","Bracknell Forest Council","00MA","Older People (65+)","Internal Services","Heathlands EPH","Agency",21/05/2014 00:00:00,"30244258",400.33,"COMENSURA LTD"
"Bracknell Forest Council","http://opendatacommunities.org/id/unitary-authority/bracknell-forest","Bracknell Forest Council","00MA","Older People (65+)","Long term Support - Residential","PS Older People 65+ Long Term Support - Residential","Contracted Services",05/05/2014 00:00:00,"30243192",1257.48,"RMBI"
"Bracknell Forest Council","http://opendatacommunities.org/id/unitary-authority/bracknell-forest","Bracknell Forest Council","00MA","Older People (65+)","Long term Support - Residential","PS Older People 65+ Long Term Support - Residential","Contracted Services",03/06/2014 00:00:00,"30244953",1257.48,"RMBI"
"Bracknell Forest Council","http://opendatacommunities.org/id/unitary-authority/bracknell-forest","Bracknell Forest Council","00MA","Traffic Management & Road Safety","Traffic Management","Traffic Management","Contracted Services",07/05/2014 00:00:00,"6548855",505,"ROAD SAFETY ANALYSIS LTD"
"Bracknell Forest Council","http://opendatacommunities.org/id/unitary-authority/bracknell-forest","Bracknell Forest Council","00MA","","","Balance Sheet","Flexible Benefits Control Account",07/05/2014 00:00:00,"6548551",10000,"ROGER SIMSPON LTD"
"Bracknell Forest Council","http://opendatacommunities.org/id/unitary-authority/bracknell-forest","Bracknell Forest Council","00MA","Early Years","Children's Centres","The Rowans Children's Centre","Learning Resources - Purchase",01/05/2014 00:00:00,"6548215",707.95,"ROMPA LTD"
"Bracknell Forest Council","http://opendatacommunities.org/id/unitary-authority/bracknell-forest","Bracknell Forest Council","00MA","Adults (18-64)","Long term Support - Residential","LD Adults 18-64 Long Term Support - Residential","Contracted Services",05/05/2014 00:00:00,"30243192",4872.12,"ROSECROFT CARE LTD"
"Bracknell Forest Council","http://opendatacommunities.org/id/unitary-authority/bracknell-forest","Bracknell Forest Council","00MA","Adults (18-64)","Long term Support - Residential","LD Adults 18-64 Long Term Support - Residential","Contracted Services",03/06/2014 00:00:00,"30244953",4872.12,"ROSECROFT CARE LTD"
"Bracknell Forest Council","http://opendatacommunities.org/id/unitary-authority/bracknell-forest","Bracknell Forest Council","00MA","Miscellaneous Public Health Services","Public Health Teams","Public Health - Bracknell Team","Other Fees for Bought-in Services",29/04/2014 00:00:00,"6548326",750,"ROUGE"
"Bracknell Forest Council","http://opendatacommunities.org/id/unitary-authority/bracknell-forest","Bracknell Forest Council","00MA","Adults (18-64)","Long term Support - Residential","LD Adults 18-64 Long Term Support - Residential","Client Contributions Residential & Nursing",05/05/2014 00:00:00,"30243192",-318.8,"ROYAL BOROUGH OF WINDSOR &  MAIDENHEAD"
"Bracknell Forest Council","http://opendatacommunities.org/id/unitary-authority/bracknell-forest","Bracknell Forest Council","00MA","Older People (65+)","Long term Support - Residential","LD Older People 65+ Long Term Support - Residential","RB of Windsor & Maidenhead",05/05/2014 00:00:00,"30243192",5796,"ROYAL BOROUGH OF WINDSOR &  MAIDENHEAD"
"Bracknell Forest Council","http://opendatacommunities.org/id/unitary-authority/bracknell-forest","Bracknell Forest Council","00MA","Older People (65+)","Long term Support - Residential","LD Older People 65+ Long Term Support - Residential","Client Contributions Residential & Nursing",05/05/2014 00:00:00,"30243192",-495.8,"ROYAL BOROUGH OF WINDSOR &  MAIDENHEAD"
"Bracknell Forest Council","http://opendatacommunities.org/id/unitary-authority/bracknell-forest","Bracknell Forest Council","00MA","","","Balance Sheet","Flexible Benefits Control Account",08/05/2014 00:00:00,"6548550",10000,"RYBROOK SREWBURY"
"Bracknell Forest Council","http://opendatacommunities.org/id/unitary-authority/bracknell-forest","Bracknell Forest Council","00MA","Cemeteries, Crematoria & Mortuary Services","Cemeteries & Crematorium","Easthampstead Park Cemetery & Crematorium","R&M - Reactive",26/04/2014 00:00:00,"6548831",780,"S & S CARPENTRY"
"Bracknell Forest Council","http://opendatacommunities.org/id/unitary-authority/bracknell-forest","Bracknell Forest Council","00MA","Older People (65+)","Internal Services","Heathlands EPH","Agency",21/05/2014 00:00:00,"30244258",581.66,"COMENSURA LTD"
"Bracknell Forest Council","http://opendatacommunities.org/id/unitary-authority/bracknell-forest","Bracknell Forest Council","00MA","Other School Related Education Services","Access","Blue Mountain Project","Agency",21/05/2014 00:00:00,"30244258",3666.8,"COMENSURA LTD"
"Bracknell Forest Council","http://opendatacommunities.org/id/unitary-authority/bracknell-forest","Bracknell Forest Council","00MA","Other School Related Education Services","Access","Blue Mountain Project","Agency",21/05/2014 00:00:00,"30244258",3666.8,"COMENSURA LTD"
"Bracknell Forest Council","http://opendatacommunities.org/id/unitary-authority/bracknell-forest","Bracknell Forest Council","00MA","Other School Related Education Services","Access","Blue Mountain Project","Agency",21/05/2014 00:00:00,"30244258",2566.76,"COMENSURA LTD"
"Bracknell Forest Council","http://opendatacommunities.org/id/unitary-authority/bracknell-forest","Bracknell Forest Council","00MA","Other School Related Education Services","Access","Blue Mountain Project","Agency",21/05/2014 00:00:00,"30244258",2566.76,"COMENSURA LTD"
"Bracknell Forest Council","http://opendatacommunities.org/id/unitary-authority/bracknell-forest","Bracknell Forest Council","00MA","Other School Related Education Services","Access","Blue Mountain Project","Agency",21/05/2014 00:00:00,"30244258",3300.12,"COMENSURA LTD"
"Bracknell Forest Council","http://opendatacommunities.org/id/unitary-authority/bracknell-forest","Bracknell Forest Council","00MA","Other School Related Education Services","Access","Blue Mountain Project","Agency",21/05/2014 00:00:00,"30244258",2933.44,"COMENSURA LTD"
"Bracknell Forest Council","http://opendatacommunities.org/id/unitary-authority/bracknell-forest","Bracknell Forest Council","00MA","Older People (65+)","Internal Services","Heathlands EPH","Agency",21/05/2014 00:00:00,"30244258",113.7,"COMENSURA LTD"
"Bracknell Forest Council","http://opendatacommunities.org/id/unitary-authority/bracknell-forest","Bracknell Forest Council","00MA","Mental Health Needs (Under 65)","Assessment & Care Management","CMHT - Q159M","Agency",21/05/2014 00:00:00,"30244258",1345.5,"COMENSURA LTD"
"Bracknell Forest Council","http://opendatacommunities.org/id/unitary-authority/bracknell-forest","Bracknell Forest Council","00MA","Short Term Support Other","Short Term Support Other","Operational Costs","Agency",28/05/2014 00:00:00,"30244567",436.96,"COMENSURA LTD"
"Bracknell Forest Council","http://opendatacommunities.org/id/unitary-authority/bracknell-forest","Bracknell Forest Council","00MA","Short Term Support Other","Short Term Support Other","Operational Costs","Agency",28/05/2014 00:00:00,"30244567",436.94,"COMENSURA LTD"
"Bracknell Forest Council","http://opendatacommunities.org/id/unitary-authority/bracknell-forest","Bracknell Forest Council","00MA","Short Term Support Other","Short Term Support Other","Operational Costs","Agency",28/05/2014 00:00:00,"30244567",5.85,"COMENSURA LTD"
"Bracknell Forest Council","http://opendatacommunities.org/id/unitary-authority/bracknell-forest","Bracknell Forest Council","00MA","Short Term Support Other","Short Term Support Other","Operational Costs","Agency",28/05/2014 00:00:00,"30244567",478.2,"COMENSURA LTD"
"Bracknell Forest Council","http://opendatacommunities.org/id/unitary-authority/bracknell-forest","Bracknell Forest Council","00MA","Short Term Support Other","Short Term Support Other","Operational Costs","Agency",28/05/2014 00:00:00,"30244567",4.95,"COMENSURA LTD"
"Bracknell Forest Council","http://opendatacommunities.org/id/unitary-authority/bracknell-forest","Bracknell Forest Council","00MA","Short Term Support Other","Short Term Support Other","Operational Costs","Agency",28/05/2014 00:00:00,"30244567",1077.83,"COMENSURA LTD"
"Bracknell Forest Council","http://opendatacommunities.org/id/unitary-authority/bracknell-forest","Bracknell Forest Council","00MA","Short Term Support Other","Short Term Support Other","Operational Costs","Agency",28/05/2014 00:00:00,"30244567",19.8,"COMENSURA LTD"
"Bracknell Forest Council","http://opendatacommunities.org/id/unitary-authority/bracknell-forest","Bracknell Forest Council","00MA","Short Term Support Other","Short Term Support Other","Operational Costs","Agency",28/05/2014 00:00:00,"30244567",1142.56,"COMENSURA LTD"
"Bracknell Forest Council","http://opendatacommunities.org/id/unitary-authority/bracknell-forest","Bracknell Forest Council","00MA","Management & Administration","Management & Administration","Management & Administration","Agency",28/05/2014 00:00:00,"30244567",451.2,"COMENSURA LTD"
"Bracknell Forest Council","http://opendatacommunities.org/id/unitary-authority/bracknell-forest","Bracknell Forest Council","00MA","Commissioning and Social Work","Commissioning and Social Work","Care Leavers Team & Client Costs","Agency",28/05/2014 00:00:00,"30244567",40.05,"COMENSURA LTD"
"Bracknell Forest Council","http://opendatacommunities.org/id/unitary-authority/bracknell-forest","Bracknell Forest Council","00MA","Commissioning and Social Work","Commissioning and Social Work","Care Leavers Team & Client Costs","Agency",28/05/2014 00:00:00,"30244567",1389.33,"COMENSURA LTD"
"Bracknell Forest Council","http://opendatacommunities.org/id/unitary-authority/bracknell-forest","Bracknell Forest Council","00MA","Management & Administration","Management & Administration","Management & Administration","Agency",28/05/2014 00:00:00,"30244567",11.25,"COMENSURA LTD"
"Bracknell Forest Council","http://opendatacommunities.org/id/unitary-authority/bracknell-forest","Bracknell Forest Council","00MA","Short Term Support Other","Short Term Support Other","Operational Costs","Agency",28/05/2014 00:00:00,"30244567",640.88,"COMENSURA LTD"
"Bracknell Forest Council","http://opendatacommunities.org/id/unitary-authority/bracknell-forest","Bracknell Forest Council","00MA","Short Term Support Other","Short Term Support Other","Operational Costs","Agency",28/05/2014 00:00:00,"30244567",9.9,"COMENSURA LTD"
"Bracknell Forest Council","http://opendatacommunities.org/id/unitary-authority/bracknell-forest","Bracknell Forest Council","00MA","Short Term Support Other","Short Term Support Other","Operational Costs","Agency",28/05/2014 00:00:00,"30244567",1044.16,"COMENSURA LTD"
"Bracknell Forest Council","http://opendatacommunities.org/id/unitary-authority/bracknell-forest","Bracknell Forest Council","00MA","Short Term Support Other","Short Term Support Other","Operational Costs","Agency",28/05/2014 00:00:00,"30244567",567.93,"COMENSURA LTD"
"Bracknell Forest Council","http://opendatacommunities.org/id/unitary-authority/bracknell-forest","Bracknell Forest Council","00MA","Finance Team","Finance Team","Social Services Finance","Agency",28/05/2014 00:00:00,"30244567",2394.2,"COMENSURA LTD"
"Bracknell Forest Council","http://opendatacommunities.org/id/unitary-authority/bracknell-forest","Bracknell Forest Council","00MA","Finance Team","Finance Team","Social Services Finance","Agency",28/05/2014 00:00:00,"30244567",2394.2,"COMENSURA LTD"
"Bracknell Forest Council","http://opendatacommunities.org/id/unitary-authority/bracknell-forest","Bracknell Forest Council","00MA","Older People (Aged 65 or Over)","Other Services To Older People","Winter Pressures 12/13","Agency",28/05/2014 00:00:00,"30244567",998.4,"COMENSURA LTD"
"Bracknell Forest Council","http://opendatacommunities.org/id/unitary-authority/bracknell-forest","Bracknell Forest Council","00MA","Older People (Aged 65 or Over)","Other Services To Older People","Winter Pressures 12/13","Agency",28/05/2014 00:00:00,"30244567",1248,"COMENSURA LTD"
"Bracknell Forest Council","http://opendatacommunities.org/id/unitary-authority/bracknell-forest","Bracknell Forest Council","00MA","Commissioning and Social Work","Commissioning and Social Work","Care Leavers Team & Client Costs","Agency",28/05/2014 00:00:00,"30244567",54,"COMENSURA LTD"
"Bracknell Forest Council","http://opendatacommunities.org/id/unitary-authority/bracknell-forest","Bracknell Forest Council","00MA","Commissioning and Social Work","Commissioning and Social Work","Care Leavers Team & Client Costs","Agency",28/05/2014 00:00:00,"30244567",1389.35,"COMENSURA LTD"
"Bracknell Forest Council","http://opendatacommunities.org/id/unitary-authority/bracknell-forest","Bracknell Forest Council","00MA","Management & Administration","Management & Administration","Management & Administration","Agency",28/05/2014 00:00:00,"30244567",14.4,"COMENSURA LTD"
"Bracknell Forest Council","http://opendatacommunities.org/id/unitary-authority/bracknell-forest","Bracknell Forest Council","00MA","Management & Administration","Management & Administration","Management & Administration","Agency",28/05/2014 00:00:00,"30244567",902.4,"COMENSURA LTD"
"Bracknell Forest Council","http://opendatacommunities.org/id/unitary-authority/bracknell-forest","Bracknell Forest Council","00MA","Management & Administration","Management & Administration","Management & Administration","Agency",28/05/2014 00:00:00,"30244567",22.5,"COMENSURA LTD"
"Bracknell Forest Council","http://opendatacommunities.org/id/unitary-authority/bracknell-forest","Bracknell Forest Council","00MA","Management & Administration","Management & Administration","Management & Administration","Agency",28/05/2014 00:00:00,"30244567",923.07,"COMENSURA LTD"
"Bracknell Forest Council","http://opendatacommunities.org/id/unitary-authority/bracknell-forest","Bracknell Forest Council","00MA","Commissioning and Social Work","Commissioning and Social Work","Children Aged Over 11","Agency",04/06/2014 00:00:00,"30245090",140.4,"COMENSURA LTD"
"Bracknell Forest Council","http://opendatacommunities.org/id/unitary-authority/bracknell-forest","Bracknell Forest Council","00MA","Commissioning and Social Work","Commissioning and Social Work","Children Aged Over 11","Agency",04/06/2014 00:00:00,"30245090",260.71,"COMENSURA LTD"
"Bracknell Forest Council","http://opendatacommunities.org/id/unitary-authority/bracknell-forest","Bracknell Forest Council","00MA","Older People (65+)","Internal Services","Heathlands EPH","Agency",04/06/2014 00:00:00,"30245090",323.5,"COMENSURA LTD"
"Bracknell Forest Council","http://opendatacommunities.org/id/unitary-authority/bracknell-forest","Bracknell Forest Council","00MA","Older People (65+)","Internal Services","Heathlands EPH","Agency",04/06/2014 00:00:00,"30245090",552.24,"COMENSURA LTD"
"Bracknell Forest Council","http://opendatacommunities.org/id/unitary-authority/bracknell-forest","Bracknell Forest Council","00MA","Older People (65+)","Internal Services","Heathlands EPH","Agency",04/06/2014 00:00:00,"30245090",379.17,"COMENSURA LTD"
"Bracknell Forest Council","http://opendatacommunities.org/id/unitary-authority/bracknell-forest","Bracknell Forest Council","00MA","Older People (65+)","Internal Services","Heathlands EPH","Agency",04/06/2014 00:00:00,"30245090",120.78,"COMENSURA LTD"
"Bracknell Forest Council","http://opendatacommunities.org/id/unitary-authority/bracknell-forest","Bracknell Forest Council","00MA","Older People (65+)","Internal Services","Heathlands EPH","Agency",04/06/2014 00:00:00,"30245090",360.18,"COMENSURA LTD"
"Bracknell Forest Council","http://opendatacommunities.org/id/unitary-authority/bracknell-forest","Bracknell Forest Council","00MA","Older People (65+)","Internal Services","Heathlands EPH","Agency",04/06/2014 00:00:00,"30245090",650.08,"COMENSURA LTD"
"Bracknell Forest Council","http://opendatacommunities.org/id/unitary-authority/bracknell-forest","Bracknell Forest Council","00MA","Older People (65+)","Internal Services","Heathlands EPH","Agency",04/06/2014 00:00:00,"30245090",497.97,"COMENSURA LTD"
"Bracknell Forest Council","http://opendatacommunities.org/id/unitary-authority/bracknell-forest","Bracknell Forest Council","00MA","Older People (65+)","Internal Services","Heathlands EPH","Agency",04/06/2014 00:00:00,"30245090",448.9,"COMENSURA LTD"
"Bracknell Forest Council","http://opendatacommunities.org/id/unitary-authority/bracknell-forest","Bracknell Forest Council","00MA","Management & Administration","Management & Administration","Directorate","Agency",04/06/2014 00:00:00,"30245090",575.44,"COMENSURA LTD"
"Bracknell Forest Council","http://opendatacommunities.org/id/unitary-authority/bracknell-forest","Bracknell Forest Council","00MA","Older People (65+)","Internal Services","Heathlands EPH","Agency",04/06/2014 00:00:00,"30245090",632.23,"COMENSURA LTD"
"Bracknell Forest Council","http://opendatacommunities.org/id/unitary-authority/bracknell-forest","Bracknell Forest Council","00MA","Older People (65+)","Internal Services","Heathlands EPH","Agency",04/06/2014 00:00:00,"30245090",703.42,"COMENSURA LTD"
"Bracknell Forest Council","http://opendatacommunities.org/id/unitary-authority/bracknell-forest","Bracknell Forest Council","00MA","Adults (18-64)","Long Term Support - Community:Supported Living","MH Adults 18-64 Long Term Support - Community:Supported Living","Contracted Services",20/05/2014 00:00:00,"30244154",2768.92,"COMFORT CARE SERVICES"
"Bracknell Forest Council","http://opendatacommunities.org/id/unitary-authority/bracknell-forest","Bracknell Forest Council","00MA","Adults (18-64)","Long Term Support - Community:Supported Living","MH Adults 18-64 Long Term Support - Community:Supported Living","Contracted Services",20/05/2014 00:00:00,"30244154",2292.24,"COMFORT CARE SERVICES"
"Bracknell Forest Council","http://opendatacommunities.org/id/unitary-authority/bracknell-forest","Bracknell Forest Council","00MA","Adults (18-64)","Long Term Support - Community:Supported Living","MH Adults 18-64 Long Term Support - Community:Supported Living","Contracted Services",20/05/2014 00:00:00,"30244154",2768.92,"COMFORT CARE SERVICES"
"Bracknell Forest Council","http://opendatacommunities.org/id/unitary-authority/bracknell-forest","Bracknell Forest Council","00MA","Adults (18-64)","Long Term Support - Community:Supported Living","MH Adults 18-64 Long Term Support - Community:Supported Living","Contracted Services",20/05/2014 00:00:00,"30244154",1680,"COMFORT CARE SERVICES"
"Bracknell Forest Council","http://opendatacommunities.org/id/unitary-authority/bracknell-forest","Bracknell Forest Council","00MA","Adults (18-64)","Long Term Support - Community:Supported Living","MH Adults 18-64 Long Term Support - Community:Supported Living","Contracted Services",20/05/2014 00:00:00,"30244154",2768.92,"COMFORT CARE SERVICES"
"Bracknell Forest Council","http://opendatacommunities.org/id/unitary-authority/bracknell-forest","Bracknell Forest Council","00MA","Adults (18-64)","Long Term Support - Community:Supported Living","MH Adults 18-64 Long Term Support - Community:Supported Living","Contracted Services",20/05/2014 00:00:00,"30244154",2768.92,"COMFORT CARE SERVICES"
"Bracknell Forest Council","http://opendatacommunities.org/id/unitary-authority/bracknell-forest","Bracknell Forest Council","00MA","Adults (18-64)","Long Term Support - Community:Supported Living","MH Adults 18-64 Long Term Support - Community:Supported Living","Contracted Services",20/05/2014 00:00:00,"30244154",2768.92,"COMFORT CARE SERVICES"
"Bracknell Forest Council","http://opendatacommunities.org/id/unitary-authority/bracknell-forest","Bracknell Forest Council","00MA","Adults (18-64)","Long term Support - Residential","MH Adults 18-64 Long Term Support - Residential","Contracted Services",05/05/2014 00:00:00,"30243192",3766.6,"COMMUNITY HOUSING & THERAPY"
"Bracknell Forest Council","http://opendatacommunities.org/id/unitary-authority/bracknell-forest","Bracknell Forest Council","00MA","Adults (18-64)","Long term Support - Residential","MH Adults 18-64 Long Term Support - Residential","Contracted Services",03/06/2014 00:00:00,"30244953",3766.6,"COMMUNITY HOUSING & THERAPY"
"Bracknell Forest Council","http://opendatacommunities.org/id/unitary-authority/bracknell-forest","Bracknell Forest Council","00MA","Recreation, Sports and Leisure","Indoor Sports & Recreation Facilities","Leisure DSO - Leisure Centre","Grounds Maintenance Costs",10/04/2014 00:00:00,"6546457",1113,"COMPLETE WEED CONTROL"
"Bracknell Forest Council","http://opendatacommunities.org/id/unitary-authority/bracknell-forest","Bracknell Forest Council","00MA","Libraries","Branch Libraries","Great Hollands Library","Gas",02/06/2014 00:00:00,"30244877",32.1,"CORONA ENERGY RETAIL 4 LTD"
"Bracknell Forest Council","http://opendatacommunities.org/id/unitary-authority/bracknell-forest","Bracknell Forest Council","00MA","Services to Young People","Other Services to Young People","Whitegrove Youth Centre","Gas",02/06/2014 00:00:00,"30244877",257.37,"CORONA ENERGY RETAIL 4 LTD"
"Bracknell Forest Council","http://opendatacommunities.org/id/unitary-authority/bracknell-forest","Bracknell Forest Council","00MA","Primary Schools","Delegated Primary School Budgets","Wildridings - Primary","Gas",02/06/2014 00:00:00,"30244877",160.75,"CORONA ENERGY RETAIL 4 LTD"
"Bracknell Forest Council","http://opendatacommunities.org/id/unitary-authority/bracknell-forest","Bracknell Forest Council","00MA","Primary Schools","Delegated Primary School Budgets","Whitegrove - Primary","Gas",02/06/2014 00:00:00,"30244877",2318.19,"CORONA ENERGY RETAIL 4 LTD"
"Bracknell Forest Council","http://opendatacommunities.org/id/unitary-authority/bracknell-forest","Bracknell Forest Council","00MA","Recreation, Sports and Leisure","Indoor Sports & Recreation Facilities","Recreation Staff Accommodation","Gas",02/06/2014 00:00:00,"30244877",23.13,"CORONA ENERGY RETAIL 4 LTD"
"Bracknell Forest Council","http://opendatacommunities.org/id/unitary-authority/bracknell-forest","Bracknell Forest Council","00MA","Recreation, Sports and Leisure","Indoor Sports & Recreation Facilities","Recreation Staff Accommodation","Gas",02/06/2014 00:00:00,"30244877",68.52,"CORONA ENERGY RETAIL 4 LTD"
"Bracknell Forest Council","http://opendatacommunities.org/id/unitary-authority/bracknell-forest","Bracknell Forest Council","00MA","Services to Young People","Other Services to Young People","Portman Close Running Costs","Gas",02/06/2014 00:00:00,"30244877",153.22,"CORONA ENERGY RETAIL 4 LTD"
"Bracknell Forest Council","http://opendatacommunities.org/id/unitary-authority/bracknell-forest","Bracknell Forest Council","00MA","Secondary Schools","Delegated Secondary Schools Budgets","Brakenhale - Secondary","Gas",02/06/2014 00:00:00,"30244877",126.8,"CORONA ENERGY RETAIL 4 LTD"
"Bracknell Forest Council","http://opendatacommunities.org/id/unitary-authority/bracknell-forest","Bracknell Forest Council","00MA","Secondary Schools","Delegated Secondary Schools Budgets","Brakenhale - Secondary","Gas",02/06/2014 00:00:00,"30244877",157.86,"CORONA ENERGY RETAIL 4 LTD"
"Bracknell Forest Council","http://opendatacommunities.org/id/unitary-authority/bracknell-forest","Bracknell Forest Council","00MA","Secondary Schools","Delegated Secondary Schools Budgets","Brakenhale - Secondary","Gas",02/06/2014 00:00:00,"30244877",188.65,"CORONA ENERGY RETAIL 4 LTD"
"Bracknell Forest Council","http://opendatacommunities.org/id/unitary-authority/bracknell-forest","Bracknell Forest Council","00MA","Primary Schools","Delegated Primary School Budgets","Ascot Heath - Junior","Gas",02/06/2014 00:00:00,"30244877",26.1,"CORONA ENERGY RETAIL 4 LTD"
"Bracknell Forest Council","http://opendatacommunities.org/id/unitary-authority/bracknell-forest","Bracknell Forest Council","00MA","Social Support - Substance Misuse Support","Social Support - Substance Misuse Support","SM New Hope Running Costs","Gas",02/06/2014 00:00:00,"30244877",62.69,"CORONA ENERGY RETAIL 4 LTD"
"Bracknell Forest Council","http://opendatacommunities.org/id/unitary-authority/bracknell-forest","Bracknell Forest Council","00MA","Internal Services","Internal Services","Waymead - Short Stay","Gas",02/06/2014 00:00:00,"30244877",-718.58,"CORONA ENERGY RETAIL 4 LTD"
"Bracknell Forest Council","http://opendatacommunities.org/id/unitary-authority/bracknell-forest","Bracknell Forest Council","00MA","Internal Services","Internal Services","Waymead - Short Stay","Gas",02/06/2014 00:00:00,"30244877",181.38,"CORONA ENERGY RETAIL 4 LTD"
"Bracknell Forest Council","http://opendatacommunities.org/id/unitary-authority/bracknell-forest","Bracknell Forest Council","00MA","Internal Services","Internal Services","Waymead - Short Stay","Gas",02/06/2014 00:00:00,"30244877",198.16,"CORONA ENERGY RETAIL 4 LTD"
"Bracknell Forest Council","http://opendatacommunities.org/id/unitary-authority/bracknell-forest","Bracknell Forest Council","00MA","Family Support Services","Other family support services","Family Centre Running Costs","Gas",02/06/2014 00:00:00,"30244877",138.03,"CORONA ENERGY RETAIL 4 LTD"
"Bracknell Forest Council","http://opendatacommunities.org/id/unitary-authority/bracknell-forest","Bracknell Forest Council","00MA","Central Support Services - COF","Construction and Property","Depot Facilities","Gas",02/06/2014 00:00:00,"30244877",1358.07,"CORONA ENERGY RETAIL 4 LTD"
"Bracknell Forest Council","http://opendatacommunities.org/id/unitary-authority/bracknell-forest","Bracknell Forest Council","00MA","Central Support Services - COF","Construction and Property","Easthampstead House","Gas",02/06/2014 00:00:00,"30244877",769.69,"CORONA ENERGY RETAIL 4 LTD"
"Bracknell Forest Council","http://opendatacommunities.org/id/unitary-authority/bracknell-forest","Bracknell Forest Council","00MA","Short Term Support Other","Short Term Support Other","Bridgewell Unit","Gas",02/06/2014 00:00:00,"30244877",800.18,"CORONA ENERGY RETAIL 4 LTD"
"Bracknell Forest Council","http://opendatacommunities.org/id/unitary-authority/bracknell-forest","Bracknell Forest Council","00MA","Internal Services","Internal Services","Waymead - Short Stay","Gas",02/06/2014 00:00:00,"30244877",53.4,"CORONA ENERGY RETAIL 4 LTD"
"Bracknell Forest Council","http://opendatacommunities.org/id/unitary-authority/bracknell-forest","Bracknell Forest Council","00MA","Internal Services","Internal Services","Waymead - Short Stay","Gas",02/06/2014 00:00:00,"30244877",594.45,"CORONA ENERGY RETAIL 4 LTD"
"Bracknell Forest Council","http://opendatacommunities.org/id/unitary-authority/bracknell-forest","Bracknell Forest Council","00MA","Central Support Services - COF","Construction and Property","Time Square Office","Gas",02/06/2014 00:00:00,"30244877",1022.04,"CORONA ENERGY RETAIL 4 LTD"
"Bracknell Forest Council","http://opendatacommunities.org/id/unitary-authority/bracknell-forest","Bracknell Forest Council","00MA","Services to Young People","Other Services to Young People","Great Hollands Youth Centre","Gas",02/06/2014 00:00:00,"30244877",5.88,"CORONA ENERGY RETAIL 4 LTD"
"Bracknell Forest Council","http://opendatacommunities.org/id/unitary-authority/bracknell-forest","Bracknell Forest Council","00MA","Services to Young People","Other Services to Young People","Great Hollands Youth Centre","Gas",02/06/2014 00:00:00,"30244877",6.51,"CORONA ENERGY RETAIL 4 LTD"
"Bracknell Forest Council","http://opendatacommunities.org/id/unitary-authority/bracknell-forest","Bracknell Forest Council","00MA","Management and Support Services - CYPL","School Related Expenditure","HTS Interim","Taxi Fares - Home/School Transport",23/05/2014 00:00:00,"6549982",10602.32,"CROWN WHEELCHAIR TRAVEL"
"Bracknell Forest Council","http://opendatacommunities.org/id/unitary-authority/bracknell-forest","Bracknell Forest Council","00MA","Management & Administration","Management & Administration","Grants & Donations","Grants and Donations",21/05/2014 00:00:00,"6549739",2000,"CRUSE BEREAVEMENT CARE"
"Bracknell Forest Council","http://opendatacommunities.org/id/unitary-authority/bracknell-forest","Bracknell Forest Council","00MA","Management and Support Services - CYPL","Unallocated Schools Budget Related Expenditure","Free Milk","Free Milk",03/05/2014 00:00:00,"6548914",2045.82,"DAIRY CREST"
"Bracknell Forest Council","http://opendatacommunities.org/id/unitary-authority/bracknell-forest","Bracknell Forest Council","00MA","Older People (65+)","Internal Services","Heathlands EPH","Free Milk",03/05/2014 00:00:00,"30243830",26.47,"DAIRY CREST"
"Bracknell Forest Council","http://opendatacommunities.org/id/unitary-authority/bracknell-forest","Bracknell Forest Council","00MA","Older People (65+)","Internal Services","Heathlands EPH","Free Milk",10/05/2014 00:00:00,"30243830",26.47,"DAIRY CREST"
"Bracknell Forest Council","http://opendatacommunities.org/id/unitary-authority/bracknell-forest","Bracknell Forest Council","00MA","Older People (65+)","Internal Services","Heathlands EPH","Free Milk",10/05/2014 00:00:00,"30243830",37.38,"DAIRY CREST"
"Bracknell Forest Council","http://opendatacommunities.org/id/unitary-authority/bracknell-forest","Bracknell Forest Council","00MA","Older People (65+)","Internal Services","Heathlands EPH","Free Milk",03/05/2014 00:00:00,"30243830",26.47,"DAIRY CREST"
"Bracknell Forest Council","http://opendatacommunities.org/id/unitary-authority/bracknell-forest","Bracknell Forest Council","00MA","Older People (65+)","Internal Services","Heathlands EPH","Free Milk",03/05/2014 00:00:00,"30243830",37.38,"DAIRY CREST"
"Bracknell Forest Council","http://opendatacommunities.org/id/unitary-authority/bracknell-forest","Bracknell Forest Council","00MA","Older People (65+)","Internal Services","Heathlands EPH","Free Milk",10/05/2014 00:00:00,"30243830",26.47,"DAIRY CREST"
"Bracknell Forest Council","http://opendatacommunities.org/id/unitary-authority/bracknell-forest","Bracknell Forest Council","00MA","Older People (65+)","Internal Services","Heathlands EPH","Free Milk",10/05/2014 00:00:00,"30243830",26.47,"DAIRY CREST"
"Bracknell Forest Council","http://opendatacommunities.org/id/unitary-authority/bracknell-forest","Bracknell Forest Council","00MA","Older People (65+)","Internal Services","Heathlands EPH","Free Milk",10/05/2014 00:00:00,"30243830",26.47,"DAIRY CREST"
"Bracknell Forest Council","http://opendatacommunities.org/id/unitary-authority/bracknell-forest","Bracknell Forest Council","00MA","Business Support","Premises Development","Easthampstead Park Centre - Catering","Free Milk",10/05/2014 00:00:00,"30243830",30,"DAIRY CREST"
"Bracknell Forest Council","http://opendatacommunities.org/id/unitary-authority/bracknell-forest","Bracknell Forest Council","00MA","Business Support","Premises Development","Easthampstead Park Centre - Catering","Free Milk",03/05/2014 00:00:00,"30243830",50,"DAIRY CREST"
"Bracknell Forest Council","http://opendatacommunities.org/id/unitary-authority/bracknell-forest","Bracknell Forest Council","00MA","Business Support","Premises Development","Easthampstead Park Centre - Catering","Free Milk",03/05/2014 00:00:00,"30243830",30,"DAIRY CREST"
"Bracknell Forest Council","http://opendatacommunities.org/id/unitary-authority/bracknell-forest","Bracknell Forest Council","00MA","Business Support","Premises Development","Easthampstead Park Centre - Catering","Free Milk",17/05/2014 00:00:00,"30244282",25,"DAIRY CREST"
"Bracknell Forest Council","http://opendatacommunities.org/id/unitary-authority/bracknell-forest","Bracknell Forest Council","00MA","Business Support","Premises Development","Easthampstead Park Centre - Catering","Free Milk",17/05/2014 00:00:00,"30244282",40,"DAIRY CREST"
"Bracknell Forest Council","http://opendatacommunities.org/id/unitary-authority/bracknell-forest","Bracknell Forest Council","00MA","Older People (65+)","Internal Services","Heathlands EPH","Free Milk",17/05/2014 00:00:00,"30244282",26.47,"DAIRY CREST"
"Bracknell Forest Council","http://opendatacommunities.org/id/unitary-authority/bracknell-forest","Bracknell Forest Council","00MA","Older People (65+)","Internal Services","Heathlands EPH","Free Milk",17/05/2014 00:00:00,"30244282",26.47,"DAIRY CREST"
"Bracknell Forest Council","http://opendatacommunities.org/id/unitary-authority/bracknell-forest","Bracknell Forest Council","00MA","Older People (65+)","Internal Services","Heathlands EPH","Free Milk",17/05/2014 00:00:00,"30244282",26.47,"DAIRY CREST"
